Workbook

Sheet Contents
A1: Total Medical Expenses and Alternative Payment Methods
A2: DRAFT Data Submission Workbook: 2019 Reporting Cycle
A4: CHIA Submissions Portal
A5: TME/APM Data Specification Manual
A7: This workbook contains the following tabs:
A9: Tab Name | B9: Contents
A10: A. Front Page | B10: Payer Data Entry: Overview of File and Data Verification
A11: B. Zip Code | B11: Payer Data Entry: Zip Code Records
A12: C. Physician Group | B12: Payer Data Entry: Physician Group Records
A13: D.1 Summary | B13: Automated Calculation
A14: D.2 Summary Trends | B14: Automated Calculation
A15: Reference Tables | B15: Lookup Tables for Data Element Response Codes

Sheet A. Front Page
A1: Total Medical Expenses and Alternative Payment Methods
A2: A. File Overview and Payer Verification
B5: I verify that the information in this workbook is accurate.
A6: Contact Name: | B6: CHIA Test | C6: [Input Required]
A7: Contact Email: | B7: Erin.Bonney@state.ma.us | C7: [Input Required]
B9: Table A.1: File Overview | D9: [Input Required]
B10: Payer Name * | C10: =IF(ISBLANK(iPayer), "",INDEX(PayersList,iPayer,2)) -> CHIA
B11: Payer OrgID | C11: =IF(ISBLANK(iPayer), "",INDEX(PayersList,iPayer,1)) -> 00001
B12: Submission Year * | C12: 2019
B13: Preliminary Data: Reporting Year * | C13: 2018
B14: Preliminary Data: Claims Paid Through Date * | C14: 2019-04-01
B15: Final Data: Reporting Year * | C15: 2017
B16: Final Data: Claims Paid Through Date * | C16: 2019-04-01
B17: Final Resubmission Included? * | C17: Y
B18: Final Resubmission Data: Reporting Year * | C18: 2016
B19: Final Resubmission Data: Claims Paid Through Date * | C19: 2018-12-31
B21: Table A.2: Additional Data Confirmation | D21: [Input Required]
B22: Health Status Adjustment Tool * | C22: Example Risk Tool
B23: Health Status Adjustment Tool Version * | C23: 1
B24: Is the Risk Adjustment Tool concurrent? * | C24: Y
B25: Does the Risk Adjustment Tool use truncation? * | C25: N
B26: Is the Risk Adjustment Tool based on all-encounter diagnosis-based inputs? * | C26: Y
B27: Is pharmacy data an input in your risk adjustment tool? * | C27: N
B28: Are IBNR Factors applied to Prelim data? * | C28: Y
B29: Does the data include Massachusetts zip codes only? * | C29: Y
B30: Does the data include Massachusetts residents only? * | C30: Y
B31: Is the data limited only to members for whom the payer is the primary payer? * | C31: Y
B32: Zip Code File Comments
B33: Physician File Comments
B35: Table A.3: Commercial Partial Member Months by Carved-Out Benefits
B36: Carved-Out Benefit | C36: Commercial Partial MM CY 2016 | D36: Commercial Partial MM CY 2017 | E36: Commercial Partial MM CY 2018
B37: Pharmacy Only | C37: 20000 | D37: 21000 | E37: 22000
B38: Behavioral Health Only | C38: 0 | D38: 0 | E38: 0
B39: Pharmacy and Behavioral Health | C39: 0 | D39: 0 | E39: 0
B40: Other Services (not pharmacy and behavioral health) | C40: 10000 | D40: 10000 | E40: 10000
B41: Pharmacy and Other | C41: 0 | D41: 0 | E41: 0
B42: Behavioral Health and Other | C42: 0 | D42: 0 | E42: 0
B43: Pharmacy, Behavioral Health, and Other | C43: 0 | D43: 0 | E43: 0

Sheet B. Zip Code
A1: Total Medical Expenses and Alternative Payment Methods
A2: B. Zip Code TME and APM Records
A3: [All columns must be filled in*]
A4: Submission Type * | B4: Reporting Year * | C4: Zip Code * | D4: Insurance Category Code * | E4: Product Type Code * | F4: PCP Type Indicator * | G4: Payment Method Code * | H4: Member Months * | I4: HSA Score * | J4: Claims: Hospital Inpatient * | K4: Claims: Hospital Outpatient * | L4: Claims: Professional Physician * | M4: Claims: Professional Other * | N4: Claims: Pharmacy * | O4: Claims: Other * | P4: Total Non-Claims Payments *
A5: F | B5: 2016 | C5: 02114 | D5: 1 | E5: 1 | F5: 1 | G5: 5 | H5: 20740 | I5: 0.5025 | J5: 6156550 | K5: 2826744.12 | L5: 4411205.79 | M5: 2310470.37 | N5: 4370704.75 | O5: 1981872.76 | P5: 25729.99
A6: F | B6: 2016 | C6: 02114 | D6: 2 | E6: 1 | F6: 1 | G6: 5 | H6: 4515340 | I6: 2.111719755 | J6: 459129198 | K6: 428304598.2 | L6: 282237759.6 | M6: 75536873.02 | N6: 507273864.6 | O6: 169391362.8 | P6: 225225370
A7: F | B7: 2016 | C7: 01095 | D7: 3 | E7: 1 | F7: 1 | G7: 1A | H7: 1281073 | I7: 0.4125 | J7: 66732012 | K7: 67975128.49 | L7: 100462632.5 | M7: 29423088.96 | N7: 111864210.7 | O7: 97358016.3 | P7: 661660.12
A8: F | B8: 2016 | C8: 01095 | D8: 3 | E8: 2 | F8: 2 | G8: 2 | H8: 407587 | I8: 0.68 | J8: 19074608 | K8: 32444896.16 | L8: 18578466.04 | M8: 2944202.08 | N8: 32534382.23 | O8: 8123214.06 | P8: 5589337.41
A9: F | B9: 2016 | C9: 02134 | D9: 3 | E9: 1 | F9: 1 | G9: 5 | H9: 155106 | I9: 0.356 | J9: 8026843 | K9: 17790988.81 | L9: 14511843.46 | M9: 3717336.28 | N9: 14149304.86 | O9: 2814996.42 | P9: 0
A10: F | B10: 2016 | C10: 02445 | D10: 3 | E10: 1 | F10: 1 | G10: 5 | H10: 6731200 | I10: 0.7456420724 | J10: 622756852 | K10: 831061686.1 | L10: 1088318928 | M10: 169477526.5 | N10: 596103527.4 | O10: 129086284.5 | P10: 86302277.72
A11: F | B11: 2016 | C11: 02445 | D11: 4 | E11: 1 | F11: 1 | G11: 1A | H11: 1169626 | I11: 0.5125 | J11: 64508401 | K11: 62898427.5 | L11: 87730850.28 | M11: 24540203.12 | N11: 21875184.27 | O11: 66209045.1 | P11: 436988.56
A12: F | B12: 2016 | C12: 02169 | D12: 4 | E12: 2 | F12: 2 | G12: 2 | H12: 179 | I12: 1.65 | J12: 0 | K12: 825 | L12: 1958.89 | M12: 0 | N12: 374.05 | O12: 0 | P12: 0
A13: F | B13: 2016 | C13: 01002 | D13: 4 | E13: 1 | F13: 1 | G13: 5 | H13: 553957 | I13: 0.5 | J13: 54872333 | K13: 71572341 | L13: 96171347 | M13: 3847317 | N13: 49663276 | O13: 12285060 | P13: 0
A14: F | B14: 2016 | C14: 01453 | D14: 5 | E14: 1 | F14: 1 | G14: 5 | H14: 554 | I14: 6.1 | J14: 235091 | K14: 224066.23 | L14: 92075.38 | M14: 17023.06 | N14: 390941.46 | O14: 472909.19 | P14: 0
A15: F | B15: 2016 | C15: 02139 | D15: 5 | E15: 1 | F15: 1 | G15: 1A | H15: 176359 | I15: 0.73 | J15: 56579170 | K15: 41353349.33 | L15: 5709090.39 | M15: 2249902.81 | N15: 75265952.52 | O15: 252989504.1 | P15: 61044343.78
A16: F | B16: 2016 | C16: 01095 | D16: 6 | E16: 2 | F16: 2 | G16: 2 | H16: 32422 | I16: 1.664722222 | J16: 19504180 | K16: 12027162.46 | L16: 5228848.31 | M16: 3118472.15 | N16: 20527641.69 | O16: 12552408.45 | P16: 0
A17: F | B17: 2017 | C17: 02114 | D17: 1 | E17: 1 | F17: 1 | G17: 5 | H17: 21703 | I17: 0.4725 | J17: 6819544 | K17: 2814428.36 | L17: 4531671.6 | M17: 2660013.33 | N17: 5174793.84 | O17: 2106673.44 | P17: 29446.41
A18: F | B18: 2017 | C18: 02114 | D18: 2 | E18: 1 | F18: 1 | G18: 5 | H18: 4033838 | I18: 2.188082677 | J18: 417320842 | K18: 418993241.4 | L18: 253336193.5 | M18: 75536875.02 | N18: 528461936.9 | O18: 162311398.7 | P18: 238146630.5
A19: F | B19: 2017 | C19: 01095 | D19: 3 | E19: 1 | F19: 1 | G19: 1A | H19: 1294701 | I19: 0.41 | J19: 68400509 | K19: 68867471.42 | L19: 104366363.8 | M19: 31318940.98 | N19: 120794735.8 | O19: 97325065.2 | P19: 728910.24
A20: F | B20: 2017 | C20: 01095 | D20: 3 | E20: 2 | F20: 2 | G20: 2 | H20: 840361 | I20: 0.722568481 | J20: 40551116 | K20: 78258036.92 | L20: 37192982.18 | M20: 6667885.92 | N20: 61553722.65 | O20: 14006299.87 | P20: 8657053.68
A21: F | B21: 2017 | C21: 02134 | D21: 3 | E21: 1 | F21: 1 | G21: 5 | H21: 189098 | I21: 0.344 | J21: 14577129 | K21: 22520606.13 | L21: 19088676.5 | M21: 4920454.39 | N21: 17427404.63 | O21: 3173190.22 | P21: 0
A22: F | B22: 2017 | C22: 02445 | D22: 3 | E22: 1 | F22: 1 | G22: 5 | H22: 5754914 | I22: 0.8437420364 | J22: 548743208 | K22: 760756362.4 | L22: 959314732.9 | M22: 156961507.4 | N22: 511151991 | O22: 102539236.6 | P22: 123803389.1
A23: F | B23: 2017 | C23: 02445 | D23: 4 | E23: 1 | F23: 1 | G23: 1A | H23: 1211978 | I23: 0.5075 | J23: 64384691 | K23: 65172998.78 | L23: 93082208.99 | M23: 27260599.28 | N23: 25864498 | O23: 73310903.06 | P23: 526204.17
A24: F | B24: 2017 | C24: 02169 | D24: 4 | E24: 2 | F24: 2 | G24: 2 | H24: 75 | I24: 0.9683333333 | J24: 24182 | K24: 10200.56 | L24: 12752.99 | M24: 378.25 | N24: 2221.72 | O24: 22.01 | P24: 0
A25: F | B25: 2017 | C25: 01002 | D25: 4 | E25: 1 | F25: 1 | G25: 5 | H25: 593902 | I25: 0.5 | J25: 62780515 | K25: 83533206 | L25: 109142909 | M25: 3733367 | N25: 54102782 | O25: 13682122 | P25: 0
A26: F | B26: 2017 | C26: 01453 | D26: 5 | E26: 1 | F26: 1 | G26: 5 | H26: 4030 | I26: 5.73 | J26: 1646133 | K26: 1574370.06 | L26: 620897.46 | M26: 103878.77 | N26: 2322837.02 | O26: 2863552.32 | P26: 0
A27: F | B27: 2017 | C27: 02139 | D27: 5 | E27: 1 | F27: 1 | G27: 1A | H27: 192989 | I27: 1.21 | J27: 62415887 | K27: 42098912.28 | L27: 5223467.43 | M27: 1867890.32 | N27: 86420522.7 | O27: 278468783.8 | P27: 58880670.58
A28: F | B28: 2017 | C28: 01095 | D28: 6 | E28: 2 | F28: 2 | G28: 2 | H28: 38641 | I28: 1.713148148 | J28: 19912600 | K28: 13212999.83 | L28: 6425525.863 | M28: 3938421.272 | N28: 23651298.48 | O28: 15984914.96 | P28: 0
A29: P | B29: 2018 | C29: 02114 | D29: 1 | E29: 1 | F29: 1 | G29: 5 | H29: 21920.03 | I29: 0.477225 | J29: 6887739.44 | K29: 2842572.644 | L29: 4576988.316 | M29: 2686613.463 | N29: 5226541.778 | O29: 2127740.174 | P29: 29740.8741
A30: P | B30: 2018 | C30: 02114 | D30: 2 | E30: 1 | F30: 1 | G30: 5 | H30: 4235529.9 | I30: 2.29748681 | J30: 438186884.1 | K30: 439942903.5 | L30: 262643003.1 | M30: 76988201.12 | N30: 554885033.7 | O30: 170426968.6 | P30: 250053962
A31: P | B31: 2018 | C31: 01095 | D31: 3 | E31: 1 | F31: 1 | G31: 1A | H31: 1359436.05 | I31: 0.4305 | J31: 71820534.45 | K31: 72310844.99 | L31: 109584682 | M31: 32884888.03 | N31: 126834462 | O31: 102191318.5 | P31: 765355.752
A32: P | B32: 2018 | C32: 01095 | D32: 3 | E32: 2 | F32: 2 | G32: 2 | H32: 882379.05 | I32: 0.7586969051 | J32: 42578671.8 | K32: 82170938.77 | L32: 39052631.29 | M32: 7001280.216 | N32: 64631408.78 | O32: 14706614.86 | P32: 9089906.364
A33: P | B33: 2018 | C33: 02134 | D33: 3 | E33: 1 | F33: 1 | G33: 5 | H33: 198552.9 | I33: 0.3612 | J33: 15305985.45 | K33: 23646636.44 | L33: 20043110.32 | M33: 5166477.11 | N33: 18298774.86 | O33: 3331849.731 | P33: 0
A34: P | B34: 2018 | C34: 02445 | D34: 3 | E34: 1 | F34: 1 | G34: 5 | H34: 6042659.7 | I34: 0.8859291383 | J34: 576180368.4 | K34: 798794180.5 | L34: 1007280470 | M34: 164809582.8 | N34: 536709590.5 | O34: 107666198.4 | P34: 129993558.5
A35: P | B35: 2018 | C35: 02445 | D35: 4 | E35: 1 | F35: 1 | G35: 1A | H35: 1260457.12 | I35: 0.5278 | J35: 66960078.64 | K35: 67779918.73 | L35: 96805497.35 | M35: 28351023.25 | N35: 26899077.92 | O35: 76243339.18 | P35: 547252.3368
A36: P | B36: 2018 | C36: 02169 | D36: 4 | E36: 2 | F36: 2 | G36: 2 | H36: 78 | I36: 1.007066667 | J36: 24109.28 | K36: 10420.3424 | L36: 13263.1096 | M36: 393.38 | N36: 2310.5888 | O36: 22.8904 | P36: 0
A37: P | B37: 2018 | C37: 01002 | D37: 4 | E37: 1 | F37: 1 | G37: 5 | H37: 617658.08 | I37: 0.52 | J37: 65291735.6 | K37: 86874534.24 | L37: 113508625.4 | M37: 3882701.68 | N37: 56266893.28 | O37: 14229406.88 | P37: 0
A38: P | B38: 2018 | C38: 01453 | D38: 5 | E38: 1 | F38: 1 | G38: 5 | H38: 664.8 | I38: 7.32 | J38: 282109.2 | K38: 268879.476 | L38: 110490.456 | M38: 20427.672 | N38: 469129.752 | O38: 567491.028 | P38: 0
A39: P | B39: 2018 | C39: 02139 | D39: 5 | E39: 1 | F39: 1 | G39: 1A | H39: 211630.8 | I39: 0.876 | J39: 67895004 | K39: 49624019.2 | L39: 6850908.468 | M39: 2699883.372 | N39: 90319143.02 | O39: 303587404.9 | P39: 73253212.54
A40: P | B40: 2018 | C40: 01095 | D40: 6 | E40: 2 | F40: 2 | G40: 2 | H40: 46372.2 | I40: 2.055777778 | J40: 23895073.2 | K40: 15855599.8 | L40: 7710631.036 | M40: 4726105.526 | N40: 28381558.18 | O40: 19181897.95 | P40: 0

Sheet C. Physician Group
A1: Total Medical Expenses and Alternative Payment Methods
A2: C. Physician Group TME and APM Records
A3: [All columns must be filled in*]
A4: Submission Type * | B4: Reporting Year * | C4: Physician Group OrgID * | D4: Local Practice Group OrgID * | E4: Insurance Category Code * | F4: Product Type Code * | G4: PCP Type Indicator * | H4: Payment Method Code * | I4: Risk Type Code * | J4: Pediatric Indicator * | K4: MassHealth ACO Indicator * | L4: Member Months * | M4: HSA Score * | N4: Claims: Hospital Inpatient * | O4: Claims: Hospital Outpatient * | P4: Claims: Professional Physician * | Q4: Claims: Professional Other * | R4: Claims: Pharmacy * | S4: Claims: Other * | T4: Non-Claims: Incentive Programs * | U4: Non-Claims: Capitation * | V4: Non-Claims: Risk Settlements * | W4: Non-Claims: Care Management * | X4: Non-Claims: Other *
A5: F | B5: 2016 | C5: 12345 | D5: 11111 | E5: 1 | F5: 1 | G5: 1 | H5: 5 | I5: 2 | J5: 0 | K5: 0 | L5: 20740 | M5: 0.5025 | N5: 6156550 | O5: 2826744.12 | P5: 4411205.79 | Q5: 2310470.37 | R5: 4370704.75 | S5: 1981888.76 | T5: 25729.99
A6: F | B6: 2016 | C6: 23456 | D6: 11112 | E6: 2 | F6: 1 | G6: 1 | H6: 5 | I6: 1 | J6: 0 | K6: 1 | L6: 4515450 | M6: 2.111719755 | N6: 459129198 | O6: 428304598.2 | P6: 282237759.6 | Q6: 75536873.02 | R6: 507273864.6 | S6: 169391362.8 | T6: 225225370
A7: F | B7: 2016 | C7: 34567 | D7: 11113 | E7: 3 | F7: 1 | G7: 1 | H7: 1A | I7: 1 | J7: 0 | K7: 0 | L7: 1281073 | M7: 0.4125 | N7: 66732012 | O7: 67975128.49 | P7: 100462632.5 | Q7: 29423087.96 | R7: 111864210.7 | S7: 97358016.3 | T7: 661651.12
A8: F | B8: 2016 | C8: 45678 | D8: 11114 | E8: 3 | F8: 2 | G8: 2 | H8: 2 | I8: 1 | J8: 0 | K8: 0 | L8: 407587 | M8: 0.68 | N8: 19074608 | O8: 32444896.16 | P8: 18578466.04 | Q8: 2944202.08 | R8: 32534382.23 | S8: 8123214.06 | T8: 5589337.41
A9: F | B9: 2016 | C9: 12345 | D9: 11111 | E9: 3 | F9: 1 | G9: 1 | H9: 5 | I9: 1 | J9: 0 | K9: 0 | L9: 155106 | M9: 0.356 | N9: 8026843 | O9: 17790988.81 | P9: 14511843.46 | Q9: 3717336.28 | R9: 14149304.86 | S9: 2814996.42 | T9: 0
A10: F | B10: 2016 | C10: 23456 | D10: 11112 | E10: 3 | F10: 1 | G10: 1 | H10: 5 | I10: 1 | J10: 0 | K10: 1 | L10: 6731200 | M10: 0.7456420724 | N10: 622756852 | O10: 831061686.1 | P10: 1088318928 | Q10: 169477526.5 | R10: 596103527.4 | S10: 129086284.5 | T10: 86302277.72
A11: F | B11: 2016 | C11: 34567 | D11: 11113 | E11: 4 | F11: 1 | G11: 1 | H11: 1A | I11: 2 | J11: 0 | K11: 0 | L11: 1169626 | M11: 0.5125 | N11: 64508401 | O11: 62898427.5 | P11: 87730850.28 | Q11: 24540203.12 | R11: 21875184.27 | S11: 66209045.1 | T11: 436988.56
A12: F | B12: 2016 | C12: 45678 | D12: 11114 | E12: 4 | F12: 2 | G12: 2 | H12: 2 | I12: 2 | J12: 0 | K12: 0 | L12: 175 | M12: 1.65 | N12: 0 | O12: 900 | P12: 1958.89 | Q12: 0 | R12: 374.05 | S12: 0 | T12: 0
A13: F | B13: 2016 | C13: 12345 | D13: 11111 | E13: 4 | F13: 1 | G13: 1 | H13: 5 | I13: 2 | J13: 0 | K13: 0 | L13: 553957 | M13: 0.5 | N13: 54872333 | O13: 71572341 | P13: 96171347 | Q13: 3847317 | R13: 49663276 | S13: 12285060 | T13: 0
A14: F | B14: 2016 | C14: 23456 | D14: 11112 | E14: 5 | F14: 1 | G14: 1 | H14: 5 | I14: 3 | J14: 1 | K14: 1 | L14: 554 | M14: 6.1 | N14: 235091 | O14: 224066.23 | P14: 92075.38 | Q14: 17023.06 | R14: 390941.46 | S14: 472909.19 | T14: 0
A15: F | B15: 2016 | C15: 34567 | D15: 11113 | E15: 5 | F15: 1 | G15: 1 | H15: 1A | I15: 3 | J15: 0 | K15: 0 | L15: 176359 | M15: 0.73 | N15: 56579170 | O15: 41353349.33 | P15: 5709090.39 | Q15: 2249902.81 | R15: 75265952.52 | S15: 252989504.1 | T15: 61044343.78
A16: F | B16: 2016 | C16: 45678 | D16: 11114 | E16: 6 | F16: 2 | G16: 2 | H16: 2 | I16: 1 | J16: 1 | K16: 0 | L16: 32422 | M16: 1.664722222 | N16: 19504180 | O16: 12027162.46 | P16: 5228848.31 | Q16: 3118472.15 | R16: 20527641.69 | S16: 12552408.45 | T16: 0
A17: F | B17: 2017 | C17: 12345 | D17: 11111 | E17: 1 | F17: 1 | G17: 1 | H17: 5 | I17: 2 | J17: 0 | K17: 0 | L17: 21703 | M17: 0.4725 | N17: 6819544 | O17: 2814428.36 | P17: 4531671.6 | Q17: 2660013.33 | R17: 5174793.84 | S17: 2106673.44 | T17: 29446.41
A18: F | B18: 2017 | C18: 23456 | D18: 11112 | E18: 2 | F18: 1 | G18: 1 | H18: 5 | I18: 1 | J18: 0 | K18: 1 | L18: 4033838 | M18: 2.188082677 | N18: 417320842 | O18: 418993241.4 | P18: 253336193.5 | Q18: 75536875.02 | R18: 528461936.9 | S18: 162311398.7 | T18: 238146630.5
A19: F | B19: 2017 | C19: 34567 | D19: 11113 | E19: 3 | F19: 1 | G19: 1 | H19: 1A | I19: 1 | J19: 0 | K19: 0 | L19: 1294701 | M19: 0.41 | N19: 68400509 | O19: 68867471.42 | P19: 104366363.8 | Q19: 31318940.98 | R19: 120794725.8 | S19: 97325065.2 | T19: 728910.24
A20: F | B20: 2017 | C20: 45678 | D20: 11114 | E20: 3 | F20: 2 | G20: 2 | H20: 2 | I20: 1 | J20: 0 | K20: 0 | L20: 840361 | M20: 0.722568481 | N20: 40551116 | O20: 78258036.92 | P20: 37192982.18 | Q20: 6667885.92 | R20: 61553722.65 | S20: 14006310.87 | T20: 8657053.68
A21: F | B21: 2017 | C21: 12345 | D21: 11111 | E21: 3 | F21: 1 | G21: 1 | H21: 5 | I21: 1 | J21: 0 | K21: 0 | L21: 189098 | M21: 0.344 | N21: 14577129 | O21: 22520606.13 | P21: 19088676.5 | Q21: 4920454.39 | R21: 17427404.63 | S21: 3173190.22 | T21: 0
A22: F | B22: 2017 | C22: 23456 | D22: 11112 | E22: 3 | F22: 1 | G22: 1 | H22: 5 | I22: 1 | J22: 0 | K22: 1 | L22: 5754914 | M22: 0.8437420364 | N22: 548743208 | O22: 760756362.4 | P22: 959314732.9 | Q22: 156961507.4 | R22: 511151991 | S22: 102539236.6 | T22: 123803389.1
A23: F | B23: 2017 | C23: 34567 | D23: 11113 | E23: 4 | F23: 1 | G23: 1 | H23: 1A | I23: 2 | J23: 0 | K23: 0 | L23: 1211978 | M23: 0.5075 | N23: 64384691 | O23: 65172998.78 | P23: 93082208.99 | Q23: 27260599.28 | R23: 25864498 | S23: 73310903.06 | T23: 526204.17
A24: F | B24: 2017 | C24: 45678 | D24: 11114 | E24: 4 | F24: 2 | G24: 2 | H24: 2 | I24: 2 | J24: 0 | K24: 0 | L24: 75 | M24: 0.9683333333 | N24: 23182 | O24: 10019.56 | P24: 12752.99 | Q24: 378.25 | R24: 2221.72 | S24: 22.01 | T24: 0
A25: F | B25: 2017 | C25: 12345 | D25: 11111 | E25: 4 | F25: 1 | G25: 1 | H25: 5 | I25: 2 | J25: 0 | K25: 0 | L25: 593902 | M25: 0.5 | N25: 62780515 | O25: 83533206 | P25: 109142909 | Q25: 3733367 | R25: 54102782 | S25: 13682122 | T25: 0
A26: F | B26: 2017 | C26: 23456 | D26: 11112 | E26: 5 | F26: 1 | G26: 1 | H26: 5 | I26: 3 | J26: 1 | K26: 1 | L26: 4030 | M26: 5.73 | N26: 1646133 | O26: 1574370.06 | P26: 620887.46 | Q26: 103878.77 | R26: 2322837.02 | S26: 2863553.32 | T26: 0
A27: F | B27: 2017 | C27: 34567 | D27: 11113 | E27: 5 | F27: 1 | G27: 1 | H27: 1A | I27: 3 | J27: 0 | K27: 0 | L27: 192989 | M27: 1.21 | N27: 62415887 | O27: 42098912.28 | P27: 5223467.43 | Q27: 1867890.32 | R27: 86420522.7 | S27: 278468783.8 | T27: 58880670.58
A28: F | B28: 2017 | C28: 45678 | D28: 11114 | E28: 6 | F28: 2 | G28: 2 | H28: 2 | I28: 1 | J28: 1 | K28: 0 | L28: 38641 | M28: 1.713148148 | N28: 19912561 | O28: 13212989.83 | P28: 6425525.863 | Q28: 3938421.272 | R28: 23651298.48 | S28: 15984914.96 | T28: 0
A29: P | B29: 2018 | C29: 12345 | D29: 11111 | E29: 1 | F29: 1 | G29: 1 | H29: 5 | I29: 2 | J29: 0 | K29: 0 | L29: 21920.03 | M29: 0.477225 | N29: 6887739.44 | O29: 2842572.644 | P29: 4576988.316 | Q29: 2686613.463 | R29: 5226541.778 | S29: 2127740.174 | T29: 29740.8741
A30: P | B30: 2018 | C30: 23456 | D30: 11112 | E30: 2 | F30: 1 | G30: 1 | H30: 5 | I30: 1 | J30: 0 | K30: 1 | L30: 4235529.9 | M30: 2.29748681 | N30: 438186884.1 | O30: 439942903.5 | P30: 262643003.1 | Q30: 76988201.12 | R30: 554885033.7 | S30: 170426968.6 | T30: 250053962
A31: P | B31: 2018 | C31: 34567 | D31: 11113 | E31: 3 | F31: 1 | G31: 1 | H31: 1A | I31: 1 | J31: 0 | K31: 0 | L31: 1359436.05 | M31: 0.4305 | N31: 71820534.45 | O31: 72310844.99 | P31: 109584682 | Q31: 32884888.03 | R31: 126834462 | S31: 102191318.5 | T31: 765355.752
A32: P | B32: 2018 | C32: 45678 | D32: 11114 | E32: 3 | F32: 2 | G32: 2 | H32: 2 | I32: 1 | J32: 0 | K32: 0 | L32: 882379.05 | M32: 0.7586969051 | N32: 42578671.8 | O32: 82170938.77 | P32: 39052631.29 | Q32: 7001280.216 | R32: 64631408.78 | S32: 14706614.86 | T32: 9089906.364
A33: P | B33: 2018 | C33: 12345 | D33: 11111 | E33: 3 | F33: 1 | G33: 1 | H33: 5 | I33: 1 | J33: 0 | K33: 0 | L33: 198552.9 | M33: 0.3612 | N33: 15305985.45 | O33: 23646636.44 | P33: 20043110.32 | Q33: 5166477.11 | R33: 18298774.86 | S33: 3331849.731 | T33: 0
A34: P | B34: 2018 | C34: 23456 | D34: 11112 | E34: 3 | F34: 1 | G34: 1 | H34: 5 | I34: 1 | J34: 0 | K34: 1 | L34: 6042659.7 | M34: 0.8859291383 | N34: 576180368.4 | O34: 798794180.5 | P34: 1007280470 | Q34: 164809582.8 | R34: 536709590.5 | S34: 107666198.4 | T34: 129993558.5
A35: P | B35: 2018 | C35: 34567 | D35: 11113 | E35: 4 | F35: 1 | G35: 1 | H35: 1A | I35: 2 | J35: 0 | K35: 0 | L35: 1260457.12 | M35: 0.5278 | N35: 66960078.64 | O35: 67779918.73 | P35: 96805497.35 | Q35: 28351023.25 | R35: 26899077.92 | S35: 76243339.18 | T35: 547252.3368
A36: P | B36: 2018 | C36: 45678 | D36: 11114 | E36: 4 | F36: 2 | G36: 2 | H36: 2 | I36: 2 | J36: 0 | K36: 0 | L36: 78 | M36: 1.007066667 | N36: 24109.28 | O36: 10420.3424 | P36: 13263.1096 | Q36: 393.38 | R36: 2310.5888 | S36: 22.8904 | T36: 0
A37: P | B37: 2018 | C37: 12345 | D37: 11111 | E37: 4 | F37: 1 | G37: 1 | H37: 5 | I37: 2 | J37: 0 | K37: 0 | L37: 617658.08 | M37: 0.52 | N37: 65291735.6 | O37: 86874534.24 | P37: 113508625.4 | Q37: 3882701.68 | R37: 56266893.28 | S37: 14229406.88 | T37: 0
A38: P | B38: 2018 | C38: 23456 | D38: 11112 | E38: 5 | F38: 1 | G38: 1 | H38: 5 | I38: 3 | J38: 1 | K38: 1 | L38: 664.8 | M38: 7.32 | N38: 282109.2 | O38: 268879.476 | P38: 110490.456 | Q38: 20427.672 | R38: 469129.752 | S38: 567491.028 | T38: 0
A39: P | B39: 2018 | C39: 34567 | D39: 11113 | E39: 5 | F39: 1 | G39: 1 | H39: 1A | I39: 3 | J39: 0 | K39: 0 | L39: 211630.8 | M39: 0.876 | N39: 67895004 | O39: 49624019.2 | P39: 6850908.468 | Q39: 2699883.372 | R39: 90319143.02 | S39: 303587404.9 | T39: 73253212.54
A40: P | B40: 2018 | C40: 45678 | D40: 11114 | E40: 6 | F40: 2 | G40: 2 | H40: 2 | I40: 1 | J40: 1 | K40: 0 | L40: 46369.2 | M40: 2.055777778 | N40: 23895073.2 | O40: 15855599.8 | P40: 7710631.036 | Q40: 4726105.526 | R40: 28381558.18 | S40: 19181897.95 | T40: 0

Sheet D.1 Summary
A2: Table A: Zip Code TME&APM Summary
B3: TME and APM Data Summary - Zip Code
B4: Year | C4: Insurance Category | D4: Code | E4: Member Months | F4: Wtd Member Months | G4: Average HSA | H4: Total Expenses | I4: TME PMPM | J4: HSA TME PMPM | K4: Inpatient | L4: Outpatient | M4: Prof. Physician | N4: Prof. Other | O4: Rx | P4: Other | Q4: Non-Claims
B5: 2016 | C5: Medicare & Medicare Advantage | D5: 1 | E5: =SUMIFS('B. Zip Code'!H:H,'B. Zip Code'!B:B,'D.1 Summary'!B5,'B. Zip Code'!D:D,D5) -> 20740 | F5: =IFERROR((SUMIFS('B. Zip Code'!H:H,'B. Zip Code'!B:B,'D.1 Summary'!B5,'B. Zip Code'!D:D,D5)*AVERAGEIFS('B. Zip Code'!I:I,'B. Zip Code'!B:B,'D.1 Summary'!B5,'B. Zip Code'!D:D,D5)),"0") -> 10421.85 | G5: =IFERROR(F5/E5,"0") -> 0.5025 | H5: =(SUMIFS('B. Zip Code'!J:J,'B. Zip Code'!B:B,'D.1 Summary'!B5,'B. Zip Code'!D:D,'D.1 Summary'!D5)+SUMIFS('B. Zip Code'!K:K,'B. Zip Code'!B:B,'D.1 Summary'!B5,'B. Zip Code'!D:D,'D.1 Summary'!D5)+SUMIFS('B. Zip Code'!L:L,'B. Zip Code'!B:B,'D.1 Summary'!B5,'B. Zip Code'!D:D,'D.1 Summary'!D5)+SUMIFS('B. Zip Code'!M:M,'B. Zip Code'!B:B,'D.1 Summary'!B5,'B. Zip Code'!D:D,'D.1 Summary'!D5)+SUMIFS('B. Zip Code'!N:N,'B. Zip Code'!B:B,'D.1 Summary'!B5,'B. Zip Code'!D:D,'D.1 Summary'!D5)+SUMIFS('B. Zip Code'!O:O,'B. Zip Code'!B:B,'D.1 Summary'!B5,'B. Zip Code'!D:D,'D.1 Summary'!D5)+SUMIFS('B. Zip Code'!P:P,'B. Zip Code'!B:B,'D.1 Summary'!B5,'B. Zip Code'!D:D,'D.1 Summary'!D5)) -> 22083277.78 | I5: =IFERROR(H5/E5,"0") -> 1064.767492 | J5: =IFERROR(H5/F5,"0") -> 2118.940282 | K5: =SUMIFS('B. Zip Code'!J:J,'B. Zip Code'!B:B,'D.1 Summary'!B5,'B. Zip Code'!D:D,D5) -> 6156550 | L5: =SUMIFS('B. Zip Code'!K:K,'B. Zip Code'!B:B,'D.1 Summary'!B5,'B. Zip Code'!D:D,D5) -> 2826744.12 | M5: =SUMIFS('B. Zip Code'!L:L,'B. Zip Code'!B:B,'D.1 Summary'!B5,'B. Zip Code'!D:D,D5) -> 4411205.79 | N5: =SUMIFS('B. Zip Code'!M:M,'B. Zip Code'!B:B,'D.1 Summary'!B5,'B. Zip Code'!D:D,D5) -> 2310470.37 | O5: =SUMIFS('B. Zip Code'!N:N,'B. Zip Code'!B:B,'D.1 Summary'!B5,'B. Zip Code'!D:D,D5) -> 4370704.75 | P5: =SUMIFS('B. Zip Code'!O:O,'B. Zip Code'!B:B,'D.1 Summary'!B5,'B. Zip Code'!D:D,D5) -> 1981872.76 | Q5: =SUMIFS('B. Zip Code'!P:P,'B. Zip Code'!B:B,'D.1 Summary'!B5,'B. Zip Code'!D:D,D5) -> 25729.99
B6: 2016 | C6: Medicaid & Medicaid Managed Care (MCO) | D6: 2 | E6: =SUMIFS('B. Zip Code'!H:H,'B. Zip Code'!B:B,'D.1 Summary'!B6,'B. Zip Code'!D:D,D6) -> 4515340 | F6: =IFERROR((SUMIFS('B. Zip Code'!H:H,'B. Zip Code'!B:B,'D.1 Summary'!B6,'B. Zip Code'!D:D,D6)*AVERAGEIFS('B. Zip Code'!I:I,'B. Zip Code'!B:B,'D.1 Summary'!B6,'B. Zip Code'!D:D,D6)),"0") -> 9535132.68 | G6: =IFERROR(F6/E6,"0") -> 2.111719755 | H6: =(SUMIFS('B. Zip Code'!J:J,'B. Zip Code'!B:B,'D.1 Summary'!B6,'B. Zip Code'!D:D,'D.1 Summary'!D6)+SUMIFS('B. Zip Code'!K:K,'B. Zip Code'!B:B,'D.1 Summary'!B6,'B. Zip Code'!D:D,'D.1 Summary'!D6)+SUMIFS('B. Zip Code'!L:L,'B. Zip Code'!B:B,'D.1 Summary'!B6,'B. Zip Code'!D:D,'D.1 Summary'!D6)+SUMIFS('B. Zip Code'!M:M,'B. Zip Code'!B:B,'D.1 Summary'!B6,'B. Zip Code'!D:D,'D.1 Summary'!D6)+SUMIFS('B. Zip Code'!N:N,'B. Zip Code'!B:B,'D.1 Summary'!B6,'B. Zip Code'!D:D,'D.1 Summary'!D6)+SUMIFS('B. Zip Code'!O:O,'B. Zip Code'!B:B,'D.1 Summary'!B6,'B. Zip Code'!D:D,'D.1 Summary'!D6)+SUMIFS('B. Zip Code'!P:P,'B. Zip Code'!B:B,'D.1 Summary'!B6,'B. Zip Code'!P:P,'D.1 Summary'!D6)) -> 1921873656 | I6: =IFERROR(H6/E6,"0") -> 425.6321022 | J6: =IFERROR(H6/F6,"0") -> 201.5570964 | K6: =SUMIFS('B. Zip Code'!J:J,'B. Zip Code'!B:B,'D.1 Summary'!B6,'B. Zip Code'!D:D,D6) -> 459129198 | L6: =SUMIFS('B. Zip Code'!K:K,'B. Zip Code'!B:B,'D.1 Summary'!B6,'B. Zip Code'!D:D,D6) -> 428304598.2 | M6: =SUMIFS('B. Zip Code'!L:L,'B. Zip Code'!B:B,'D.1 Summary'!B6,'B. Zip Code'!D:D,D6) -> 282237759.6 | N6: =SUMIFS('B. Zip Code'!M:M,'B. Zip Code'!B:B,'D.1 Summary'!B6,'B. Zip Code'!D:D,D6) -> 75536873.02 | O6: =SUMIFS('B. Zip Code'!N:N,'B. Zip Code'!B:B,'D.1 Summary'!B6,'B. Zip Code'!D:D,D6) -> 507273864.6 | P6: =SUMIFS('B. Zip Code'!O:O,'B. Zip Code'!B:B,'D.1 Summary'!B6,'B. Zip Code'!D:D,D6) -> 169391362.8 | Q6: =SUMIFS('B. Zip Code'!P:P,'B. Zip Code'!B:B,'D.1 Summary'!B6,'B. Zip Code'!D:D,D6) -> 225225370
B7: 2016 | C7: Commercial - Full Claims | D7: 3 | E7: =SUMIFS('B. Zip Code'!H:H,'B. Zip Code'!B:B,'D.1 Summary'!B7,'B. Zip Code'!D:D,D7) -> 8574966 | F7: =IFERROR((SUMIFS('B. Zip Code'!H:H,'B. Zip Code'!B:B,'D.1 Summary'!B7,'B. Zip Code'!D:D,D7)*AVERAGEIFS('B. Zip Code'!I:I,'B. Zip Code'!B:B,'D.1 Summary'!B7,'B. Zip Code'!D:D,D7)),"0") -> 4703673.417 | G7: 0.5485355181 | H7: =(SUMIFS('B. Zip Code'!J:J,'B. Zip Code'!B:B,'D.1 Summary'!B7,'B. Zip Code'!D:D,'D.1 Summary'!D7)+SUMIFS('B. Zip Code'!K:K,'B. Zip Code'!B:B,'D.1 Summary'!B7,'B. Zip Code'!D:D,'D.1 Summary'!D7)+SUMIFS('B. Zip Code'!L:L,'B. Zip Code'!B:B,'D.1 Summary'!B7,'B. Zip Code'!D:D,'D.1 Summary'!D7)+SUMIFS('B. Zip Code'!M:M,'B. Zip Code'!B:B,'D.1 Summary'!B7,'B. Zip Code'!D:D,'D.1 Summary'!D7)+SUMIFS('B. Zip Code'!N:N,'B. Zip Code'!B:B,'D.1 Summary'!B7,'B. Zip Code'!D:D,'D.1 Summary'!D7)+SUMIFS('B. Zip Code'!O:O,'B. Zip Code'!B:B,'D.1 Summary'!B7,'B. Zip Code'!D:D,'D.1 Summary'!D7)+SUMIFS('B. Zip Code'!P:P,'B. Zip Code'!B:B,'D.1 Summary'!B7,'B. Zip Code'!P:P,'D.1 Summary'!D7)) -> 4085330975 | I7: 476.4253263 | J7: 868.540524 | K7: =SUMIFS('B. Zip Code'!J:J,'B. Zip Code'!B:B,'D.1 Summary'!B7,'B. Zip Code'!D:D,D7) -> 716590315 | L7: =SUMIFS('B. Zip Code'!K:K,'B. Zip Code'!B:B,'D.1 Summary'!B7,'B. Zip Code'!D:D,D7) -> 949272699.6 | M7: =SUMIFS('B. Zip Code'!L:L,'B. Zip Code'!B:B,'D.1 Summary'!B7,'B. Zip Code'!D:D,D7) -> 1221871870 | N7: =SUMIFS('B. Zip Code'!M:M,'B. Zip Code'!B:B,'D.1 Summary'!B7,'B. Zip Code'!D:D,D7) -> 205562153.9 | O7: =SUMIFS('B. Zip Code'!N:N,'B. Zip Code'!B:B,'D.1 Summary'!B7,'B. Zip Code'!D:D,D7) -> 754651425.2 | P7: =SUMIFS('B. Zip Code'!O:O,'B. Zip Code'!B:B,'D.1 Summary'!B7,'B. Zip Code'!D:D,D7) -> 237382511.2 | Q7: =SUMIFS('B. Zip Code'!P:P,'B. Zip Code'!B:B,'D.1 Summary'!B7,'B. Zip Code'!D:D,D7) -> 92553275.25
B8: 2016 | C8: Commercial - Partial Claims | D8: 4 | E8: =SUMIFS('B. Zip Code'!H:H,'B. Zip Code'!B:B,'D.1 Summary'!B8,'B. Zip Code'!D:D,D8) -> 1723762 | F8: =IFERROR((SUMIFS('B. Zip Code'!H:H,'B. Zip Code'!B:B,'D.1 Summary'!B8,'B. Zip Code'!D:D,D8)*AVERAGEIFS('B. Zip Code'!I:I,'B. Zip Code'!B:B,'D.1 Summary'!B8,'B. Zip Code'!D:D,D8)),"0") -> 1529838.775 | G8: 0.8875 | H8: =(SUMIFS('B. Zip Code'!J:J,'B. Zip Code'!B:B,'D.1 Summary'!B8,'B. Zip Code'!D:D,'D.1 Summary'!D8)+SUMIFS('B. Zip Code'!K:K,'B. Zip Code'!B:B,'D.1 Summary'!B8,'B. Zip Code'!D:D,'D.1 Summary'!D8)+SUMIFS('B. Zip Code'!L:L,'B. Zip Code'!B:B,'D.1 Summary'!B8,'B. Zip Code'!D:D,'D.1 Summary'!D8)+SUMIFS('B. Zip Code'!M:M,'B. Zip Code'!B:B,'D.1 Summary'!B8,'B. Zip Code'!D:D,'D.1 Summary'!D8)+SUMIFS('B. Zip Code'!N:N,'B. Zip Code'!B:B,'D.1 Summary'!B8,'B. Zip Code'!D:D,'D.1 Summary'!D8)+SUMIFS('B. Zip Code'!O:O,'B. Zip Code'!B:B,'D.1 Summary'!B8,'B. Zip Code'!D:D,'D.1 Summary'!D8)+SUMIFS('B. Zip Code'!P:P,'B. Zip Code'!B:B,'D.1 Summary'!B8,'B. Zip Code'!P:P,'D.1 Summary'!D8)) -> 616176943.2 | I8: 357.4605678 | J8: 402.7724707 | K8: =SUMIFS('B. Zip Code'!J:J,'B. Zip Code'!B:B,'D.1 Summary'!B8,'B. Zip Code'!D:D,D8) -> 119380734 | L8: =SUMIFS('B. Zip Code'!K:K,'B. Zip Code'!B:B,'D.1 Summary'!B8,'B. Zip Code'!D:D,D8) -> 134471593.5 | M8: =SUMIFS('B. Zip Code'!L:L,'B. Zip Code'!B:B,'D.1 Summary'!B8,'B. Zip Code'!D:D,D8) -> 183904156.2 | N8: =SUMIFS('B. Zip Code'!M:M,'B. Zip Code'!B:B,'D.1 Summary'!B8,'B. Zip Code'!D:D,D8) -> 28387520.12 | O8: =SUMIFS('B. Zip Code'!N:N,'B. Zip Code'!B:B,'D.1 Summary'!B8,'B. Zip Code'!D:D,D8) -> 71538834.32 | P8: =SUMIFS('B. Zip Code'!O:O,'B. Zip Code'!B:B,'D.1 Summary'!B8,'B. Zip Code'!D:D,D8) -> 78494105.1 | Q8: =SUMIFS('B. Zip Code'!P:P,'B. Zip Code'!B:B,'D.1 Summary'!B8,'B. Zip Code'!D:D,D8) -> 436988.56
B9: 2016 | C9: Medicare and Medicaid Dual Eligibles ages 65 and over | D9: 5 | E9: =SUMIFS('B. Zip Code'!H:H,'B. Zip Code'!B:B,'D.1 Summary'!B9,'B. Zip Code'!D:D,D9) -> 176913 | F9: =IFERROR((SUMIFS('B. Zip Code'!H:H,'B. Zip Code'!B:B,'D.1 Summary'!B9,'B. Zip Code'!D:D,D9)*AVERAGEIFS('B. Zip Code'!I:I,'B. Zip Code'!B:B,'D.1 Summary'!B9,'B. Zip Code'!D:D,D9)),"0") -> 604157.895 | G9: 3.415 | H9: =(SUMIFS('B. Zip Code'!J:J,'B. Zip Code'!B:B,'D.1 Summary'!B9,'B. Zip Code'!D:D,'D.1 Summary'!D9)+SUMIFS('B. Zip Code'!K:K,'B. Zip Code'!B:B,'D.1 Summary'!B9,'B. Zip Code'!D:D,'D.1 Summary'!D9)+SUMIFS('B. Zip Code'!L:L,'B. Zip Code'!B:B,'D.1 Summary'!B9,'B. Zip Code'!D:D,'D.1 Summary'!D9)+SUMIFS('B. Zip Code'!M:M,'B. Zip Code'!B:B,'D.1 Summary'!B9,'B. Zip Code'!D:D,'D.1 Summary'!D9)+SUMIFS('B. Zip Code'!N:N,'B. Zip Code'!B:B,'D.1 Summary'!B9,'B. Zip Code'!D:D,'D.1 Summary'!D9)+SUMIFS('B. Zip Code'!O:O,'B. Zip Code'!B:B,'D.1 Summary'!B9,'B. Zip Code'!D:D,'D.1 Summary'!D9)+SUMIFS('B. Zip Code'!P:P,'B. Zip Code'!B:B,'D.1 Summary'!B9,'B. Zip Code'!P:P,'D.1 Summary'!D9)) -> 435579075.4 | I9: 2462.10892 | J9: 720.9689372 | K9: =SUMIFS('B. Zip Code'!J:J,'B. Zip Code'!B:B,'D.1 Summary'!B9,'B. Zip Code'!D:D,D9) -> 56814261 | L9: =SUMIFS('B. Zip Code'!K:K,'B. Zip Code'!B:B,'D.1 Summary'!B9,'B. Zip Code'!D:D,D9) -> 41577415.56 | M9: =SUMIFS('B. Zip Code'!L:L,'B. Zip Code'!B:B,'D.1 Summary'!B9,'B. Zip Code'!D:D,D9) -> 5801165.77 | N9: =SUMIFS('B. Zip Code'!M:M,'B. Zip Code'!B:B,'D.1 Summary'!B9,'B. Zip Code'!D:D,D9) -> 2266925.87 | O9: =SUMIFS('B. Zip Code'!N:N,'B. Zip Code'!B:B,'D.1 Summary'!B9,'B. Zip Code'!D:D,D9) -> 75656893.98 | P9: =SUMIFS('B. Zip Code'!O:O,'B. Zip Code'!B:B,'D.1 Summary'!B9,'B. Zip Code'!D:D,D9) -> 253462413.3 | Q9: =SUMIFS('B. Zip Code'!P:P,'B. Zip Code'!B:B,'D.1 Summary'!B9,'B. Zip Code'!D:D,D9) -> 61044343.78
B10: 2016 | C10: Medicare and Medicaid Dual Eligibles afes 21-64 | D10: 6 | E10: =SUMIFS('B. Zip Code'!H:H,'B. Zip Code'!B:B,'D.1 Summary'!B10,'B. Zip Code'!D:D,D10) -> 32422 | F10: =IFERROR((SUMIFS('B. Zip Code'!H:H,'B. Zip Code'!B:B,'D.1 Summary'!B10,'B. Zip Code'!D:D,D10)*AVERAGEIFS('B. Zip Code'!I:I,'B. Zip Code'!B:B,'D.1 Summary'!B10,'B. Zip Code'!D:D,D10)),"0") -> 53973.62389 | G10: 1.664722222 | H10: =(SUMIFS('B. Zip Code'!J:J,'B. Zip Code'!B:B,'D.1 Summary'!B10,'B. Zip Code'!D:D,'D.1 Summary'!D10)+SUMIFS('B. Zip Code'!K:K,'B. Zip Code'!B:B,'D.1 Summary'!B10,'B. Zip Code'!D:D,'D.1 Summary'!D10)+SUMIFS('B. Zip Code'!L:L,'B. Zip Code'!B:B,'D.1 Summary'!B10,'B. Zip Code'!D:D,'D.1 Summary'!D10)+SUMIFS('B. Zip Code'!M:M,'B. Zip Code'!B:B,'D.1 Summary'!B10,'B. Zip Code'!D:D,'D.1 Summary'!D10)+SUMIFS('B. Zip Code'!N:N,'B. Zip Code'!B:B,'D.1 Summary'!B10,'B. Zip Code'!D:D,'D.1 Summary'!D10)+SUMIFS('B. Zip Code'!O:O,'B. Zip Code'!B:B,'D.1 Summary'!B10,'B. Zip Code'!D:D,'D.1 Summary'!D10)+SUMIFS('B. Zip Code'!P:P,'B. Zip Code'!B:B,'D.1 Summary'!B10,'B. Zip Code'!P:P,'D.1 Summary'!D10)) -> 72958713.06 | I10: 2250.284161 | J10: 1351.747535 | K10: =SUMIFS('B. Zip Code'!J:J,'B. Zip Code'!B:B,'D.1 Summary'!B10,'B. Zip Code'!D:D,D10) -> 19504180 | L10: =SUMIFS('B. Zip Code'!K:K,'B. Zip Code'!B:B,'D.1 Summary'!B10,'B. Zip Code'!D:D,D10) -> 12027162.46 | M10: =SUMIFS('B. Zip Code'!L:L,'B. Zip Code'!B:B,'D.1 Summary'!B10,'B. Zip Code'!D:D,D10) -> 5228848.31 | N10: =SUMIFS('B. Zip Code'!M:M,'B. Zip Code'!B:B,'D.1 Summary'!B10,'B. Zip Code'!D:D,D10) -> 3118472.15 | O10: =SUMIFS('B. Zip Code'!N:N,'B. Zip Code'!B:B,'D.1 Summary'!B10,'B. Zip Code'!D:D,D10) -> 20527641.69 | P10: =SUMIFS('B. Zip Code'!O:O,'B. Zip Code'!B:B,'D.1 Summary'!B10,'B. Zip Code'!D:D,D10) -> 12552408.45 | Q10: =SUMIFS('B. Zip Code'!P:P,'B. Zip Code'!B:B,'D.1 Summary'!B10,'B. Zip Code'!D:D,D10) -> 0
B11: 2016 | C11: Other | D11: 7 | E11: =SUMIFS('B. Zip Code'!H:H,'B. Zip Code'!B:B,'D.1 Summary'!B11,'B. Zip Code'!D:D,D11) -> 0 | F11: =IFERROR((SUMIFS('B. Zip Code'!H:H,'B. Zip Code'!B:B,'D.1 Summary'!B11,'B. Zip Code'!D:D,D11)*AVERAGEIFS('B. Zip Code'!I:I,'B. Zip Code'!B:B,'D.1 Summary'!B11,'B. Zip Code'!D:D,D11)),"0") -> 0 | G11: 0 | H11: =(SUMIFS('B. Zip Code'!J:J,'B. Zip Code'!B:B,'D.1 Summary'!B11,'B. Zip Code'!D:D,'D.1 Summary'!D11)+SUMIFS('B. Zip Code'!K:K,'B. Zip Code'!B:B,'D.1 Summary'!B11,'B. Zip Code'!D:D,'D.1 Summary'!D11)+SUMIFS('B. Zip Code'!L:L,'B. Zip Code'!B:B,'D.1 Summary'!B11,'B. Zip Code'!D:D,'D.1 Summary'!D11)+SUMIFS('B. Zip Code'!M:M,'B. Zip Code'!B:B,'D.1 Summary'!B11,'B. Zip Code'!D:D,'D.1 Summary'!D11)+SUMIFS('B. Zip Code'!N:N,'B. Zip Code'!B:B,'D.1 Summary'!B11,'B. Zip Code'!D:D,'D.1 Summary'!D11)+SUMIFS('B. Zip Code'!O:O,'B. Zip Code'!B:B,'D.1 Summary'!B11,'B. Zip Code'!D:D,'D.1 Summary'!D11)+SUMIFS('B. Zip Code'!P:P,'B. Zip Code'!B:B,'D.1 Summary'!B11,'B. Zip Code'!P:P,'D.1 Summary'!D11)) -> 0 | I11: 0 | J11: 0 | K11: =SUMIFS('B. Zip Code'!J:J,'B. Zip Code'!B:B,'D.1 Summary'!B11,'B. Zip Code'!D:D,D11) -> 0 | L11: =SUMIFS('B. Zip Code'!K:K,'B. Zip Code'!B:B,'D.1 Summary'!B11,'B. Zip Code'!D:D,D11) -> 0 | M11: =SUMIFS('B. Zip Code'!L:L,'B. Zip Code'!B:B,'D.1 Summary'!B11,'B. Zip Code'!D:D,D11) -> 0 | N11: =SUMIFS('B. Zip Code'!M:M,'B. Zip Code'!B:B,'D.1 Summary'!B11,'B. Zip Code'!D:D,D11) -> 0 | O11: =SUMIFS('B. Zip Code'!N:N,'B. Zip Code'!B:B,'D.1 Summary'!B11,'B. Zip Code'!D:D,D11) -> 0 | P11: =SUMIFS('B. Zip Code'!O:O,'B. Zip Code'!B:B,'D.1 Summary'!B11,'B. Zip Code'!D:D,D11) -> 0 | Q11: =SUMIFS('B. Zip Code'!P:P,'B. Zip Code'!B:B,'D.1 Summary'!B11,'B. Zip Code'!D:D,D11) -> 0
B12: 2017 | C12: Medicare & Medicare Advantage | D12: 1 | E12: =SUMIFS('B. Zip Code'!H:H,'B. Zip Code'!B:B,'D.1 Summary'!B12,'B. Zip Code'!D:D,D12) -> 21703 | F12: =IFERROR((SUMIFS('B. Zip Code'!H:H,'B. Zip Code'!B:B,'D.1 Summary'!B12,'B. Zip Code'!D:D,D12)*AVERAGEIFS('B. Zip Code'!I:I,'B. Zip Code'!B:B,'D.1 Summary'!B12,'B. Zip Code'!D:D,D12)),"0") -> 10254.6675 | G12: 0.4725 | H12: =(SUMIFS('B. Zip Code'!J:J,'B. Zip Code'!B:B,'D.1 Summary'!B12,'B. Zip Code'!D:D,'D.1 Summary'!D12)+SUMIFS('B. Zip Code'!K:K,'B. Zip Code'!B:B,'D.1 Summary'!B12,'B. Zip Code'!D:D,'D.1 Summary'!D12)+SUMIFS('B. Zip Code'!L:L,'B. Zip Code'!B:B,'D.1 Summary'!B12,'B. Zip Code'!D:D,'D.1 Summary'!D12)+SUMIFS('B. Zip Code'!M:M,'B. Zip Code'!B:B,'D.1 Summary'!B12,'B. Zip Code'!D:D,'D.1 Summary'!D12)+SUMIFS('B. Zip Code'!N:N,'B. Zip Code'!B:B,'D.1 Summary'!B12,'B. Zip Code'!D:D,'D.1 Summary'!D12)+SUMIFS('B. Zip Code'!O:O,'B. Zip Code'!B:B,'D.1 Summary'!B12,'B. Zip Code'!D:D,'D.1 Summary'!D12)+SUMIFS('B. Zip Code'!P:P,'B. Zip Code'!B:B,'D.1 Summary'!B12,'B. Zip Code'!P:P,'D.1 Summary'!D12)) -> 24107124.57 | I12: 1110.773836 | J12: 2350.844098 | K12: =SUMIFS('B. Zip Code'!J:J,'B. Zip Code'!B:B,'D.1 Summary'!B12,'B. Zip Code'!D:D,D12) -> 6819544 | L12: =SUMIFS('B. Zip Code'!K:K,'B. Zip Code'!B:B,'D.1 Summary'!B12,'B. Zip Code'!D:D,D12) -> 2814428.36 | M12: =SUMIFS('B. Zip Code'!L:L,'B. Zip Code'!B:B,'D.1 Summary'!B12,'B. Zip Code'!D:D,D12) -> 4531671.6 | N12: =SUMIFS('B. Zip Code'!M:M,'B. Zip Code'!B:B,'D.1 Summary'!B12,'B. Zip Code'!D:D,D12) -> 2660013.33 | O12: =SUMIFS('B. Zip Code'!N:N,'B. Zip Code'!B:B,'D.1 Summary'!B12,'B. Zip Code'!D:D,D12) -> 5174793.84 | P12: =SUMIFS('B. Zip Code'!O:O,'B. Zip Code'!B:B,'D.1 Summary'!B12,'B. Zip Code'!D:D,D12) -> 2106673.44 | Q12: =SUMIFS('B. Zip Code'!P:P,'B. Zip Code'!B:B,'D.1 Summary'!B12,'B. Zip Code'!D:D,D12) -> 29446.41
B13: 2017 | C13: Medicaid & Medicaid Managed Care (MCO) | D13: 2 | E13: =SUMIFS('B. Zip Code'!H:H,'B. Zip Code'!B:B,'D.1 Summary'!B13,'B. Zip Code'!D:D,D13) -> 4033838 | F13: =IFERROR((SUMIFS('B. Zip Code'!H:H,'B. Zip Code'!B:B,'D.1 Summary'!B13,'B. Zip Code'!D:D,D13)*AVERAGEIFS('B. Zip Code'!I:I,'B. Zip Code'!B:B,'D.1 Summary'!B13,'B. Zip Code'!D:D,D13)),"0") -> 8826371.048 | G13: 2.188082677 | H13: =(SUMIFS('B. Zip Code'!J:J,'B. Zip Code'!B:B,'D.1 Summary'!B13,'B. Zip Code'!D:D,'D.1 Summary'!D13)+SUMIFS('B. Zip Code'!K:K,'B. Zip Code'!B:B,'D.1 Summary'!B13,'B. Zip Code'!D:D,'D.1 Summary'!D13)+SUMIFS('B. Zip Code'!L:L,'B. Zip Code'!B:B,'D.1 Summary'!B13,'B. Zip Code'!D:D,'D.1 Summary'!D13)+SUMIFS('B. Zip Code'!M:M,'B. Zip Code'!B:B,'D.1 Summary'!B13,'B. Zip Code'!D:D,'D.1 Summary'!D13)+SUMIFS('B. Zip Code'!N:N,'B. Zip Code'!B:B,'D.1 Summary'!B13,'B. Zip Code'!D:D,'D.1 Summary'!D13)+SUMIFS('B. Zip Code'!O:O,'B. Zip Code'!B:B,'D.1 Summary'!B13,'B. Zip Code'!D:D,'D.1 Summary'!D13)+SUMIFS('B. Zip Code'!P:P,'B. Zip Code'!B:B,'D.1 Summary'!B13,'B. Zip Code'!P:P,'D.1 Summary'!D13)) -> 1855960488 | I13: 460.0979235 | J13: 210.2744692 | K13: =SUMIFS('B. Zip Code'!J:J,'B. Zip Code'!B:B,'D.1 Summary'!B13,'B. Zip Code'!D:D,D13) -> 417320842 | L13: =SUMIFS('B. Zip Code'!K:K,'B. Zip Code'!B:B,'D.1 Summary'!B13,'B. Zip Code'!D:D,D13) -> 418993241.4 | M13: =SUMIFS('B. Zip Code'!L:L,'B. Zip Code'!B:B,'D.1 Summary'!B13,'B. Zip Code'!D:D,D13) -> 253336193.5 | N13: =SUMIFS('B. Zip Code'!M:M,'B. Zip Code'!B:B,'D.1 Summary'!B13,'B. Zip Code'!D:D,D13) -> 75536875.02 | O13: =SUMIFS('B. Zip Code'!N:N,'B. Zip Code'!B:B,'D.1 Summary'!B13,'B. Zip Code'!D:D,D13) -> 528461936.9 | P13: =SUMIFS('B. Zip Code'!O:O,'B. Zip Code'!B:B,'D.1 Summary'!B13,'B. Zip Code'!D:D,D13) -> 162311398.7 | Q13: =SUMIFS('B. Zip Code'!P:P,'B. Zip Code'!B:B,'D.1 Summary'!B13,'B. Zip Code'!D:D,D13) -> 238146630.5
B14: 2017 | C14: Commercial - Full Claims | D14: 3 | E14: =SUMIFS('B. Zip Code'!H:H,'B. Zip Code'!B:B,'D.1 Summary'!B14,'B. Zip Code'!D:D,D14) -> 8079074 | F14: =IFERROR((SUMIFS('B. Zip Code'!H:H,'B. Zip Code'!B:B,'D.1 Summary'!B14,'B. Zip Code'!D:D,D14)*AVERAGEIFS('B. Zip Code'!I:I,'B. Zip Code'!B:B,'D.1 Summary'!B14,'B. Zip Code'!D:D,D14)),"0") -> 4686490.093 | G14: 0.5800776294 | H14: =(SUMIFS('B. Zip Code'!J:J,'B. Zip Code'!B:B,'D.1 Summary'!B14,'B. Zip Code'!D:D,'D.1 Summary'!D14)+SUMIFS('B. Zip Code'!K:K,'B. Zip Code'!B:B,'D.1 Summary'!B14,'B. Zip Code'!D:D,'D.1 Summary'!D14)+SUMIFS('B. Zip Code'!L:L,'B. Zip Code'!B:B,'D.1 Summary'!B14,'B. Zip Code'!D:D,'D.1 Summary'!D14)+SUMIFS('B. Zip Code'!M:M,'B. Zip Code'!B:B,'D.1 Summary'!B14,'B. Zip Code'!D:D,'D.1 Summary'!D14)+SUMIFS('B. Zip Code'!N:N,'B. Zip Code'!B:B,'D.1 Summary'!B14,'B. Zip Code'!D:D,'D.1 Summary'!D14)+SUMIFS('B. Zip Code'!O:O,'B. Zip Code'!B:B,'D.1 Summary'!B14,'B. Zip Code'!D:D,'D.1 Summary'!D14)+SUMIFS('B. Zip Code'!P:P,'B. Zip Code'!B:B,'D.1 Summary'!B14,'B. Zip Code'!P:P,'D.1 Summary'!D14)) -> 3850477629 | I14: 476.5988811 | J14: 821.6122412 | K14: =SUMIFS('B. Zip Code'!J:J,'B. Zip Code'!B:B,'D.1 Summary'!B14,'B. Zip Code'!D:D,D14) -> 672271962 | L14: =SUMIFS('B. Zip Code'!K:K,'B. Zip Code'!B:B,'D.1 Summary'!B14,'B. Zip Code'!D:D,D14) -> 930402476.9 | M14: =SUMIFS('B. Zip Code'!L:L,'B. Zip Code'!B:B,'D.1 Summary'!B14,'B. Zip Code'!D:D,D14) -> 1119962755 | N14: =SUMIFS('B. Zip Code'!M:M,'B. Zip Code'!B:B,'D.1 Summary'!B14,'B. Zip Code'!D:D,D14) -> 199868788.7 | O14: =SUMIFS('B. Zip Code'!N:N,'B. Zip Code'!B:B,'D.1 Summary'!B14,'B. Zip Code'!D:D,D14) -> 710927854 | P14: =SUMIFS('B. Zip Code'!O:O,'B. Zip Code'!B:B,'D.1 Summary'!B14,'B. Zip Code'!D:D,D14) -> 217043791.9 | Q14: =SUMIFS('B. Zip Code'!P:P,'B. Zip Code'!B:B,'D.1 Summary'!B14,'B. Zip Code'!D:D,D14) -> 133189353
B15: 2017 | C15: Commercial - Partial Claims | D15: 4 | E15: =SUMIFS('B. Zip Code'!H:H,'B. Zip Code'!B:B,'D.1 Summary'!B15,'B. Zip Code'!D:D,D15) -> 1805955 | F15: =IFERROR((SUMIFS('B. Zip Code'!H:H,'B. Zip Code'!B:B,'D.1 Summary'!B15,'B. Zip Code'!D:D,D15)*AVERAGEIFS('B. Zip Code'!I:I,'B. Zip Code'!B:B,'D.1 Summary'!B15,'B. Zip Code'!D:D,D15)),"0") -> 1189422.029 | G15: 0.6586111111 | H15: =(SUMIFS('B. Zip Code'!J:J,'B. Zip Code'!B:B,'D.1 Summary'!B15,'B. Zip Code'!D:D,'D.1 Summary'!D15)+SUMIFS('B. Zip Code'!K:K,'B. Zip Code'!B:B,'D.1 Summary'!B15,'B. Zip Code'!D:D,'D.1 Summary'!D15)+SUMIFS('B. Zip Code'!L:L,'B. Zip Code'!B:B,'D.1 Summary'!B15,'B. Zip Code'!D:D,'D.1 Summary'!D15)+SUMIFS('B. Zip Code'!M:M,'B. Zip Code'!B:B,'D.1 Summary'!B15,'B. Zip Code'!D:D,'D.1 Summary'!D15)+SUMIFS('B. Zip Code'!N:N,'B. Zip Code'!B:B,'D.1 Summary'!B15,'B. Zip Code'!D:D,'D.1 Summary'!D15)+SUMIFS('B. Zip Code'!O:O,'B. Zip Code'!B:B,'D.1 Summary'!B15,'B. Zip Code'!D:D,'D.1 Summary'!D15)+SUMIFS('B. Zip Code'!P:P,'B. Zip Code'!B:B,'D.1 Summary'!B15,'B. Zip Code'!P:P,'D.1 Summary'!D15)) -> 676100557.6 | I15: 374.3728707 | J15: 568.4278087 | K15: =SUMIFS('B. Zip Code'!J:J,'B. Zip Code'!B:B,'D.1 Summary'!B15,'B. Zip Code'!D:D,D15) -> 127189388 | L15: =SUMIFS('B. Zip Code'!K:K,'B. Zip Code'!B:B,'D.1 Summary'!B15,'B. Zip Code'!D:D,D15) -> 148716405.3 | M15: =SUMIFS('B. Zip Code'!L:L,'B. Zip Code'!B:B,'D.1 Summary'!B15,'B. Zip Code'!D:D,D15) -> 202237871 | N15: =SUMIFS('B. Zip Code'!M:M,'B. Zip Code'!B:B,'D.1 Summary'!B15,'B. Zip Code'!D:D,D15) -> 30994344.53 | O15: =SUMIFS('B. Zip Code'!N:N,'B. Zip Code'!B:B,'D.1 Summary'!B15,'B. Zip Code'!D:D,D15) -> 79969501.72 | P15: =SUMIFS('B. Zip Code'!O:O,'B. Zip Code'!B:B,'D.1 Summary'!B15,'B. Zip Code'!D:D,D15) -> 86993047.07 | Q15: =SUMIFS('B. Zip Code'!P:P,'B. Zip Code'!B:B,'D.1 Summary'!B15,'B. Zip Code'!D:D,D15) -> 526204.17
B16: 2017 | C16: Medicare and Medicaid Dual Eligibles ages 65 and over | D16: 5 | E16: =SUMIFS('B. Zip Code'!H:H,'B. Zip Code'!B:B,'D.1 Summary'!B16,'B. Zip Code'!D:D,D16) -> 197019 | F16: =IFERROR((SUMIFS('B. Zip Code'!H:H,'B. Zip Code'!B:B,'D.1 Summary'!B16,'B. Zip Code'!D:D,D16)*AVERAGEIFS('B. Zip Code'!I:I,'B. Zip Code'!B:B,'D.1 Summary'!B16,'B. Zip Code'!D:D,D16)),"0") -> 683655.93 | G16: 3.47 | H16: =(SUMIFS('B. Zip Code'!J:J,'B. Zip Code'!B:B,'D.1 Summary'!B16,'B. Zip Code'!D:D,'D.1 Summary'!D16)+SUMIFS('B. Zip Code'!K:K,'B. Zip Code'!B:B,'D.1 Summary'!B16,'B. Zip Code'!D:D,'D.1 Summary'!D16)+SUMIFS('B. Zip Code'!L:L,'B. Zip Code'!B:B,'D.1 Summary'!B16,'B. Zip Code'!D:D,'D.1 Summary'!D16)+SUMIFS('B. Zip Code'!M:M,'B. Zip Code'!B:B,'D.1 Summary'!B16,'B. Zip Code'!D:D,'D.1 Summary'!D16)+SUMIFS('B. Zip Code'!N:N,'B. Zip Code'!B:B,'D.1 Summary'!B16,'B. Zip Code'!D:D,'D.1 Summary'!D16)+SUMIFS('B. Zip Code'!O:O,'B. Zip Code'!B:B,'D.1 Summary'!B16,'B. Zip Code'!D:D,'D.1 Summary'!D16)+SUMIFS('B. Zip Code'!P:P,'B. Zip Code'!B:B,'D.1 Summary'!B16,'B. Zip Code'!P:P,'D.1 Summary'!D16)) -> 485627132.2 | I16: 2464.874617 | J16: 710.3385064 | K16: =SUMIFS('B. Zip Code'!J:J,'B. Zip Code'!B:B,'D.1 Summary'!B16,'B. Zip Code'!D:D,D16) -> 64062020 | L16: =SUMIFS('B. Zip Code'!K:K,'B. Zip Code'!B:B,'D.1 Summary'!B16,'B. Zip Code'!D:D,D16) -> 43673282.34 | M16: =SUMIFS('B. Zip Code'!L:L,'B. Zip Code'!B:B,'D.1 Summary'!B16,'B. Zip Code'!D:D,D16) -> 5844364.89 | N16: =SUMIFS('B. Zip Code'!M:M,'B. Zip Code'!B:B,'D.1 Summary'!B16,'B. Zip Code'!D:D,D16) -> 1971769.09 | O16: =SUMIFS('B. Zip Code'!N:N,'B. Zip Code'!B:B,'D.1 Summary'!B16,'B. Zip Code'!D:D,D16) -> 88743359.72 | P16: =SUMIFS('B. Zip Code'!O:O,'B. Zip Code'!B:B,'D.1 Summary'!B16,'B. Zip Code'!D:D,D16) -> 281332336.2 | Q16: =SUMIFS('B. Zip Code'!P:P,'B. Zip Code'!B:B,'D.1 Summary'!B16,'B. Zip Code'!D:D,D16) -> 58880670.58
B17: 2017 | C17: Medicare and Medicaid Dual Eligibles afes 21-64 | D17: 6 | E17: =SUMIFS('B. Zip Code'!H:H,'B. Zip Code'!B:B,'D.1 Summary'!B17,'B. Zip Code'!D:D,D17) -> 38641 | F17: =IFERROR((SUMIFS('B. Zip Code'!H:H,'B. Zip Code'!B:B,'D.1 Summary'!B17,'B. Zip Code'!D:D,D17)*AVERAGEIFS('B. Zip Code'!I:I,'B. Zip Code'!B:B,'D.1 Summary'!B17,'B. Zip Code'!D:D,D17)),"0") -> 66197.75759 | G17: 1.713148148 | H17: =(SUMIFS('B. Zip Code'!J:J,'B. Zip Code'!B:B,'D.1 Summary'!B17,'B. Zip Code'!D:D,'D.1 Summary'!D17)+SUMIFS('B. Zip Code'!K:K,'B. Zip Code'!B:B,'D.1 Summary'!B17,'B. Zip Code'!D:D,'D.1 Summary'!D17)+SUMIFS('B. Zip Code'!L:L,'B. Zip Code'!B:B,'D.1 Summary'!B17,'B. Zip Code'!D:D,'D.1 Summary'!D17)+SUMIFS('B. Zip Code'!M:M,'B. Zip Code'!B:B,'D.1 Summary'!B17,'B. Zip Code'!D:D,'D.1 Summary'!D17)+SUMIFS('B. Zip Code'!N:N,'B. Zip Code'!B:B,'D.1 Summary'!B17,'B. Zip Code'!D:D,'D.1 Summary'!D17)+SUMIFS('B. Zip Code'!O:O,'B. Zip Code'!B:B,'D.1 Summary'!B17,'B. Zip Code'!D:D,'D.1 Summary'!D17)+SUMIFS('B. Zip Code'!P:P,'B. Zip Code'!B:B,'D.1 Summary'!B17,'B. Zip Code'!P:P,'D.1 Summary'!D17)) -> 83125760.4 | I17: 2151.232121 | J17: 1255.718674 | K17: =SUMIFS('B. Zip Code'!J:J,'B. Zip Code'!B:B,'D.1 Summary'!B17,'B. Zip Code'!D:D,D17) -> 19912600 | L17: =SUMIFS('B. Zip Code'!K:K,'B. Zip Code'!B:B,'D.1 Summary'!B17,'B. Zip Code'!D:D,D17) -> 13212999.83 | M17: =SUMIFS('B. Zip Code'!L:L,'B. Zip Code'!B:B,'D.1 Summary'!B17,'B. Zip Code'!D:D,D17) -> 6425525.863 | N17: =SUMIFS('B. Zip Code'!M:M,'B. Zip Code'!B:B,'D.1 Summary'!B17,'B. Zip Code'!D:D,D17) -> 3938421.272 | O17: =SUMIFS('B. Zip Code'!N:N,'B. Zip Code'!B:B,'D.1 Summary'!B17,'B. Zip Code'!D:D,D17) -> 23651298.48 | P17: =SUMIFS('B. Zip Code'!O:O,'B. Zip Code'!B:B,'D.1 Summary'!B17,'B. Zip Code'!D:D,D17) -> 15984914.96 | Q17: =SUMIFS('B. Zip Code'!P:P,'B. Zip Code'!B:B,'D.1 Summary'!B17,'B. Zip Code'!D:D,D17) -> 0
B18: 2017 | C18: Other | D18: 7 | E18: =SUMIFS('B. Zip Code'!H:H,'B. Zip Code'!B:B,'D.1 Summary'!B18,'B. Zip Code'!D:D,D18) -> 0 | F18: =IFERROR((SUMIFS('B. Zip Code'!H:H,'B. Zip Code'!B:B,'D.1 Summary'!B18,'B. Zip Code'!D:D,D18)*AVERAGEIFS('B. Zip Code'!I:I,'B. Zip Code'!B:B,'D.1 Summary'!B18,'B. Zip Code'!D:D,D18)),"0") -> 0 | G18: 0 | H18: =(SUMIFS('B. Zip Code'!J:J,'B. Zip Code'!B:B,'D.1 Summary'!B18,'B. Zip Code'!D:D,'D.1 Summary'!D18)+SUMIFS('B. Zip Code'!K:K,'B. Zip Code'!B:B,'D.1 Summary'!B18,'B. Zip Code'!D:D,'D.1 Summary'!D18)+SUMIFS('B. Zip Code'!L:L,'B. Zip Code'!B:B,'D.1 Summary'!B18,'B. Zip Code'!D:D,'D.1 Summary'!D18)+SUMIFS('B. Zip Code'!M:M,'B. Zip Code'!B:B,'D.1 Summary'!B18,'B. Zip Code'!D:D,'D.1 Summary'!D18)+SUMIFS('B. Zip Code'!N:N,'B. Zip Code'!B:B,'D.1 Summary'!B18,'B. Zip Code'!D:D,'D.1 Summary'!D18)+SUMIFS('B. Zip Code'!O:O,'B. Zip Code'!B:B,'D.1 Summary'!B18,'B. Zip Code'!D:D,'D.1 Summary'!D18)+SUMIFS('B. Zip Code'!P:P,'B. Zip Code'!B:B,'D.1 Summary'!B18,'B. Zip Code'!P:P,'D.1 Summary'!D18)) -> 0 | I18: 0 | J18: 0 | K18: =SUMIFS('B. Zip Code'!J:J,'B. Zip Code'!B:B,'D.1 Summary'!B18,'B. Zip Code'!D:D,D18) -> 0 | L18: =SUMIFS('B. Zip Code'!K:K,'B. Zip Code'!B:B,'D.1 Summary'!B18,'B. Zip Code'!D:D,D18) -> 0 | M18: =SUMIFS('B. Zip Code'!L:L,'B. Zip Code'!B:B,'D.1 Summary'!B18,'B. Zip Code'!D:D,D18) -> 0 | N18: =SUMIFS('B. Zip Code'!M:M,'B. Zip Code'!B:B,'D.1 Summary'!B18,'B. Zip Code'!D:D,D18) -> 0 | O18: =SUMIFS('B. Zip Code'!N:N,'B. Zip Code'!B:B,'D.1 Summary'!B18,'B. Zip Code'!D:D,D18) -> 0 | P18: =SUMIFS('B. Zip Code'!O:O,'B. Zip Code'!B:B,'D.1 Summary'!B18,'B. Zip Code'!D:D,D18) -> 0 | Q18: =SUMIFS('B. Zip Code'!P:P,'B. Zip Code'!B:B,'D.1 Summary'!B18,'B. Zip Code'!D:D,D18) -> 0
B19: 2018 | C19: Medicare & Medicare Advantage | D19: 1 | E19: =SUMIFS('B. Zip Code'!H:H,'B. Zip Code'!B:B,'D.1 Summary'!B19,'B. Zip Code'!D:D,D19) -> 21920.03 | F19: =IFERROR((SUMIFS('B. Zip Code'!H:H,'B. Zip Code'!B:B,'D.1 Summary'!B19,'B. Zip Code'!D:D,D19)*AVERAGEIFS('B. Zip Code'!I:I,'B. Zip Code'!B:B,'D.1 Summary'!B19,'B. Zip Code'!D:D,D19)),"0") -> 10460.78632 | G19: 0.477225 | H19: =(SUMIFS('B. Zip Code'!J:J,'B. Zip Code'!B:B,'D.1 Summary'!B19,'B. Zip Code'!D:D,'D.1 Summary'!D19)+SUMIFS('B. Zip Code'!K:K,'B. Zip Code'!B:B,'D.1 Summary'!B19,'B. Zip Code'!D:D,'D.1 Summary'!D19)+SUMIFS('B. Zip Code'!L:L,'B. Zip Code'!B:B,'D.1 Summary'!B19,'B. Zip Code'!D:D,'D.1 Summary'!D19)+SUMIFS('B. Zip Code'!M:M,'B. Zip Code'!B:B,'D.1 Summary'!B19,'B. Zip Code'!D:D,'D.1 Summary'!D19)+SUMIFS('B. Zip Code'!N:N,'B. Zip Code'!B:B,'D.1 Summary'!B19,'B. Zip Code'!D:D,'D.1 Summary'!D19)+SUMIFS('B. Zip Code'!O:O,'B. Zip Code'!B:B,'D.1 Summary'!B19,'B. Zip Code'!D:D,'D.1 Summary'!D19)+SUMIFS('B. Zip Code'!P:P,'B. Zip Code'!B:B,'D.1 Summary'!B19,'B. Zip Code'!P:P,'D.1 Summary'!D19)) -> 24348195.82 | I19: 1110.773836 | J19: 2327.568414 | K19: =SUMIFS('B. Zip Code'!J:J,'B. Zip Code'!B:B,'D.1 Summary'!B19,'B. Zip Code'!D:D,D19) -> 6887739.44 | L19: =SUMIFS('B. Zip Code'!K:K,'B. Zip Code'!B:B,'D.1 Summary'!B19,'B. Zip Code'!D:D,D19) -> 2842572.644 | M19: =SUMIFS('B. Zip Code'!L:L,'B. Zip Code'!B:B,'D.1 Summary'!B19,'B. Zip Code'!D:D,D19) -> 4576988.316 | N19: =SUMIFS('B. Zip Code'!M:M,'B. Zip Code'!B:B,'D.1 Summary'!B19,'B. Zip Code'!D:D,D19) -> 2686613.463 | O19: =SUMIFS('B. Zip Code'!N:N,'B. Zip Code'!B:B,'D.1 Summary'!B19,'B. Zip Code'!D:D,D19) -> 5226541.778 | P19: =SUMIFS('B. Zip Code'!O:O,'B. Zip Code'!B:B,'D.1 Summary'!B19,'B. Zip Code'!D:D,D19) -> 2127740.174 | Q19: =SUMIFS('B. Zip Code'!P:P,'B. Zip Code'!B:B,'D.1 Summary'!B19,'B. Zip Code'!D:D,D19) -> 29740.8741
B20: 2018 | C20: Medicaid & Medicaid Managed Care (MCO) | D20: 2 | E20: =SUMIFS('B. Zip Code'!H:H,'B. Zip Code'!B:B,'D.1 Summary'!B20,'B. Zip Code'!D:D,D20) -> 4235529.9 | F20: =IFERROR((SUMIFS('B. Zip Code'!H:H,'B. Zip Code'!B:B,'D.1 Summary'!B20,'B. Zip Code'!D:D,D20)*AVERAGEIFS('B. Zip Code'!I:I,'B. Zip Code'!B:B,'D.1 Summary'!B20,'B. Zip Code'!D:D,D20)),"0") -> 9731074.08 | G20: 2.29748681 | H20: =(SUMIFS('B. Zip Code'!J:J,'B. Zip Code'!B:B,'D.1 Summary'!B20,'B. Zip Code'!D:D,'D.1 Summary'!D20)+SUMIFS('B. Zip Code'!K:K,'B. Zip Code'!B:B,'D.1 Summary'!B20,'B. Zip Code'!D:D,'D.1 Summary'!D20)+SUMIFS('B. Zip Code'!L:L,'B. Zip Code'!B:B,'D.1 Summary'!B20,'B. Zip Code'!D:D,'D.1 Summary'!D20)+SUMIFS('B. Zip Code'!M:M,'B. Zip Code'!B:B,'D.1 Summary'!B20,'B. Zip Code'!D:D,'D.1 Summary'!D20)+SUMIFS('B. Zip Code'!N:N,'B. Zip Code'!B:B,'D.1 Summary'!B20,'B. Zip Code'!D:D,'D.1 Summary'!D20)+SUMIFS('B. Zip Code'!O:O,'B. Zip Code'!B:B,'D.1 Summary'!B20,'B. Zip Code'!D:D,'D.1 Summary'!D20)+SUMIFS('B. Zip Code'!P:P,'B. Zip Code'!B:B,'D.1 Summary'!B20,'B. Zip Code'!P:P,'D.1 Summary'!D20)) -> 1943072994 | I20: 458.7555843 | J20: 199.6771351 | K20: =SUMIFS('B. Zip Code'!J:J,'B. Zip Code'!B:B,'D.1 Summary'!B20,'B. Zip Code'!D:D,D20) -> 438186884.1 | L20: =SUMIFS('B. Zip Code'!K:K,'B. Zip Code'!B:B,'D.1 Summary'!B20,'B. Zip Code'!D:D,D20) -> 439942903.5 | M20: =SUMIFS('B. Zip Code'!L:L,'B. Zip Code'!B:B,'D.1 Summary'!B20,'B. Zip Code'!D:D,D20) -> 262643003.1 | N20: =SUMIFS('B. Zip Code'!M:M,'B. Zip Code'!B:B,'D.1 Summary'!B20,'B. Zip Code'!D:D,D20) -> 76988201.12 | O20: =SUMIFS('B. Zip Code'!N:N,'B. Zip Code'!B:B,'D.1 Summary'!B20,'B. Zip Code'!D:D,D20) -> 554885033.7 | P20: =SUMIFS('B. Zip Code'!O:O,'B. Zip Code'!B:B,'D.1 Summary'!B20,'B. Zip Code'!D:D,D20) -> 170426968.6 | Q20: =SUMIFS('B. Zip Code'!P:P,'B. Zip Code'!B:B,'D.1 Summary'!B20,'B. Zip Code'!D:D,D20) -> 250053962
B21: 2018 | C21: Commercial - Full Claims | D21: 3 | E21: =SUMIFS('B. Zip Code'!H:H,'B. Zip Code'!B:B,'D.1 Summary'!B21,'B. Zip Code'!D:D,D21) -> 8483027.7 | F21: =IFERROR((SUMIFS('B. Zip Code'!H:H,'B. Zip Code'!B:B,'D.1 Summary'!B21,'B. Zip Code'!D:D,D21)*AVERAGEIFS('B. Zip Code'!I:I,'B. Zip Code'!B:B,'D.1 Summary'!B21,'B. Zip Code'!D:D,D21)),"0") -> 5166855.328 | G21: 0.6090815108 | H21: =(SUMIFS('B. Zip Code'!J:J,'B. Zip Code'!B:B,'D.1 Summary'!B21,'B. Zip Code'!D:D,'D.1 Summary'!D21)+SUMIFS('B. Zip Code'!K:K,'B. Zip Code'!B:B,'D.1 Summary'!B21,'B. Zip Code'!D:D,'D.1 Summary'!D21)+SUMIFS('B. Zip Code'!L:L,'B. Zip Code'!B:B,'D.1 Summary'!B21,'B. Zip Code'!D:D,'D.1 Summary'!D21)+SUMIFS('B. Zip Code'!M:M,'B. Zip Code'!B:B,'D.1 Summary'!B21,'B. Zip Code'!D:D,'D.1 Summary'!D21)+SUMIFS('B. Zip Code'!N:N,'B. Zip Code'!B:B,'D.1 Summary'!B21,'B. Zip Code'!D:D,'D.1 Summary'!D21)+SUMIFS('B. Zip Code'!O:O,'B. Zip Code'!B:B,'D.1 Summary'!B21,'B. Zip Code'!D:D,'D.1 Summary'!D21)+SUMIFS('B. Zip Code'!P:P,'B. Zip Code'!B:B,'D.1 Summary'!B21,'B. Zip Code'!P:P,'D.1 Summary'!D21)) -> 4043001500 | I21: 476.5988799 | J21: 782.4878467 | K21: =SUMIFS('B. Zip Code'!J:J,'B. Zip Code'!B:B,'D.1 Summary'!B21,'B. Zip Code'!D:D,D21) -> 705885560.1 | L21: =SUMIFS('B. Zip Code'!K:K,'B. Zip Code'!B:B,'D.1 Summary'!B21,'B. Zip Code'!D:D,D21) -> 976922600.7 | M21: =SUMIFS('B. Zip Code'!L:L,'B. Zip Code'!B:B,'D.1 Summary'!B21,'B. Zip Code'!D:D,D21) -> 1175960893 | N21: =SUMIFS('B. Zip Code'!M:M,'B. Zip Code'!B:B,'D.1 Summary'!B21,'B. Zip Code'!D:D,D21) -> 209862228.1 | O21: =SUMIFS('B. Zip Code'!N:N,'B. Zip Code'!B:B,'D.1 Summary'!B21,'B. Zip Code'!D:D,D21) -> 746474236.2 | P21: =SUMIFS('B. Zip Code'!O:O,'B. Zip Code'!B:B,'D.1 Summary'!B21,'B. Zip Code'!D:D,D21) -> 227895981.5 | Q21: =SUMIFS('B. Zip Code'!P:P,'B. Zip Code'!B:B,'D.1 Summary'!B21,'B. Zip Code'!D:D,D21) -> 139848820.7
B22: 2018 | C22: Commercial - Partial Claims | D22: 4 | E22: =SUMIFS('B. Zip Code'!H:H,'B. Zip Code'!B:B,'D.1 Summary'!B22,'B. Zip Code'!D:D,D22) -> 1878193.2 | F22: =IFERROR((SUMIFS('B. Zip Code'!H:H,'B. Zip Code'!B:B,'D.1 Summary'!B22,'B. Zip Code'!D:D,D22)*AVERAGEIFS('B. Zip Code'!I:I,'B. Zip Code'!B:B,'D.1 Summary'!B22,'B. Zip Code'!D:D,D22)),"0") -> 1286478.867 | G22: 0.6849555556 | H22: =(SUMIFS('B. Zip Code'!J:J,'B. Zip Code'!B:B,'D.1 Summary'!B22,'B. Zip Code'!D:D,'D.1 Summary'!D22)+SUMIFS('B. Zip Code'!K:K,'B. Zip Code'!B:B,'D.1 Summary'!B22,'B. Zip Code'!D:D,'D.1 Summary'!D22)+SUMIFS('B. Zip Code'!L:L,'B. Zip Code'!B:B,'D.1 Summary'!B22,'B. Zip Code'!D:D,'D.1 Summary'!D22)+SUMIFS('B. Zip Code'!M:M,'B. Zip Code'!B:B,'D.1 Summary'!B22,'B. Zip Code'!D:D,'D.1 Summary'!D22)+SUMIFS('B. Zip Code'!N:N,'B. Zip Code'!B:B,'D.1 Summary'!B22,'B. Zip Code'!D:D,'D.1 Summary'!D22)+SUMIFS('B. Zip Code'!O:O,'B. Zip Code'!B:B,'D.1 Summary'!B22,'B. Zip Code'!D:D,'D.1 Summary'!D22)+SUMIFS('B. Zip Code'!P:P,'B. Zip Code'!B:B,'D.1 Summary'!B22,'B. Zip Code'!P:P,'D.1 Summary'!D22)) -> 703143351.7 | I22: 374.3722167 | J22: 546.5642459 | K22: =SUMIFS('B. Zip Code'!J:J,'B. Zip Code'!B:B,'D.1 Summary'!B22,'B. Zip Code'!D:D,D22) -> 132275923.5 | L22: =SUMIFS('B. Zip Code'!K:K,'B. Zip Code'!B:B,'D.1 Summary'!B22,'B. Zip Code'!D:D,D22) -> 154664873.3 | M22: =SUMIFS('B. Zip Code'!L:L,'B. Zip Code'!B:B,'D.1 Summary'!B22,'B. Zip Code'!D:D,D22) -> 210327385.8 | N22: =SUMIFS('B. Zip Code'!M:M,'B. Zip Code'!B:B,'D.1 Summary'!B22,'B. Zip Code'!D:D,D22) -> 32234118.31 | O22: =SUMIFS('B. Zip Code'!N:N,'B. Zip Code'!B:B,'D.1 Summary'!B22,'B. Zip Code'!D:D,D22) -> 83168281.79 | P22: =SUMIFS('B. Zip Code'!O:O,'B. Zip Code'!B:B,'D.1 Summary'!B22,'B. Zip Code'!D:D,D22) -> 90472768.95 | Q22: =SUMIFS('B. Zip Code'!P:P,'B. Zip Code'!B:B,'D.1 Summary'!B22,'B. Zip Code'!D:D,D22) -> 547252.3368
B23: 2018 | C23: Medicare and Medicaid Dual Eligibles ages 65 and over | D23: 5 | E23: =SUMIFS('B. Zip Code'!H:H,'B. Zip Code'!B:B,'D.1 Summary'!B23,'B. Zip Code'!D:D,D23) -> 212295.6 | F23: =IFERROR((SUMIFS('B. Zip Code'!H:H,'B. Zip Code'!B:B,'D.1 Summary'!B23,'B. Zip Code'!D:D,D23)*AVERAGEIFS('B. Zip Code'!I:I,'B. Zip Code'!B:B,'D.1 Summary'!B23,'B. Zip Code'!D:D,D23)),"0") -> 869987.3688 | G23: 4.098 | H23: =(SUMIFS('B. Zip Code'!J:J,'B. Zip Code'!B:B,'D.1 Summary'!B23,'B. Zip Code'!D:D,'D.1 Summary'!D23)+SUMIFS('B. Zip Code'!K:K,'B. Zip Code'!B:B,'D.1 Summary'!B23,'B. Zip Code'!D:D,'D.1 Summary'!D23)+SUMIFS('B. Zip Code'!L:L,'B. Zip Code'!B:B,'D.1 Summary'!B23,'B. Zip Code'!D:D,'D.1 Summary'!D23)+SUMIFS('B. Zip Code'!M:M,'B. Zip Code'!B:B,'D.1 Summary'!B23,'B. Zip Code'!D:D,'D.1 Summary'!D23)+SUMIFS('B. Zip Code'!N:N,'B. Zip Code'!B:B,'D.1 Summary'!B23,'B. Zip Code'!D:D,'D.1 Summary'!D23)+SUMIFS('B. Zip Code'!O:O,'B. Zip Code'!B:B,'D.1 Summary'!B23,'B. Zip Code'!D:D,'D.1 Summary'!D23)+SUMIFS('B. Zip Code'!P:P,'B. Zip Code'!B:B,'D.1 Summary'!B23,'B. Zip Code'!P:P,'D.1 Summary'!D23)) -> 522694890.5 | I23: 2462.10892 | J23: 600.8074476 | K23: =SUMIFS('B. Zip Code'!J:J,'B. Zip Code'!B:B,'D.1 Summary'!B23,'B. Zip Code'!D:D,D23) -> 68177113.2 | L23: =SUMIFS('B. Zip Code'!K:K,'B. Zip Code'!B:B,'D.1 Summary'!B23,'B. Zip Code'!D:D,D23) -> 49892898.67 | M23: =SUMIFS('B. Zip Code'!L:L,'B. Zip Code'!B:B,'D.1 Summary'!B23,'B. Zip Code'!D:D,D23) -> 6961398.924 | N23: =SUMIFS('B. Zip Code'!M:M,'B. Zip Code'!B:B,'D.1 Summary'!B23,'B. Zip Code'!D:D,D23) -> 2720311.044 | O23: =SUMIFS('B. Zip Code'!N:N,'B. Zip Code'!B:B,'D.1 Summary'!B23,'B. Zip Code'!D:D,D23) -> 90788272.78 | P23: =SUMIFS('B. Zip Code'!O:O,'B. Zip Code'!B:B,'D.1 Summary'!B23,'B. Zip Code'!D:D,D23) -> 304154895.9 | Q23: =SUMIFS('B. Zip Code'!P:P,'B. Zip Code'!B:B,'D.1 Summary'!B23,'B. Zip Code'!D:D,D23) -> 73253212.54
B24: 2018 | C24: Medicare and Medicaid Dual Eligibles afes 21-64 | D24: 6 | E24: =SUMIFS('B. Zip Code'!H:H,'B. Zip Code'!B:B,'D.1 Summary'!B24,'B. Zip Code'!D:D,D24) -> 46372.2 | F24: =IFERROR((SUMIFS('B. Zip Code'!H:H,'B. Zip Code'!B:B,'D.1 Summary'!B24,'B. Zip Code'!D:D,D24)*AVERAGEIFS('B. Zip Code'!I:I,'B. Zip Code'!B:B,'D.1 Summary'!B24,'B. Zip Code'!D:D,D24)),"0") -> 95330.93827 | G24: 2.055777778 | H24: =(SUMIFS('B. Zip Code'!J:J,'B. Zip Code'!B:B,'D.1 Summary'!B24,'B. Zip Code'!D:D,'D.1 Summary'!D24)+SUMIFS('B. Zip Code'!K:K,'B. Zip Code'!B:B,'D.1 Summary'!B24,'B. Zip Code'!D:D,'D.1 Summary'!D24)+SUMIFS('B. Zip Code'!L:L,'B. Zip Code'!B:B,'D.1 Summary'!B24,'B. Zip Code'!D:D,'D.1 Summary'!D24)+SUMIFS('B. Zip Code'!M:M,'B. Zip Code'!B:B,'D.1 Summary'!B24,'B. Zip Code'!D:D,'D.1 Summary'!D24)+SUMIFS('B. Zip Code'!N:N,'B. Zip Code'!B:B,'D.1 Summary'!B24,'B. Zip Code'!D:D,'D.1 Summary'!D24)+SUMIFS('B. Zip Code'!O:O,'B. Zip Code'!B:B,'D.1 Summary'!B24,'B. Zip Code'!D:D,'D.1 Summary'!D24)+SUMIFS('B. Zip Code'!P:P,'B. Zip Code'!B:B,'D.1 Summary'!B24,'B. Zip Code'!P:P,'D.1 Summary'!D24)) -> 99750865.68 | I24: 2151.09194 | J24: 1046.36404 | K24: =SUMIFS('B. Zip Code'!J:J,'B. Zip Code'!B:B,'D.1 Summary'!B24,'B. Zip Code'!D:D,D24) -> 23895073.2 | L24: =SUMIFS('B. Zip Code'!K:K,'B. Zip Code'!B:B,'D.1 Summary'!B24,'B. Zip Code'!D:D,D24) -> 15855599.8 | M24: =SUMIFS('B. Zip Code'!L:L,'B. Zip Code'!B:B,'D.1 Summary'!B24,'B. Zip Code'!D:D,D24) -> 7710631.036 | N24: =SUMIFS('B. Zip Code'!M:M,'B. Zip Code'!B:B,'D.1 Summary'!B24,'B. Zip Code'!D:D,D24) -> 4726105.526 | O24: =SUMIFS('B. Zip Code'!N:N,'B. Zip Code'!B:B,'D.1 Summary'!B24,'B. Zip Code'!D:D,D24) -> 28381558.18 | P24: =SUMIFS('B. Zip Code'!O:O,'B. Zip Code'!B:B,'D.1 Summary'!B24,'B. Zip Code'!D:D,D24) -> 19181897.95 | Q24: =SUMIFS('B. Zip Code'!P:P,'B. Zip Code'!B:B,'D.1 Summary'!B24,'B. Zip Code'!D:D,D24) -> 0
B25: 2018 | C25: Other | D25: 7 | E25: =SUMIFS('B. Zip Code'!H:H,'B. Zip Code'!B:B,'D.1 Summary'!B25,'B. Zip Code'!D:D,D25) -> 0 | F25: =IFERROR((SUMIFS('B. Zip Code'!H:H,'B. Zip Code'!B:B,'D.1 Summary'!B25,'B. Zip Code'!D:D,D25)*AVERAGEIFS('B. Zip Code'!I:I,'B. Zip Code'!B:B,'D.1 Summary'!B25,'B. Zip Code'!D:D,D25)),"0") -> 0 | G25: 0 | H25: =(SUMIFS('B. Zip Code'!J:J,'B. Zip Code'!B:B,'D.1 Summary'!B25,'B. Zip Code'!D:D,'D.1 Summary'!D25)+SUMIFS('B. Zip Code'!K:K,'B. Zip Code'!B:B,'D.1 Summary'!B25,'B. Zip Code'!D:D,'D.1 Summary'!D25)+SUMIFS('B. Zip Code'!L:L,'B. Zip Code'!B:B,'D.1 Summary'!B25,'B. Zip Code'!D:D,'D.1 Summary'!D25)+SUMIFS('B. Zip Code'!M:M,'B. Zip Code'!B:B,'D.1 Summary'!B25,'B. Zip Code'!D:D,'D.1 Summary'!D25)+SUMIFS('B. Zip Code'!N:N,'B. Zip Code'!B:B,'D.1 Summary'!B25,'B. Zip Code'!D:D,'D.1 Summary'!D25)+SUMIFS('B. Zip Code'!O:O,'B. Zip Code'!B:B,'D.1 Summary'!B25,'B. Zip Code'!D:D,'D.1 Summary'!D25)+SUMIFS('B. Zip Code'!P:P,'B. Zip Code'!B:B,'D.1 Summary'!B25,'B. Zip Code'!P:P,'D.1 Summary'!D25)) -> 0 | I25: 0 | J25: 0 | K25: =SUMIFS('B. Zip Code'!J:J,'B. Zip Code'!B:B,'D.1 Summary'!B25,'B. Zip Code'!D:D,D25) -> 0 | L25: =SUMIFS('B. Zip Code'!K:K,'B. Zip Code'!B:B,'D.1 Summary'!B25,'B. Zip Code'!D:D,D25) -> 0 | M25: =SUMIFS('B. Zip Code'!L:L,'B. Zip Code'!B:B,'D.1 Summary'!B25,'B. Zip Code'!D:D,D25) -> 0 | N25: =SUMIFS('B. Zip Code'!M:M,'B. Zip Code'!B:B,'D.1 Summary'!B25,'B. Zip Code'!D:D,D25) -> 0 | O25: =SUMIFS('B. Zip Code'!N:N,'B. Zip Code'!B:B,'D.1 Summary'!B25,'B. Zip Code'!D:D,D25) -> 0 | P25: =SUMIFS('B. Zip Code'!O:O,'B. Zip Code'!B:B,'D.1 Summary'!B25,'B. Zip Code'!D:D,D25) -> 0 | Q25: =SUMIFS('B. Zip Code'!P:P,'B. Zip Code'!B:B,'D.1 Summary'!B25,'B. Zip Code'!D:D,D25) -> 0
A27: Table B: Physician Group TME&APM Summary
B28: TME and APM Data Summary - Physician Group
B29: Year | C29: Insurance Category | D29: Code | E29: Member Months | F29: Wtd Member Months | G29: Average HSA | H29: Total Expenses | I29: TME PMPM | J29: HSA TME PMPM | K29: Inpatient | L29: Outpatient | M29: Prof. Physician | N29: Prof. Other | O29: Rx | P29: Other | Q29: Non-Claims
B30: 2016 | C30: Medicare & Medicare Advantage | D30: 1 | E30: =SUMIFS('C. Physician Group'!L:L,'C. Physician Group'!B:B,'D.1 Summary'!B30,'C. Physician Group'!E:E,'D.1 Summary'!D30) -> 20740 | F30: =IFERROR((SUMIFS('C. Physician Group'!L:L,'C. Physician Group'!B:B,'D.1 Summary'!B30,'C. Physician Group'!E:E,'D.1 Summary'!D30)*AVERAGEIFS('C. Physician Group'!M:M,'C. Physician Group'!B:B,'D.1 Summary'!B30,'C. Physician Group'!E:E,'D.1 Summary'!D30)),"0") -> 10421.85 | G30: =IFERROR(F30/E30,"0") -> 0.5025 | H30: =(SUMIFS('C. Physician Group'!N:N,'C. Physician Group'!B:B,'D.1 Summary'!B30,'C. Physician Group'!E:E,'D.1 Summary'!D30)+SUMIFS('C. Physician Group'!O:O,'C. Physician Group'!B:B,'D.1 Summary'!B30,'C. Physician Group'!E:E,'D.1 Summary'!D30)+SUMIFS('C. Physician Group'!P:P,'C. Physician Group'!B:B,'D.1 Summary'!B30,'C. Physician Group'!E:E,'D.1 Summary'!D30)+SUMIFS('C. Physician Group'!Q:Q,'C. Physician Group'!B:B,'D.1 Summary'!B30,'C. Physician Group'!E:E,'D.1 Summary'!D30)+SUMIFS('C. Physician Group'!R:R,'C. Physician Group'!B:B,'D.1 Summary'!B30,'C. Physician Group'!E:E,'D.1 Summary'!D30)+SUMIFS('C. Physician Group'!S:S,'C. Physician Group'!B:B,'D.1 Summary'!B30,'C. Physician Group'!E:E,'D.1 Summary'!D30)+SUMIFS('C. Physician Group'!T:T,'C. Physician Group'!B:B,'D.1 Summary'!B30,'C. Physician Group'!E:E,'D.1 Summary'!D30)+SUMIFS('C. Physician Group'!U:U,'C. Physician Group'!B:B,'D.1 Summary'!B30,'C. Physician Group'!E:E,'D.1 Summary'!D30)+SUMIFS('C. Physician Group'!V:V,'C. Physician Group'!B:B,'D.1 Summary'!B30,'C. Physician Group'!E:E,'D.1 Summary'!D30)+SUMIFS('C. Physician Group'!W:W,'C. Physician Group'!B:B,'D.1 Summary'!B30,'C. Physician Group'!E:E,'D.1 Summary'!D30)+SUMIFS('C. Physician Group'!X:X,'C. Physician Group'!B:B,'D.1 Summary'!B30,'C. Physician Group'!E:E,'D.1 Summary'!D30)) -> 22083293.78 | I30: =IFERROR(H30/E30,"0") -> 1064.768263 | J30: =IFERROR(H30/F30,"0") -> 2118.941817 | K30: =SUMIFS('C. Physician Group'!N:N,'C. Physician Group'!B:B,'D.1 Summary'!B30,'C. Physician Group'!E:E,'D.1 Summary'!D30) -> 6156550 | L30: =SUMIFS('C. Physician Group'!O:O,'C. Physician Group'!B:B,'D.1 Summary'!B30,'C. Physician Group'!E:E,'D.1 Summary'!D30) -> 2826744.12 | M30: =SUMIFS('C. Physician Group'!P:P,'C. Physician Group'!B:B,'D.1 Summary'!B30,'C. Physician Group'!E:E,'D.1 Summary'!D30) -> 4411205.79 | N30: =SUMIFS('C. Physician Group'!Q:Q,'C. Physician Group'!B:B,'D.1 Summary'!B30,'C. Physician Group'!E:E,'D.1 Summary'!D30) -> 2310470.37 | O30: =SUMIFS('C. Physician Group'!R:R,'C. Physician Group'!B:B,'D.1 Summary'!B30,'C. Physician Group'!E:E,'D.1 Summary'!D30) -> 4370704.75 | P30: =SUMIFS('C. Physician Group'!S:S,'C. Physician Group'!B:B,'D.1 Summary'!B30,'C. Physician Group'!E:E,'D.1 Summary'!D30) -> 1981888.76 | Q30: =(SUMIFS('C. Physician Group'!T:T,'C. Physician Group'!B:B,'D.1 Summary'!B30,'C. Physician Group'!E:E,'D.1 Summary'!D30)+SUMIFS('C. Physician Group'!U:U,'C. Physician Group'!B:B,'D.1 Summary'!B30,'C. Physician Group'!E:E,'D.1 Summary'!D30)+SUMIFS('C. Physician Group'!V:V,'C. Physician Group'!B:B,'D.1 Summary'!B30,'C. Physician Group'!E:E,'D.1 Summary'!D30)+SUMIFS('C. Physician Group'!W:W,'C. Physician Group'!B:B,'D.1 Summary'!B30,'C. Physician Group'!E:E,'D.1 Summary'!D30)+SUMIFS('C. Physician Group'!X:X,'C. Physician Group'!B:B,'D.1 Summary'!B30,'C. Physician Group'!E:E,'D.1 Summary'!D30)) -> 25729.99
B31: 2016 | C31: Medicaid & Medicaid Managed Care (MCO) | D31: 2 | E31: =SUMIFS('C. Physician Group'!L:L,'C. Physician Group'!B:B,'D.1 Summary'!B31,'C. Physician Group'!E:E,'D.1 Summary'!D31) -> 4515450 | F31: =IFERROR((SUMIFS('C. Physician Group'!L:L,'C. Physician Group'!B:B,'D.1 Summary'!B31,'C. Physician Group'!E:E,'D.1 Summary'!D31)*AVERAGEIFS('C. Physician Group'!M:M,'C. Physician Group'!B:B,'D.1 Summary'!B31,'C. Physician Group'!E:E,'D.1 Summary'!D31)),"0") -> 9535364.969 | G31: =IFERROR(F31/E31,"0") -> 2.111719755 | H31: =(SUMIFS('C. Physician Group'!N:N,'C. Physician Group'!B:B,'D.1 Summary'!B31,'C. Physician Group'!E:E,'D.1 Summary'!D31)+SUMIFS('C. Physician Group'!O:O,'C. Physician Group'!B:B,'D.1 Summary'!B31,'C. Physician Group'!E:E,'D.1 Summary'!D31)+SUMIFS('C. Physician Group'!P:P,'C. Physician Group'!B:B,'D.1 Summary'!B31,'C. Physician Group'!E:E,'D.1 Summary'!D31)+SUMIFS('C. Physician Group'!Q:Q,'C. Physician Group'!B:B,'D.1 Summary'!B31,'C. Physician Group'!E:E,'D.1 Summary'!D31)+SUMIFS('C. Physician Group'!R:R,'C. Physician Group'!B:B,'D.1 Summary'!B31,'C. Physician Group'!E:E,'D.1 Summary'!D31)+SUMIFS('C. Physician Group'!S:S,'C. Physician Group'!B:B,'D.1 Summary'!B31,'C. Physician Group'!E:E,'D.1 Summary'!D31)+SUMIFS('C. Physician Group'!T:T,'C. Physician Group'!B:B,'D.1 Summary'!B31,'C. Physician Group'!E:E,'D.1 Summary'!D31)+SUMIFS('C. Physician Group'!U:U,'C. Physician Group'!B:B,'D.1 Summary'!B31,'C. Physician Group'!E:E,'D.1 Summary'!D31)+SUMIFS('C. Physician Group'!V:V,'C. Physician Group'!B:B,'D.1 Summary'!B31,'C. Physician Group'!E:E,'D.1 Summary'!D31)+SUMIFS('C. Physician Group'!W:W,'C. Physician Group'!B:B,'D.1 Summary'!B31,'C. Physician Group'!E:E,'D.1 Summary'!D31)+SUMIFS('C. Physician Group'!X:X,'C. Physician Group'!B:B,'D.1 Summary'!B31,'C. Physician Group'!E:E,'D.1 Summary'!D31)) -> 2147099026 | I31: =IFERROR(H31/E31,"0") -> 475.500565 | J31: =IFERROR(H31/F31,"0") -> 225.1721914 | K31: =SUMIFS('C. Physician Group'!N:N,'C. Physician Group'!B:B,'D.1 Summary'!B31,'C. Physician Group'!E:E,'D.1 Summary'!D31) -> 459129198 | L31: =SUMIFS('C. Physician Group'!O:O,'C. Physician Group'!B:B,'D.1 Summary'!B31,'C. Physician Group'!E:E,'D.1 Summary'!D31) -> 428304598.2 | M31: =SUMIFS('C. Physician Group'!P:P,'C. Physician Group'!B:B,'D.1 Summary'!B31,'C. Physician Group'!E:E,'D.1 Summary'!D31) -> 282237759.6 | N31: =SUMIFS('C. Physician Group'!Q:Q,'C. Physician Group'!B:B,'D.1 Summary'!B31,'C. Physician Group'!E:E,'D.1 Summary'!D31) -> 75536873.02 | O31: =SUMIFS('C. Physician Group'!R:R,'C. Physician Group'!B:B,'D.1 Summary'!B31,'C. Physician Group'!E:E,'D.1 Summary'!D31) -> 507273864.6 | P31: =SUMIFS('C. Physician Group'!S:S,'C. Physician Group'!B:B,'D.1 Summary'!B31,'C. Physician Group'!E:E,'D.1 Summary'!D31) -> 169391362.8 | Q31: =(SUMIFS('C. Physician Group'!T:T,'C. Physician Group'!B:B,'D.1 Summary'!B31,'C. Physician Group'!E:E,'D.1 Summary'!D31)+SUMIFS('C. Physician Group'!U:U,'C. Physician Group'!B:B,'D.1 Summary'!B31,'C. Physician Group'!E:E,'D.1 Summary'!D31)+SUMIFS('C. Physician Group'!V:V,'C. Physician Group'!B:B,'D.1 Summary'!B31,'C. Physician Group'!E:E,'D.1 Summary'!D31)+SUMIFS('C. Physician Group'!W:W,'C. Physician Group'!B:B,'D.1 Summary'!B31,'C. Physician Group'!E:E,'D.1 Summary'!D31)+SUMIFS('C. Physician Group'!X:X,'C. Physician Group'!B:B,'D.1 Summary'!B31,'C. Physician Group'!E:E,'D.1 Summary'!D31)) -> 225225370
B32: 2016 | C32: Commercial - Full Claims | D32: 3 | E32: =SUMIFS('C. Physician Group'!L:L,'C. Physician Group'!B:B,'D.1 Summary'!B32,'C. Physician Group'!E:E,'D.1 Summary'!D32) -> 8574966 | F32: =IFERROR((SUMIFS('C. Physician Group'!L:L,'C. Physician Group'!B:B,'D.1 Summary'!B32,'C. Physician Group'!E:E,'D.1 Summary'!D32)*AVERAGEIFS('C. Physician Group'!M:M,'C. Physician Group'!B:B,'D.1 Summary'!B32,'C. Physician Group'!E:E,'D.1 Summary'!D32)),"0") -> 4703673.417 | G32: 0.5485355181 | H32: =(SUMIFS('C. Physician Group'!N:N,'C. Physician Group'!B:B,'D.1 Summary'!B32,'C. Physician Group'!E:E,'D.1 Summary'!D32)+SUMIFS('C. Physician Group'!O:O,'C. Physician Group'!B:B,'D.1 Summary'!B32,'C. Physician Group'!E:E,'D.1 Summary'!D32)+SUMIFS('C. Physician Group'!P:P,'C. Physician Group'!B:B,'D.1 Summary'!B32,'C. Physician Group'!E:E,'D.1 Summary'!D32)+SUMIFS('C. Physician Group'!Q:Q,'C. Physician Group'!B:B,'D.1 Summary'!B32,'C. Physician Group'!E:E,'D.1 Summary'!D32)+SUMIFS('C. Physician Group'!R:R,'C. Physician Group'!B:B,'D.1 Summary'!B32,'C. Physician Group'!E:E,'D.1 Summary'!D32)+SUMIFS('C. Physician Group'!S:S,'C. Physician Group'!B:B,'D.1 Summary'!B32,'C. Physician Group'!E:E,'D.1 Summary'!D32)+SUMIFS('C. Physician Group'!T:T,'C. Physician Group'!B:B,'D.1 Summary'!B32,'C. Physician Group'!E:E,'D.1 Summary'!D32)+SUMIFS('C. Physician Group'!U:U,'C. Physician Group'!B:B,'D.1 Summary'!B32,'C. Physician Group'!E:E,'D.1 Summary'!D32)+SUMIFS('C. Physician Group'!V:V,'C. Physician Group'!B:B,'D.1 Summary'!B32,'C. Physician Group'!E:E,'D.1 Summary'!D32)+SUMIFS('C. Physician Group'!W:W,'C. Physician Group'!B:B,'D.1 Summary'!B32,'C. Physician Group'!E:E,'D.1 Summary'!D32)+SUMIFS('C. Physician Group'!X:X,'C. Physician Group'!B:B,'D.1 Summary'!B32,'C. Physician Group'!E:E,'D.1 Summary'!D32)) -> 4177884240 | I32: 487.2187528 | J32: 888.2173292 | K32: =SUMIFS('C. Physician Group'!N:N,'C. Physician Group'!B:B,'D.1 Summary'!B32,'C. Physician Group'!E:E,'D.1 Summary'!D32) -> 716590315 | L32: =SUMIFS('C. Physician Group'!O:O,'C. Physician Group'!B:B,'D.1 Summary'!B32,'C. Physician Group'!E:E,'D.1 Summary'!D32) -> 949272699.6 | M32: =SUMIFS('C. Physician Group'!P:P,'C. Physician Group'!B:B,'D.1 Summary'!B32,'C. Physician Group'!E:E,'D.1 Summary'!D32) -> 1221871870 | N32: =SUMIFS('C. Physician Group'!Q:Q,'C. Physician Group'!B:B,'D.1 Summary'!B32,'C. Physician Group'!E:E,'D.1 Summary'!D32) -> 205562152.9 | O32: =SUMIFS('C. Physician Group'!R:R,'C. Physician Group'!B:B,'D.1 Summary'!B32,'C. Physician Group'!E:E,'D.1 Summary'!D32) -> 754651425.2 | P32: =SUMIFS('C. Physician Group'!S:S,'C. Physician Group'!B:B,'D.1 Summary'!B32,'C. Physician Group'!E:E,'D.1 Summary'!D32) -> 237382511.2 | Q32: =(SUMIFS('C. Physician Group'!T:T,'C. Physician Group'!B:B,'D.1 Summary'!B32,'C. Physician Group'!E:E,'D.1 Summary'!D32)+SUMIFS('C. Physician Group'!U:U,'C. Physician Group'!B:B,'D.1 Summary'!B32,'C. Physician Group'!E:E,'D.1 Summary'!D32)+SUMIFS('C. Physician Group'!V:V,'C. Physician Group'!B:B,'D.1 Summary'!B32,'C. Physician Group'!E:E,'D.1 Summary'!D32)+SUMIFS('C. Physician Group'!W:W,'C. Physician Group'!B:B,'D.1 Summary'!B32,'C. Physician Group'!E:E,'D.1 Summary'!D32)+SUMIFS('C. Physician Group'!X:X,'C. Physician Group'!B:B,'D.1 Summary'!B32,'C. Physician Group'!E:E,'D.1 Summary'!D32)) -> 92553266.25
B33: 2016 | C33: Commercial - Partial Claims | D33: 4 | E33: =SUMIFS('C. Physician Group'!L:L,'C. Physician Group'!B:B,'D.1 Summary'!B33,'C. Physician Group'!E:E,'D.1 Summary'!D33) -> 1723758 | F33: =IFERROR((SUMIFS('C. Physician Group'!L:L,'C. Physician Group'!B:B,'D.1 Summary'!B33,'C. Physician Group'!E:E,'D.1 Summary'!D33)*AVERAGEIFS('C. Physician Group'!M:M,'C. Physician Group'!B:B,'D.1 Summary'!B33,'C. Physician Group'!E:E,'D.1 Summary'!D33)),"0") -> 1529835.225 | G33: 0.8875 | H33: =(SUMIFS('C. Physician Group'!N:N,'C. Physician Group'!B:B,'D.1 Summary'!B33,'C. Physician Group'!E:E,'D.1 Summary'!D33)+SUMIFS('C. Physician Group'!O:O,'C. Physician Group'!B:B,'D.1 Summary'!B33,'C. Physician Group'!E:E,'D.1 Summary'!D33)+SUMIFS('C. Physician Group'!P:P,'C. Physician Group'!B:B,'D.1 Summary'!B33,'C. Physician Group'!E:E,'D.1 Summary'!D33)+SUMIFS('C. Physician Group'!Q:Q,'C. Physician Group'!B:B,'D.1 Summary'!B33,'C. Physician Group'!E:E,'D.1 Summary'!D33)+SUMIFS('C. Physician Group'!R:R,'C. Physician Group'!B:B,'D.1 Summary'!B33,'C. Physician Group'!E:E,'D.1 Summary'!D33)+SUMIFS('C. Physician Group'!S:S,'C. Physician Group'!B:B,'D.1 Summary'!B33,'C. Physician Group'!E:E,'D.1 Summary'!D33)+SUMIFS('C. Physician Group'!T:T,'C. Physician Group'!B:B,'D.1 Summary'!B33,'C. Physician Group'!E:E,'D.1 Summary'!D33)+SUMIFS('C. Physician Group'!U:U,'C. Physician Group'!B:B,'D.1 Summary'!B33,'C. Physician Group'!E:E,'D.1 Summary'!D33)+SUMIFS('C. Physician Group'!V:V,'C. Physician Group'!B:B,'D.1 Summary'!B33,'C. Physician Group'!E:E,'D.1 Summary'!D33)+SUMIFS('C. Physician Group'!W:W,'C. Physician Group'!B:B,'D.1 Summary'!B33,'C. Physician Group'!E:E,'D.1 Summary'!D33)+SUMIFS('C. Physician Group'!X:X,'C. Physician Group'!B:B,'D.1 Summary'!B33,'C. Physician Group'!E:E,'D.1 Summary'!D33)) -> 616614006.8 | I33: 357.71495 | J33: 403.0590986 | K33: =SUMIFS('C. Physician Group'!N:N,'C. Physician Group'!B:B,'D.1 Summary'!B33,'C. Physician Group'!E:E,'D.1 Summary'!D33) -> 119380734 | L33: =SUMIFS('C. Physician Group'!O:O,'C. Physician Group'!B:B,'D.1 Summary'!B33,'C. Physician Group'!E:E,'D.1 Summary'!D33) -> 134471668.5 | M33: =SUMIFS('C. Physician Group'!P:P,'C. Physician Group'!B:B,'D.1 Summary'!B33,'C. Physician Group'!E:E,'D.1 Summary'!D33) -> 183904156.2 | N33: =SUMIFS('C. Physician Group'!Q:Q,'C. Physician Group'!B:B,'D.1 Summary'!B33,'C. Physician Group'!E:E,'D.1 Summary'!D33) -> 28387520.12 | O33: =SUMIFS('C. Physician Group'!R:R,'C. Physician Group'!B:B,'D.1 Summary'!B33,'C. Physician Group'!E:E,'D.1 Summary'!D33) -> 71538834.32 | P33: =SUMIFS('C. Physician Group'!S:S,'C. Physician Group'!B:B,'D.1 Summary'!B33,'C. Physician Group'!E:E,'D.1 Summary'!D33) -> 78494105.1 | Q33: =(SUMIFS('C. Physician Group'!T:T,'C. Physician Group'!B:B,'D.1 Summary'!B33,'C. Physician Group'!E:E,'D.1 Summary'!D33)+SUMIFS('C. Physician Group'!U:U,'C. Physician Group'!B:B,'D.1 Summary'!B33,'C. Physician Group'!E:E,'D.1 Summary'!D33)+SUMIFS('C. Physician Group'!V:V,'C. Physician Group'!B:B,'D.1 Summary'!B33,'C. Physician Group'!E:E,'D.1 Summary'!D33)+SUMIFS('C. Physician Group'!W:W,'C. Physician Group'!B:B,'D.1 Summary'!B33,'C. Physician Group'!E:E,'D.1 Summary'!D33)+SUMIFS('C. Physician Group'!X:X,'C. Physician Group'!B:B,'D.1 Summary'!B33,'C. Physician Group'!E:E,'D.1 Summary'!D33)) -> 436988.56
B34: 2016 | C34: Medicare and Medicaid Dual Eligibles ages 65 and over | D34: 5 | E34: =SUMIFS('C. Physician Group'!L:L,'C. Physician Group'!B:B,'D.1 Summary'!B34,'C. Physician Group'!E:E,'D.1 Summary'!D34) -> 176913 | F34: =IFERROR((SUMIFS('C. Physician Group'!L:L,'C. Physician Group'!B:B,'D.1 Summary'!B34,'C. Physician Group'!E:E,'D.1 Summary'!D34)*AVERAGEIFS('C. Physician Group'!M:M,'C. Physician Group'!B:B,'D.1 Summary'!B34,'C. Physician Group'!E:E,'D.1 Summary'!D34)),"0") -> 604157.895 | G34: 3.415 | H34: =(SUMIFS('C. Physician Group'!N:N,'C. Physician Group'!B:B,'D.1 Summary'!B34,'C. Physician Group'!E:E,'D.1 Summary'!D34)+SUMIFS('C. Physician Group'!O:O,'C. Physician Group'!B:B,'D.1 Summary'!B34,'C. Physician Group'!E:E,'D.1 Summary'!D34)+SUMIFS('C. Physician Group'!P:P,'C. Physician Group'!B:B,'D.1 Summary'!B34,'C. Physician Group'!E:E,'D.1 Summary'!D34)+SUMIFS('C. Physician Group'!Q:Q,'C. Physician Group'!B:B,'D.1 Summary'!B34,'C. Physician Group'!E:E,'D.1 Summary'!D34)+SUMIFS('C. Physician Group'!R:R,'C. Physician Group'!B:B,'D.1 Summary'!B34,'C. Physician Group'!E:E,'D.1 Summary'!D34)+SUMIFS('C. Physician Group'!S:S,'C. Physician Group'!B:B,'D.1 Summary'!B34,'C. Physician Group'!E:E,'D.1 Summary'!D34)+SUMIFS('C. Physician Group'!T:T,'C. Physician Group'!B:B,'D.1 Summary'!B34,'C. Physician Group'!E:E,'D.1 Summary'!D34)+SUMIFS('C. Physician Group'!U:U,'C. Physician Group'!B:B,'D.1 Summary'!B34,'C. Physician Group'!E:E,'D.1 Summary'!D34)+SUMIFS('C. Physician Group'!V:V,'C. Physician Group'!B:B,'D.1 Summary'!B34,'C. Physician Group'!E:E,'D.1 Summary'!D34)+SUMIFS('C. Physician Group'!W:W,'C. Physician Group'!B:B,'D.1 Summary'!B34,'C. Physician Group'!E:E,'D.1 Summary'!D34)+SUMIFS('C. Physician Group'!X:X,'C. Physician Group'!B:B,'D.1 Summary'!B34,'C. Physician Group'!E:E,'D.1 Summary'!D34)) -> 496623419.2 | I34: 2807.161821 | J34: 822.009318 | K34: =SUMIFS('C. Physician Group'!N:N,'C. Physician Group'!B:B,'D.1 Summary'!B34,'C. Physician Group'!E:E,'D.1 Summary'!D34) -> 56814261 | L34: =SUMIFS('C. Physician Group'!O:O,'C. Physician Group'!B:B,'D.1 Summary'!B34,'C. Physician Group'!E:E,'D.1 Summary'!D34) -> 41577415.56 | M34: =SUMIFS('C. Physician Group'!P:P,'C. Physician Group'!B:B,'D.1 Summary'!B34,'C. Physician Group'!E:E,'D.1 Summary'!D34) -> 5801165.77 | N34: =SUMIFS('C. Physician Group'!Q:Q,'C. Physician Group'!B:B,'D.1 Summary'!B34,'C. Physician Group'!E:E,'D.1 Summary'!D34) -> 2266925.87 | O34: =SUMIFS('C. Physician Group'!R:R,'C. Physician Group'!B:B,'D.1 Summary'!B34,'C. Physician Group'!E:E,'D.1 Summary'!D34) -> 75656893.98 | P34: =SUMIFS('C. Physician Group'!S:S,'C. Physician Group'!B:B,'D.1 Summary'!B34,'C. Physician Group'!E:E,'D.1 Summary'!D34) -> 253462413.3 | Q34: =(SUMIFS('C. Physician Group'!T:T,'C. Physician Group'!B:B,'D.1 Summary'!B34,'C. Physician Group'!E:E,'D.1 Summary'!D34)+SUMIFS('C. Physician Group'!U:U,'C. Physician Group'!B:B,'D.1 Summary'!B34,'C. Physician Group'!E:E,'D.1 Summary'!D34)+SUMIFS('C. Physician Group'!V:V,'C. Physician Group'!B:B,'D.1 Summary'!B34,'C. Physician Group'!E:E,'D.1 Summary'!D34)+SUMIFS('C. Physician Group'!W:W,'C. Physician Group'!B:B,'D.1 Summary'!B34,'C. Physician Group'!E:E,'D.1 Summary'!D34)+SUMIFS('C. Physician Group'!X:X,'C. Physician Group'!B:B,'D.1 Summary'!B34,'C. Physician Group'!E:E,'D.1 Summary'!D34)) -> 61044343.78
B35: 2016 | C35: Medicare and Medicaid Dual Eligibles afes 21-64 | D35: 6 | E35: =SUMIFS('C. Physician Group'!L:L,'C. Physician Group'!B:B,'D.1 Summary'!B35,'C. Physician Group'!E:E,'D.1 Summary'!D35) -> 32422 | F35: =IFERROR((SUMIFS('C. Physician Group'!L:L,'C. Physician Group'!B:B,'D.1 Summary'!B35,'C. Physician Group'!E:E,'D.1 Summary'!D35)*AVERAGEIFS('C. Physician Group'!M:M,'C. Physician Group'!B:B,'D.1 Summary'!B35,'C. Physician Group'!E:E,'D.1 Summary'!D35)),"0") -> 53973.62389 | G35: 1.664722222 | H35: =(SUMIFS('C. Physician Group'!N:N,'C. Physician Group'!B:B,'D.1 Summary'!B35,'C. Physician Group'!E:E,'D.1 Summary'!D35)+SUMIFS('C. Physician Group'!O:O,'C. Physician Group'!B:B,'D.1 Summary'!B35,'C. Physician Group'!E:E,'D.1 Summary'!D35)+SUMIFS('C. Physician Group'!P:P,'C. Physician Group'!B:B,'D.1 Summary'!B35,'C. Physician Group'!E:E,'D.1 Summary'!D35)+SUMIFS('C. Physician Group'!Q:Q,'C. Physician Group'!B:B,'D.1 Summary'!B35,'C. Physician Group'!E:E,'D.1 Summary'!D35)+SUMIFS('C. Physician Group'!R:R,'C. Physician Group'!B:B,'D.1 Summary'!B35,'C. Physician Group'!E:E,'D.1 Summary'!D35)+SUMIFS('C. Physician Group'!S:S,'C. Physician Group'!B:B,'D.1 Summary'!B35,'C. Physician Group'!E:E,'D.1 Summary'!D35)+SUMIFS('C. Physician Group'!T:T,'C. Physician Group'!B:B,'D.1 Summary'!B35,'C. Physician Group'!E:E,'D.1 Summary'!D35)+SUMIFS('C. Physician Group'!U:U,'C. Physician Group'!B:B,'D.1 Summary'!B35,'C. Physician Group'!E:E,'D.1 Summary'!D35)+SUMIFS('C. Physician Group'!V:V,'C. Physician Group'!B:B,'D.1 Summary'!B35,'C. Physician Group'!E:E,'D.1 Summary'!D35)+SUMIFS('C. Physician Group'!W:W,'C. Physician Group'!B:B,'D.1 Summary'!B35,'C. Physician Group'!E:E,'D.1 Summary'!D35)+SUMIFS('C. Physician Group'!X:X,'C. Physician Group'!B:B,'D.1 Summary'!B35,'C. Physician Group'!E:E,'D.1 Summary'!D35)) -> 72958713.06 | I35: 2250.284161 | J35: 1351.747535 | K35: =SUMIFS('C. Physician Group'!N:N,'C. Physician Group'!B:B,'D.1 Summary'!B35,'C. Physician Group'!E:E,'D.1 Summary'!D35) -> 19504180 | L35: =SUMIFS('C. Physician Group'!O:O,'C. Physician Group'!B:B,'D.1 Summary'!B35,'C. Physician Group'!E:E,'D.1 Summary'!D35) -> 12027162.46 | M35: =SUMIFS('C. Physician Group'!P:P,'C. Physician Group'!B:B,'D.1 Summary'!B35,'C. Physician Group'!E:E,'D.1 Summary'!D35) -> 5228848.31 | N35: =SUMIFS('C. Physician Group'!Q:Q,'C. Physician Group'!B:B,'D.1 Summary'!B35,'C. Physician Group'!E:E,'D.1 Summary'!D35) -> 3118472.15 | O35: =SUMIFS('C. Physician Group'!R:R,'C. Physician Group'!B:B,'D.1 Summary'!B35,'C. Physician Group'!E:E,'D.1 Summary'!D35) -> 20527641.69 | P35: =SUMIFS('C. Physician Group'!S:S,'C. Physician Group'!B:B,'D.1 Summary'!B35,'C. Physician Group'!E:E,'D.1 Summary'!D35) -> 12552408.45 | Q35: =(SUMIFS('C. Physician Group'!T:T,'C. Physician Group'!B:B,'D.1 Summary'!B35,'C. Physician Group'!E:E,'D.1 Summary'!D35)+SUMIFS('C. Physician Group'!U:U,'C. Physician Group'!B:B,'D.1 Summary'!B35,'C. Physician Group'!E:E,'D.1 Summary'!D35)+SUMIFS('C. Physician Group'!V:V,'C. Physician Group'!B:B,'D.1 Summary'!B35,'C. Physician Group'!E:E,'D.1 Summary'!D35)+SUMIFS('C. Physician Group'!W:W,'C. Physician Group'!B:B,'D.1 Summary'!B35,'C. Physician Group'!E:E,'D.1 Summary'!D35)+SUMIFS('C. Physician Group'!X:X,'C. Physician Group'!B:B,'D.1 Summary'!B35,'C. Physician Group'!E:E,'D.1 Summary'!D35)) -> 0
B36: 2016 | C36: Other | D36: 7 | E36: =SUMIFS('C. Physician Group'!L:L,'C. Physician Group'!B:B,'D.1 Summary'!B36,'C. Physician Group'!E:E,'D.1 Summary'!D36) -> 0 | F36: =IFERROR((SUMIFS('C. Physician Group'!L:L,'C. Physician Group'!B:B,'D.1 Summary'!B36,'C. Physician Group'!E:E,'D.1 Summary'!D36)*AVERAGEIFS('C. Physician Group'!M:M,'C. Physician Group'!B:B,'D.1 Summary'!B36,'C. Physician Group'!E:E,'D.1 Summary'!D36)),"0") -> 0 | G36: 0 | H36: =(SUMIFS('C. Physician Group'!N:N,'C. Physician Group'!B:B,'D.1 Summary'!B36,'C. Physician Group'!E:E,'D.1 Summary'!D36)+SUMIFS('C. Physician Group'!O:O,'C. Physician Group'!B:B,'D.1 Summary'!B36,'C. Physician Group'!E:E,'D.1 Summary'!D36)+SUMIFS('C. Physician Group'!P:P,'C. Physician Group'!B:B,'D.1 Summary'!B36,'C. Physician Group'!E:E,'D.1 Summary'!D36)+SUMIFS('C. Physician Group'!Q:Q,'C. Physician Group'!B:B,'D.1 Summary'!B36,'C. Physician Group'!E:E,'D.1 Summary'!D36)+SUMIFS('C. Physician Group'!R:R,'C. Physician Group'!B:B,'D.1 Summary'!B36,'C. Physician Group'!E:E,'D.1 Summary'!D36)+SUMIFS('C. Physician Group'!S:S,'C. Physician Group'!B:B,'D.1 Summary'!B36,'C. Physician Group'!E:E,'D.1 Summary'!D36)+SUMIFS('C. Physician Group'!T:T,'C. Physician Group'!B:B,'D.1 Summary'!B36,'C. Physician Group'!E:E,'D.1 Summary'!D36)+SUMIFS('C. Physician Group'!U:U,'C. Physician Group'!B:B,'D.1 Summary'!B36,'C. Physician Group'!E:E,'D.1 Summary'!D36)+SUMIFS('C. Physician Group'!V:V,'C. Physician Group'!B:B,'D.1 Summary'!B36,'C. Physician Group'!E:E,'D.1 Summary'!D36)+SUMIFS('C. Physician Group'!W:W,'C. Physician Group'!B:B,'D.1 Summary'!B36,'C. Physician Group'!E:E,'D.1 Summary'!D36)+SUMIFS('C. Physician Group'!X:X,'C. Physician Group'!B:B,'D.1 Summary'!B36,'C. Physician Group'!E:E,'D.1 Summary'!D36)) -> 0 | I36: 0 | J36: =IFERROR(H36/F36,"0") -> 0 | K36: =SUMIFS('C. Physician Group'!N:N,'C. Physician Group'!B:B,'D.1 Summary'!B36,'C. Physician Group'!E:E,'D.1 Summary'!D36) -> 0 | L36: =SUMIFS('C. Physician Group'!O:O,'C. Physician Group'!B:B,'D.1 Summary'!B36,'C. Physician Group'!E:E,'D.1 Summary'!D36) -> 0 | M36: =SUMIFS('C. Physician Group'!P:P,'C. Physician Group'!B:B,'D.1 Summary'!B36,'C. Physician Group'!E:E,'D.1 Summary'!D36) -> 0 | N36: =SUMIFS('C. Physician Group'!Q:Q,'C. Physician Group'!B:B,'D.1 Summary'!B36,'C. Physician Group'!E:E,'D.1 Summary'!D36) -> 0 | O36: =SUMIFS('C. Physician Group'!R:R,'C. Physician Group'!B:B,'D.1 Summary'!B36,'C. Physician Group'!E:E,'D.1 Summary'!D36) -> 0 | P36: =SUMIFS('C. Physician Group'!S:S,'C. Physician Group'!B:B,'D.1 Summary'!B36,'C. Physician Group'!E:E,'D.1 Summary'!D36) -> 0 | Q36: =(SUMIFS('C. Physician Group'!T:T,'C. Physician Group'!B:B,'D.1 Summary'!B36,'C. Physician Group'!E:E,'D.1 Summary'!D36)+SUMIFS('C. Physician Group'!U:U,'C. Physician Group'!B:B,'D.1 Summary'!B36,'C. Physician Group'!E:E,'D.1 Summary'!D36)+SUMIFS('C. Physician Group'!V:V,'C. Physician Group'!B:B,'D.1 Summary'!B36,'C. Physician Group'!E:E,'D.1 Summary'!D36)+SUMIFS('C. Physician Group'!W:W,'C. Physician Group'!B:B,'D.1 Summary'!B36,'C. Physician Group'!E:E,'D.1 Summary'!D36)+SUMIFS('C. Physician Group'!X:X,'C. Physician Group'!B:B,'D.1 Summary'!B36,'C. Physician Group'!E:E,'D.1 Summary'!D36)) -> 0
B37: 2017 | C37: Medicare & Medicare Advantage | D37: 1 | E37: =SUMIFS('C. Physician Group'!L:L,'C. Physician Group'!B:B,'D.1 Summary'!B37,'C. Physician Group'!E:E,'D.1 Summary'!D37) -> 21703 | F37: =IFERROR((SUMIFS('C. Physician Group'!L:L,'C. Physician Group'!B:B,'D.1 Summary'!B37,'C. Physician Group'!E:E,'D.1 Summary'!D37)*AVERAGEIFS('C. Physician Group'!M:M,'C. Physician Group'!B:B,'D.1 Summary'!B37,'C. Physician Group'!E:E,'D.1 Summary'!D37)),"0") -> 10254.6675 | G37: 0.4725 | H37: =(SUMIFS('C. Physician Group'!N:N,'C. Physician Group'!B:B,'D.1 Summary'!B37,'C. Physician Group'!E:E,'D.1 Summary'!D37)+SUMIFS('C. Physician Group'!O:O,'C. Physician Group'!B:B,'D.1 Summary'!B37,'C. Physician Group'!E:E,'D.1 Summary'!D37)+SUMIFS('C. Physician Group'!P:P,'C. Physician Group'!B:B,'D.1 Summary'!B37,'C. Physician Group'!E:E,'D.1 Summary'!D37)+SUMIFS('C. Physician Group'!Q:Q,'C. Physician Group'!B:B,'D.1 Summary'!B37,'C. Physician Group'!E:E,'D.1 Summary'!D37)+SUMIFS('C. Physician Group'!R:R,'C. Physician Group'!B:B,'D.1 Summary'!B37,'C. Physician Group'!E:E,'D.1 Summary'!D37)+SUMIFS('C. Physician Group'!S:S,'C. Physician Group'!B:B,'D.1 Summary'!B37,'C. Physician Group'!E:E,'D.1 Summary'!D37)+SUMIFS('C. Physician Group'!T:T,'C. Physician Group'!B:B,'D.1 Summary'!B37,'C. Physician Group'!E:E,'D.1 Summary'!D37)+SUMIFS('C. Physician Group'!U:U,'C. Physician Group'!B:B,'D.1 Summary'!B37,'C. Physician Group'!E:E,'D.1 Summary'!D37)+SUMIFS('C. Physician Group'!V:V,'C. Physician Group'!B:B,'D.1 Summary'!B37,'C. Physician Group'!E:E,'D.1 Summary'!D37)+SUMIFS('C. Physician Group'!W:W,'C. Physician Group'!B:B,'D.1 Summary'!B37,'C. Physician Group'!E:E,'D.1 Summary'!D37)+SUMIFS('C. Physician Group'!X:X,'C. Physician Group'!B:B,'D.1 Summary'!B37,'C. Physician Group'!E:E,'D.1 Summary'!D37)) -> 24136570.98 | I37: 1112.130626 | J37: 2353.715611 | K37: =SUMIFS('C. Physician Group'!N:N,'C. Physician Group'!B:B,'D.1 Summary'!B37,'C. Physician Group'!E:E,'D.1 Summary'!D37) -> 6819544 | L37: =SUMIFS('C. Physician Group'!O:O,'C. Physician Group'!B:B,'D.1 Summary'!B37,'C. Physician Group'!E:E,'D.1 Summary'!D37) -> 2814428.36 | M37: =SUMIFS('C. Physician Group'!P:P,'C. Physician Group'!B:B,'D.1 Summary'!B37,'C. Physician Group'!E:E,'D.1 Summary'!D37) -> 4531671.6 | N37: =SUMIFS('C. Physician Group'!Q:Q,'C. Physician Group'!B:B,'D.1 Summary'!B37,'C. Physician Group'!E:E,'D.1 Summary'!D37) -> 2660013.33 | O37: =SUMIFS('C. Physician Group'!R:R,'C. Physician Group'!B:B,'D.1 Summary'!B37,'C. Physician Group'!E:E,'D.1 Summary'!D37) -> 5174793.84 | P37: =SUMIFS('C. Physician Group'!S:S,'C. Physician Group'!B:B,'D.1 Summary'!B37,'C. Physician Group'!E:E,'D.1 Summary'!D37) -> 2106673.44 | Q37: =(SUMIFS('C. Physician Group'!T:T,'C. Physician Group'!B:B,'D.1 Summary'!B37,'C. Physician Group'!E:E,'D.1 Summary'!D37)+SUMIFS('C. Physician Group'!U:U,'C. Physician Group'!B:B,'D.1 Summary'!B37,'C. Physician Group'!E:E,'D.1 Summary'!D37)+SUMIFS('C. Physician Group'!V:V,'C. Physician Group'!B:B,'D.1 Summary'!B37,'C. Physician Group'!E:E,'D.1 Summary'!D37)+SUMIFS('C. Physician Group'!W:W,'C. Physician Group'!B:B,'D.1 Summary'!B37,'C. Physician Group'!E:E,'D.1 Summary'!D37)+SUMIFS('C. Physician Group'!X:X,'C. Physician Group'!B:B,'D.1 Summary'!B37,'C. Physician Group'!E:E,'D.1 Summary'!D37)) -> 29446.41
B38: 2017 | C38: Medicaid & Medicaid Managed Care (MCO) | D38: 2 | E38: =SUMIFS('C. Physician Group'!L:L,'C. Physician Group'!B:B,'D.1 Summary'!B38,'C. Physician Group'!E:E,'D.1 Summary'!D38) -> 4033838 | F38: =IFERROR((SUMIFS('C. Physician Group'!L:L,'C. Physician Group'!B:B,'D.1 Summary'!B38,'C. Physician Group'!E:E,'D.1 Summary'!D38)*AVERAGEIFS('C. Physician Group'!M:M,'C. Physician Group'!B:B,'D.1 Summary'!B38,'C. Physician Group'!E:E,'D.1 Summary'!D38)),"0") -> 8826371.048 | G38: 2.188082677 | H38: =(SUMIFS('C. Physician Group'!N:N,'C. Physician Group'!B:B,'D.1 Summary'!B38,'C. Physician Group'!E:E,'D.1 Summary'!D38)+SUMIFS('C. Physician Group'!O:O,'C. Physician Group'!B:B,'D.1 Summary'!B38,'C. Physician Group'!E:E,'D.1 Summary'!D38)+SUMIFS('C. Physician Group'!P:P,'C. Physician Group'!B:B,'D.1 Summary'!B38,'C. Physician Group'!E:E,'D.1 Summary'!D38)+SUMIFS('C. Physician Group'!Q:Q,'C. Physician Group'!B:B,'D.1 Summary'!B38,'C. Physician Group'!E:E,'D.1 Summary'!D38)+SUMIFS('C. Physician Group'!R:R,'C. Physician Group'!B:B,'D.1 Summary'!B38,'C. Physician Group'!E:E,'D.1 Summary'!D38)+SUMIFS('C. Physician Group'!S:S,'C. Physician Group'!B:B,'D.1 Summary'!B38,'C. Physician Group'!E:E,'D.1 Summary'!D38)+SUMIFS('C. Physician Group'!T:T,'C. Physician Group'!B:B,'D.1 Summary'!B38,'C. Physician Group'!E:E,'D.1 Summary'!D38)+SUMIFS('C. Physician Group'!U:U,'C. Physician Group'!B:B,'D.1 Summary'!B38,'C. Physician Group'!E:E,'D.1 Summary'!D38)+SUMIFS('C. Physician Group'!V:V,'C. Physician Group'!B:B,'D.1 Summary'!B38,'C. Physician Group'!E:E,'D.1 Summary'!D38)+SUMIFS('C. Physician Group'!W:W,'C. Physician Group'!B:B,'D.1 Summary'!B38,'C. Physician Group'!E:E,'D.1 Summary'!D38)+SUMIFS('C. Physician Group'!X:X,'C. Physician Group'!B:B,'D.1 Summary'!B38,'C. Physician Group'!E:E,'D.1 Summary'!D38)) -> 2094107118 | I38: 519.1351557 | J38: 237.2557313 | K38: =SUMIFS('C. Physician Group'!N:N,'C. Physician Group'!B:B,'D.1 Summary'!B38,'C. Physician Group'!E:E,'D.1 Summary'!D38) -> 417320842 | L38: =SUMIFS('C. Physician Group'!O:O,'C. Physician Group'!B:B,'D.1 Summary'!B38,'C. Physician Group'!E:E,'D.1 Summary'!D38) -> 418993241.4 | M38: =SUMIFS('C. Physician Group'!P:P,'C. Physician Group'!B:B,'D.1 Summary'!B38,'C. Physician Group'!E:E,'D.1 Summary'!D38) -> 253336193.5 | N38: =SUMIFS('C. Physician Group'!Q:Q,'C. Physician Group'!B:B,'D.1 Summary'!B38,'C. Physician Group'!E:E,'D.1 Summary'!D38) -> 75536875.02 | O38: =SUMIFS('C. Physician Group'!R:R,'C. Physician Group'!B:B,'D.1 Summary'!B38,'C. Physician Group'!E:E,'D.1 Summary'!D38) -> 528461936.9 | P38: =SUMIFS('C. Physician Group'!S:S,'C. Physician Group'!B:B,'D.1 Summary'!B38,'C. Physician Group'!E:E,'D.1 Summary'!D38) -> 162311398.7 | Q38: =(SUMIFS('C. Physician Group'!T:T,'C. Physician Group'!B:B,'D.1 Summary'!B38,'C. Physician Group'!E:E,'D.1 Summary'!D38)+SUMIFS('C. Physician Group'!U:U,'C. Physician Group'!B:B,'D.1 Summary'!B38,'C. Physician Group'!E:E,'D.1 Summary'!D38)+SUMIFS('C. Physician Group'!V:V,'C. Physician Group'!B:B,'D.1 Summary'!B38,'C. Physician Group'!E:E,'D.1 Summary'!D38)+SUMIFS('C. Physician Group'!W:W,'C. Physician Group'!B:B,'D.1 Summary'!B38,'C. Physician Group'!E:E,'D.1 Summary'!D38)+SUMIFS('C. Physician Group'!X:X,'C. Physician Group'!B:B,'D.1 Summary'!B38,'C. Physician Group'!E:E,'D.1 Summary'!D38)) -> 238146630.5
B39: 2017 | C39: Commercial - Full Claims | D39: 3 | E39: =SUMIFS('C. Physician Group'!L:L,'C. Physician Group'!B:B,'D.1 Summary'!B39,'C. Physician Group'!E:E,'D.1 Summary'!D39) -> 8079074 | F39: =IFERROR((SUMIFS('C. Physician Group'!L:L,'C. Physician Group'!B:B,'D.1 Summary'!B39,'C. Physician Group'!E:E,'D.1 Summary'!D39)*AVERAGEIFS('C. Physician Group'!M:M,'C. Physician Group'!B:B,'D.1 Summary'!B39,'C. Physician Group'!E:E,'D.1 Summary'!D39)),"0") -> 4686490.093 | G39: 0.5800776294 | H39: =(SUMIFS('C. Physician Group'!N:N,'C. Physician Group'!B:B,'D.1 Summary'!B39,'C. Physician Group'!E:E,'D.1 Summary'!D39)+SUMIFS('C. Physician Group'!O:O,'C. Physician Group'!B:B,'D.1 Summary'!B39,'C. Physician Group'!E:E,'D.1 Summary'!D39)+SUMIFS('C. Physician Group'!P:P,'C. Physician Group'!B:B,'D.1 Summary'!B39,'C. Physician Group'!E:E,'D.1 Summary'!D39)+SUMIFS('C. Physician Group'!Q:Q,'C. Physician Group'!B:B,'D.1 Summary'!B39,'C. Physician Group'!E:E,'D.1 Summary'!D39)+SUMIFS('C. Physician Group'!R:R,'C. Physician Group'!B:B,'D.1 Summary'!B39,'C. Physician Group'!E:E,'D.1 Summary'!D39)+SUMIFS('C. Physician Group'!S:S,'C. Physician Group'!B:B,'D.1 Summary'!B39,'C. Physician Group'!E:E,'D.1 Summary'!D39)+SUMIFS('C. Physician Group'!T:T,'C. Physician Group'!B:B,'D.1 Summary'!B39,'C. Physician Group'!E:E,'D.1 Summary'!D39)+SUMIFS('C. Physician Group'!U:U,'C. Physician Group'!B:B,'D.1 Summary'!B39,'C. Physician Group'!E:E,'D.1 Summary'!D39)+SUMIFS('C. Physician Group'!V:V,'C. Physician Group'!B:B,'D.1 Summary'!B39,'C. Physician Group'!E:E,'D.1 Summary'!D39)+SUMIFS('C. Physician Group'!W:W,'C. Physician Group'!B:B,'D.1 Summary'!B39,'C. Physician Group'!E:E,'D.1 Summary'!D39)+SUMIFS('C. Physician Group'!X:X,'C. Physician Group'!B:B,'D.1 Summary'!B39,'C. Physician Group'!E:E,'D.1 Summary'!D39)) -> 3983666983 | I39: 493.0846014 | J39: 850.032093 | K39: =SUMIFS('C. Physician Group'!N:N,'C. Physician Group'!B:B,'D.1 Summary'!B39,'C. Physician Group'!E:E,'D.1 Summary'!D39) -> 672271962 | L39: =SUMIFS('C. Physician Group'!O:O,'C. Physician Group'!B:B,'D.1 Summary'!B39,'C. Physician Group'!E:E,'D.1 Summary'!D39) -> 930402476.9 | M39: =SUMIFS('C. Physician Group'!P:P,'C. Physician Group'!B:B,'D.1 Summary'!B39,'C. Physician Group'!E:E,'D.1 Summary'!D39) -> 1119962755 | N39: =SUMIFS('C. Physician Group'!Q:Q,'C. Physician Group'!B:B,'D.1 Summary'!B39,'C. Physician Group'!E:E,'D.1 Summary'!D39) -> 199868788.7 | O39: =SUMIFS('C. Physician Group'!R:R,'C. Physician Group'!B:B,'D.1 Summary'!B39,'C. Physician Group'!E:E,'D.1 Summary'!D39) -> 710927844 | P39: =SUMIFS('C. Physician Group'!S:S,'C. Physician Group'!B:B,'D.1 Summary'!B39,'C. Physician Group'!E:E,'D.1 Summary'!D39) -> 217043802.9 | Q39: =(SUMIFS('C. Physician Group'!T:T,'C. Physician Group'!B:B,'D.1 Summary'!B39,'C. Physician Group'!E:E,'D.1 Summary'!D39)+SUMIFS('C. Physician Group'!U:U,'C. Physician Group'!B:B,'D.1 Summary'!B39,'C. Physician Group'!E:E,'D.1 Summary'!D39)+SUMIFS('C. Physician Group'!V:V,'C. Physician Group'!B:B,'D.1 Summary'!B39,'C. Physician Group'!E:E,'D.1 Summary'!D39)+SUMIFS('C. Physician Group'!W:W,'C. Physician Group'!B:B,'D.1 Summary'!B39,'C. Physician Group'!E:E,'D.1 Summary'!D39)+SUMIFS('C. Physician Group'!X:X,'C. Physician Group'!B:B,'D.1 Summary'!B39,'C. Physician Group'!E:E,'D.1 Summary'!D39)) -> 133189353
B40: 2017 | C40: Commercial - Partial Claims | D40: 4 | E40: =SUMIFS('C. Physician Group'!L:L,'C. Physician Group'!B:B,'D.1 Summary'!B40,'C. Physician Group'!E:E,'D.1 Summary'!D40) -> 1805955 | F40: =IFERROR((SUMIFS('C. Physician Group'!L:L,'C. Physician Group'!B:B,'D.1 Summary'!B40,'C. Physician Group'!E:E,'D.1 Summary'!D40)*AVERAGEIFS('C. Physician Group'!M:M,'C. Physician Group'!B:B,'D.1 Summary'!B40,'C. Physician Group'!E:E,'D.1 Summary'!D40)),"0") -> 1189422.029 | G40: 0.6586111111 | H40: =(SUMIFS('C. Physician Group'!N:N,'C. Physician Group'!B:B,'D.1 Summary'!B40,'C. Physician Group'!E:E,'D.1 Summary'!D40)+SUMIFS('C. Physician Group'!O:O,'C. Physician Group'!B:B,'D.1 Summary'!B40,'C. Physician Group'!E:E,'D.1 Summary'!D40)+SUMIFS('C. Physician Group'!P:P,'C. Physician Group'!B:B,'D.1 Summary'!B40,'C. Physician Group'!E:E,'D.1 Summary'!D40)+SUMIFS('C. Physician Group'!Q:Q,'C. Physician Group'!B:B,'D.1 Summary'!B40,'C. Physician Group'!E:E,'D.1 Summary'!D40)+SUMIFS('C. Physician Group'!R:R,'C. Physician Group'!B:B,'D.1 Summary'!B40,'C. Physician Group'!E:E,'D.1 Summary'!D40)+SUMIFS('C. Physician Group'!S:S,'C. Physician Group'!B:B,'D.1 Summary'!B40,'C. Physician Group'!E:E,'D.1 Summary'!D40)+SUMIFS('C. Physician Group'!T:T,'C. Physician Group'!B:B,'D.1 Summary'!B40,'C. Physician Group'!E:E,'D.1 Summary'!D40)+SUMIFS('C. Physician Group'!U:U,'C. Physician Group'!B:B,'D.1 Summary'!B40,'C. Physician Group'!E:E,'D.1 Summary'!D40)+SUMIFS('C. Physician Group'!V:V,'C. Physician Group'!B:B,'D.1 Summary'!B40,'C. Physician Group'!E:E,'D.1 Summary'!D40)+SUMIFS('C. Physician Group'!W:W,'C. Physician Group'!B:B,'D.1 Summary'!B40,'C. Physician Group'!E:E,'D.1 Summary'!D40)+SUMIFS('C. Physician Group'!X:X,'C. Physician Group'!B:B,'D.1 Summary'!B40,'C. Physician Group'!E:E,'D.1 Summary'!D40)) -> 676625580.8 | I40: 374.6635884 | J40: 568.869219 | K40: =SUMIFS('C. Physician Group'!N:N,'C. Physician Group'!B:B,'D.1 Summary'!B40,'C. Physician Group'!E:E,'D.1 Summary'!D40) -> 127188388 | L40: =SUMIFS('C. Physician Group'!O:O,'C. Physician Group'!B:B,'D.1 Summary'!B40,'C. Physician Group'!E:E,'D.1 Summary'!D40) -> 148716224.3 | M40: =SUMIFS('C. Physician Group'!P:P,'C. Physician Group'!B:B,'D.1 Summary'!B40,'C. Physician Group'!E:E,'D.1 Summary'!D40) -> 202237871 | N40: =SUMIFS('C. Physician Group'!Q:Q,'C. Physician Group'!B:B,'D.1 Summary'!B40,'C. Physician Group'!E:E,'D.1 Summary'!D40) -> 30994344.53 | O40: =SUMIFS('C. Physician Group'!R:R,'C. Physician Group'!B:B,'D.1 Summary'!B40,'C. Physician Group'!E:E,'D.1 Summary'!D40) -> 79969501.72 | P40: =SUMIFS('C. Physician Group'!S:S,'C. Physician Group'!B:B,'D.1 Summary'!B40,'C. Physician Group'!E:E,'D.1 Summary'!D40) -> 86993047.07 | Q40: =(SUMIFS('C. Physician Group'!T:T,'C. Physician Group'!B:B,'D.1 Summary'!B40,'C. Physician Group'!E:E,'D.1 Summary'!D40)+SUMIFS('C. Physician Group'!U:U,'C. Physician Group'!B:B,'D.1 Summary'!B40,'C. Physician Group'!E:E,'D.1 Summary'!D40)+SUMIFS('C. Physician Group'!V:V,'C. Physician Group'!B:B,'D.1 Summary'!B40,'C. Physician Group'!E:E,'D.1 Summary'!D40)+SUMIFS('C. Physician Group'!W:W,'C. Physician Group'!B:B,'D.1 Summary'!B40,'C. Physician Group'!E:E,'D.1 Summary'!D40)+SUMIFS('C. Physician Group'!X:X,'C. Physician Group'!B:B,'D.1 Summary'!B40,'C. Physician Group'!E:E,'D.1 Summary'!D40)) -> 526204.17
B41: 2017 | C41: Medicare and Medicaid Dual Eligibles ages 65 and over | D41: 5 | E41: =SUMIFS('C. Physician Group'!L:L,'C. Physician Group'!B:B,'D.1 Summary'!B41,'C. Physician Group'!E:E,'D.1 Summary'!D41) -> 197019 | F41: =IFERROR((SUMIFS('C. Physician Group'!L:L,'C. Physician Group'!B:B,'D.1 Summary'!B41,'C. Physician Group'!E:E,'D.1 Summary'!D41)*AVERAGEIFS('C. Physician Group'!M:M,'C. Physician Group'!B:B,'D.1 Summary'!B41,'C. Physician Group'!E:E,'D.1 Summary'!D41)),"0") -> 683655.93 | G41: 3.47 | H41: =(SUMIFS('C. Physician Group'!N:N,'C. Physician Group'!B:B,'D.1 Summary'!B41,'C. Physician Group'!E:E,'D.1 Summary'!D41)+SUMIFS('C. Physician Group'!O:O,'C. Physician Group'!B:B,'D.1 Summary'!B41,'C. Physician Group'!E:E,'D.1 Summary'!D41)+SUMIFS('C. Physician Group'!P:P,'C. Physician Group'!B:B,'D.1 Summary'!B41,'C. Physician Group'!E:E,'D.1 Summary'!D41)+SUMIFS('C. Physician Group'!Q:Q,'C. Physician Group'!B:B,'D.1 Summary'!B41,'C. Physician Group'!E:E,'D.1 Summary'!D41)+SUMIFS('C. Physician Group'!R:R,'C. Physician Group'!B:B,'D.1 Summary'!B41,'C. Physician Group'!E:E,'D.1 Summary'!D41)+SUMIFS('C. Physician Group'!S:S,'C. Physician Group'!B:B,'D.1 Summary'!B41,'C. Physician Group'!E:E,'D.1 Summary'!D41)+SUMIFS('C. Physician Group'!T:T,'C. Physician Group'!B:B,'D.1 Summary'!B41,'C. Physician Group'!E:E,'D.1 Summary'!D41)+SUMIFS('C. Physician Group'!U:U,'C. Physician Group'!B:B,'D.1 Summary'!B41,'C. Physician Group'!E:E,'D.1 Summary'!D41)+SUMIFS('C. Physician Group'!V:V,'C. Physician Group'!B:B,'D.1 Summary'!B41,'C. Physician Group'!E:E,'D.1 Summary'!D41)+SUMIFS('C. Physician Group'!W:W,'C. Physician Group'!B:B,'D.1 Summary'!B41,'C. Physician Group'!E:E,'D.1 Summary'!D41)+SUMIFS('C. Physician Group'!X:X,'C. Physician Group'!B:B,'D.1 Summary'!B41,'C. Physician Group'!E:E,'D.1 Summary'!D41)) -> 544507793.8 | I41: 2763.7324 | J41: 796.4646687 | K41: =SUMIFS('C. Physician Group'!N:N,'C. Physician Group'!B:B,'D.1 Summary'!B41,'C. Physician Group'!E:E,'D.1 Summary'!D41) -> 64062020 | L41: =SUMIFS('C. Physician Group'!O:O,'C. Physician Group'!B:B,'D.1 Summary'!B41,'C. Physician Group'!E:E,'D.1 Summary'!D41) -> 43673282.34 | M41: =SUMIFS('C. Physician Group'!P:P,'C. Physician Group'!B:B,'D.1 Summary'!B41,'C. Physician Group'!E:E,'D.1 Summary'!D41) -> 5844354.89 | N41: =SUMIFS('C. Physician Group'!Q:Q,'C. Physician Group'!B:B,'D.1 Summary'!B41,'C. Physician Group'!E:E,'D.1 Summary'!D41) -> 1971769.09 | O41: =SUMIFS('C. Physician Group'!R:R,'C. Physician Group'!B:B,'D.1 Summary'!B41,'C. Physician Group'!E:E,'D.1 Summary'!D41) -> 88743359.72 | P41: =SUMIFS('C. Physician Group'!S:S,'C. Physician Group'!B:B,'D.1 Summary'!B41,'C. Physician Group'!E:E,'D.1 Summary'!D41) -> 281332337.2 | Q41: =(SUMIFS('C. Physician Group'!T:T,'C. Physician Group'!B:B,'D.1 Summary'!B41,'C. Physician Group'!E:E,'D.1 Summary'!D41)+SUMIFS('C. Physician Group'!U:U,'C. Physician Group'!B:B,'D.1 Summary'!B41,'C. Physician Group'!E:E,'D.1 Summary'!D41)+SUMIFS('C. Physician Group'!V:V,'C. Physician Group'!B:B,'D.1 Summary'!B41,'C. Physician Group'!E:E,'D.1 Summary'!D41)+SUMIFS('C. Physician Group'!W:W,'C. Physician Group'!B:B,'D.1 Summary'!B41,'C. Physician Group'!E:E,'D.1 Summary'!D41)+SUMIFS('C. Physician Group'!X:X,'C. Physician Group'!B:B,'D.1 Summary'!B41,'C. Physician Group'!E:E,'D.1 Summary'!D41)) -> 58880670.58
B42: 2017 | C42: Medicare and Medicaid Dual Eligibles afes 21-64 | D42: 6 | E42: =SUMIFS('C. Physician Group'!L:L,'C. Physician Group'!B:B,'D.1 Summary'!B42,'C. Physician Group'!E:E,'D.1 Summary'!D42) -> 38641 | F42: =IFERROR((SUMIFS('C. Physician Group'!L:L,'C. Physician Group'!B:B,'D.1 Summary'!B42,'C. Physician Group'!E:E,'D.1 Summary'!D42)*AVERAGEIFS('C. Physician Group'!M:M,'C. Physician Group'!B:B,'D.1 Summary'!B42,'C. Physician Group'!E:E,'D.1 Summary'!D42)),"0") -> 66197.75759 | G42: 1.713148148 | H42: =(SUMIFS('C. Physician Group'!N:N,'C. Physician Group'!B:B,'D.1 Summary'!B42,'C. Physician Group'!E:E,'D.1 Summary'!D42)+SUMIFS('C. Physician Group'!O:O,'C. Physician Group'!B:B,'D.1 Summary'!B42,'C. Physician Group'!E:E,'D.1 Summary'!D42)+SUMIFS('C. Physician Group'!P:P,'C. Physician Group'!B:B,'D.1 Summary'!B42,'C. Physician Group'!E:E,'D.1 Summary'!D42)+SUMIFS('C. Physician Group'!Q:Q,'C. Physician Group'!B:B,'D.1 Summary'!B42,'C. Physician Group'!E:E,'D.1 Summary'!D42)+SUMIFS('C. Physician Group'!R:R,'C. Physician Group'!B:B,'D.1 Summary'!B42,'C. Physician Group'!E:E,'D.1 Summary'!D42)+SUMIFS('C. Physician Group'!S:S,'C. Physician Group'!B:B,'D.1 Summary'!B42,'C. Physician Group'!E:E,'D.1 Summary'!D42)+SUMIFS('C. Physician Group'!T:T,'C. Physician Group'!B:B,'D.1 Summary'!B42,'C. Physician Group'!E:E,'D.1 Summary'!D42)+SUMIFS('C. Physician Group'!U:U,'C. Physician Group'!B:B,'D.1 Summary'!B42,'C. Physician Group'!E:E,'D.1 Summary'!D42)+SUMIFS('C. Physician Group'!V:V,'C. Physician Group'!B:B,'D.1 Summary'!B42,'C. Physician Group'!E:E,'D.1 Summary'!D42)+SUMIFS('C. Physician Group'!W:W,'C. Physician Group'!B:B,'D.1 Summary'!B42,'C. Physician Group'!E:E,'D.1 Summary'!D42)+SUMIFS('C. Physician Group'!X:X,'C. Physician Group'!B:B,'D.1 Summary'!B42,'C. Physician Group'!E:E,'D.1 Summary'!D42)) -> 83125711.4 | I42: 2151.230853 | J42: 1255.717934 | K42: =SUMIFS('C. Physician Group'!N:N,'C. Physician Group'!B:B,'D.1 Summary'!B42,'C. Physician Group'!E:E,'D.1 Summary'!D42) -> 19912561 | L42: =SUMIFS('C. Physician Group'!O:O,'C. Physician Group'!B:B,'D.1 Summary'!B42,'C. Physician Group'!E:E,'D.1 Summary'!D42) -> 13212989.83 | M42: =SUMIFS('C. Physician Group'!P:P,'C. Physician Group'!B:B,'D.1 Summary'!B42,'C. Physician Group'!E:E,'D.1 Summary'!D42) -> 6425525.863 | N42: =SUMIFS('C. Physician Group'!Q:Q,'C. Physician Group'!B:B,'D.1 Summary'!B42,'C. Physician Group'!E:E,'D.1 Summary'!D42) -> 3938421.272 | O42: =SUMIFS('C. Physician Group'!R:R,'C. Physician Group'!B:B,'D.1 Summary'!B42,'C. Physician Group'!E:E,'D.1 Summary'!D42) -> 23651298.48 | P42: =SUMIFS('C. Physician Group'!S:S,'C. Physician Group'!B:B,'D.1 Summary'!B42,'C. Physician Group'!E:E,'D.1 Summary'!D42) -> 15984914.96 | Q42: =(SUMIFS('C. Physician Group'!T:T,'C. Physician Group'!B:B,'D.1 Summary'!B42,'C. Physician Group'!E:E,'D.1 Summary'!D42)+SUMIFS('C. Physician Group'!U:U,'C. Physician Group'!B:B,'D.1 Summary'!B42,'C. Physician Group'!E:E,'D.1 Summary'!D42)+SUMIFS('C. Physician Group'!V:V,'C. Physician Group'!B:B,'D.1 Summary'!B42,'C. Physician Group'!E:E,'D.1 Summary'!D42)+SUMIFS('C. Physician Group'!W:W,'C. Physician Group'!B:B,'D.1 Summary'!B42,'C. Physician Group'!E:E,'D.1 Summary'!D42)+SUMIFS('C. Physician Group'!X:X,'C. Physician Group'!B:B,'D.1 Summary'!B42,'C. Physician Group'!E:E,'D.1 Summary'!D42)) -> 0
B43: 2017 | C43: Other | D43: 7 | E43: =SUMIFS('C. Physician Group'!L:L,'C. Physician Group'!B:B,'D.1 Summary'!B43,'C. Physician Group'!E:E,'D.1 Summary'!D43) -> 0 | F43: =IFERROR((SUMIFS('C. Physician Group'!L:L,'C. Physician Group'!B:B,'D.1 Summary'!B43,'C. Physician Group'!E:E,'D.1 Summary'!D43)*AVERAGEIFS('C. Physician Group'!M:M,'C. Physician Group'!B:B,'D.1 Summary'!B43,'C. Physician Group'!E:E,'D.1 Summary'!D43)),"0") -> 0 | G43: 0 | H43: =(SUMIFS('C. Physician Group'!N:N,'C. Physician Group'!B:B,'D.1 Summary'!B43,'C. Physician Group'!E:E,'D.1 Summary'!D43)+SUMIFS('C. Physician Group'!O:O,'C. Physician Group'!B:B,'D.1 Summary'!B43,'C. Physician Group'!E:E,'D.1 Summary'!D43)+SUMIFS('C. Physician Group'!P:P,'C. Physician Group'!B:B,'D.1 Summary'!B43,'C. Physician Group'!E:E,'D.1 Summary'!D43)+SUMIFS('C. Physician Group'!Q:Q,'C. Physician Group'!B:B,'D.1 Summary'!B43,'C. Physician Group'!E:E,'D.1 Summary'!D43)+SUMIFS('C. Physician Group'!R:R,'C. Physician Group'!B:B,'D.1 Summary'!B43,'C. Physician Group'!E:E,'D.1 Summary'!D43)+SUMIFS('C. Physician Group'!S:S,'C. Physician Group'!B:B,'D.1 Summary'!B43,'C. Physician Group'!E:E,'D.1 Summary'!D43)+SUMIFS('C. Physician Group'!T:T,'C. Physician Group'!B:B,'D.1 Summary'!B43,'C. Physician Group'!E:E,'D.1 Summary'!D43)+SUMIFS('C. Physician Group'!U:U,'C. Physician Group'!B:B,'D.1 Summary'!B43,'C. Physician Group'!E:E,'D.1 Summary'!D43)+SUMIFS('C. Physician Group'!V:V,'C. Physician Group'!B:B,'D.1 Summary'!B43,'C. Physician Group'!E:E,'D.1 Summary'!D43)+SUMIFS('C. Physician Group'!W:W,'C. Physician Group'!B:B,'D.1 Summary'!B43,'C. Physician Group'!E:E,'D.1 Summary'!D43)+SUMIFS('C. Physician Group'!X:X,'C. Physician Group'!B:B,'D.1 Summary'!B43,'C. Physician Group'!E:E,'D.1 Summary'!D43)) -> 0 | I43: 0 | J43: 0 | K43: =SUMIFS('C. Physician Group'!N:N,'C. Physician Group'!B:B,'D.1 Summary'!B43,'C. Physician Group'!E:E,'D.1 Summary'!D43) -> 0 | L43: =SUMIFS('C. Physician Group'!O:O,'C. Physician Group'!B:B,'D.1 Summary'!B43,'C. Physician Group'!E:E,'D.1 Summary'!D43) -> 0 | M43: =SUMIFS('C. Physician Group'!P:P,'C. Physician Group'!B:B,'D.1 Summary'!B43,'C. Physician Group'!E:E,'D.1 Summary'!D43) -> 0 | N43: =SUMIFS('C. Physician Group'!Q:Q,'C. Physician Group'!B:B,'D.1 Summary'!B43,'C. Physician Group'!E:E,'D.1 Summary'!D43) -> 0 | O43: =SUMIFS('C. Physician Group'!R:R,'C. Physician Group'!B:B,'D.1 Summary'!B43,'C. Physician Group'!E:E,'D.1 Summary'!D43) -> 0 | P43: =SUMIFS('C. Physician Group'!S:S,'C. Physician Group'!B:B,'D.1 Summary'!B43,'C. Physician Group'!E:E,'D.1 Summary'!D43) -> 0 | Q43: =(SUMIFS('C. Physician Group'!T:T,'C. Physician Group'!B:B,'D.1 Summary'!B43,'C. Physician Group'!E:E,'D.1 Summary'!D43)+SUMIFS('C. Physician Group'!U:U,'C. Physician Group'!B:B,'D.1 Summary'!B43,'C. Physician Group'!E:E,'D.1 Summary'!D43)+SUMIFS('C. Physician Group'!V:V,'C. Physician Group'!B:B,'D.1 Summary'!B43,'C. Physician Group'!E:E,'D.1 Summary'!D43)+SUMIFS('C. Physician Group'!W:W,'C. Physician Group'!B:B,'D.1 Summary'!B43,'C. Physician Group'!E:E,'D.1 Summary'!D43)+SUMIFS('C. Physician Group'!X:X,'C. Physician Group'!B:B,'D.1 Summary'!B43,'C. Physician Group'!E:E,'D.1 Summary'!D43)) -> 0
B44: 2018 | C44: Medicare & Medicare Advantage | D44: 1 | E44: =SUMIFS('C. Physician Group'!L:L,'C. Physician Group'!B:B,'D.1 Summary'!B44,'C. Physician Group'!E:E,'D.1 Summary'!D44) -> 21920.03 | F44: =(SUMIFS('C. Physician Group'!L:L,'C. Physician Group'!B:B,'D.1 Summary'!B44,'C. Physician Group'!E:E,'D.1 Summary'!D44)*SUMIFS('C. Physician Group'!M:M,'C. Physician Group'!B:B,'D.1 Summary'!B44,'C. Physician Group'!E:E,'D.1 Summary'!D44)) -> 10460.78632 | G44: 0.477225 | H44: =(SUMIFS('C. Physician Group'!N:N,'C. Physician Group'!B:B,'D.1 Summary'!B44,'C. Physician Group'!E:E,'D.1 Summary'!D44)+SUMIFS('C. Physician Group'!O:O,'C. Physician Group'!B:B,'D.1 Summary'!B44,'C. Physician Group'!E:E,'D.1 Summary'!D44)+SUMIFS('C. Physician Group'!P:P,'C. Physician Group'!B:B,'D.1 Summary'!B44,'C. Physician Group'!E:E,'D.1 Summary'!D44)+SUMIFS('C. Physician Group'!Q:Q,'C. Physician Group'!B:B,'D.1 Summary'!B44,'C. Physician Group'!E:E,'D.1 Summary'!D44)+SUMIFS('C. Physician Group'!R:R,'C. Physician Group'!B:B,'D.1 Summary'!B44,'C. Physician Group'!E:E,'D.1 Summary'!D44)+SUMIFS('C. Physician Group'!S:S,'C. Physician Group'!B:B,'D.1 Summary'!B44,'C. Physician Group'!E:E,'D.1 Summary'!D44)+SUMIFS('C. Physician Group'!T:T,'C. Physician Group'!B:B,'D.1 Summary'!B44,'C. Physician Group'!E:E,'D.1 Summary'!D44)+SUMIFS('C. Physician Group'!U:U,'C. Physician Group'!B:B,'D.1 Summary'!B44,'C. Physician Group'!E:E,'D.1 Summary'!D44)+SUMIFS('C. Physician Group'!V:V,'C. Physician Group'!B:B,'D.1 Summary'!B44,'C. Physician Group'!E:E,'D.1 Summary'!D44)+SUMIFS('C. Physician Group'!W:W,'C. Physician Group'!B:B,'D.1 Summary'!B44,'C. Physician Group'!E:E,'D.1 Summary'!D44)+SUMIFS('C. Physician Group'!X:X,'C. Physician Group'!B:B,'D.1 Summary'!B44,'C. Physician Group'!E:E,'D.1 Summary'!D44)) -> 24377936.69 | I44: 1112.130626 | J44: 2330.411496 | K44: =SUMIFS('C. Physician Group'!N:N,'C. Physician Group'!B:B,'D.1 Summary'!B44,'C. Physician Group'!E:E,'D.1 Summary'!D44) -> 6887739.44 | L44: =SUMIFS('C. Physician Group'!O:O,'C. Physician Group'!B:B,'D.1 Summary'!B44,'C. Physician Group'!E:E,'D.1 Summary'!D44) -> 2842572.644 | M44: =SUMIFS('C. Physician Group'!P:P,'C. Physician Group'!B:B,'D.1 Summary'!B44,'C. Physician Group'!E:E,'D.1 Summary'!D44) -> 4576988.316 | N44: =SUMIFS('C. Physician Group'!Q:Q,'C. Physician Group'!B:B,'D.1 Summary'!B44,'C. Physician Group'!E:E,'D.1 Summary'!D44) -> 2686613.463 | O44: =SUMIFS('C. Physician Group'!R:R,'C. Physician Group'!B:B,'D.1 Summary'!B44,'C. Physician Group'!E:E,'D.1 Summary'!D44) -> 5226541.778 | P44: =SUMIFS('C. Physician Group'!S:S,'C. Physician Group'!B:B,'D.1 Summary'!B44,'C. Physician Group'!E:E,'D.1 Summary'!D44) -> 2127740.174 | Q44: =(SUMIFS('C. Physician Group'!T:T,'C. Physician Group'!B:B,'D.1 Summary'!B44,'C. Physician Group'!E:E,'D.1 Summary'!D44)+SUMIFS('C. Physician Group'!U:U,'C. Physician Group'!B:B,'D.1 Summary'!B44,'C. Physician Group'!E:E,'D.1 Summary'!D44)+SUMIFS('C. Physician Group'!V:V,'C. Physician Group'!B:B,'D.1 Summary'!B44,'C. Physician Group'!E:E,'D.1 Summary'!D44)+SUMIFS('C. Physician Group'!W:W,'C. Physician Group'!B:B,'D.1 Summary'!B44,'C. Physician Group'!E:E,'D.1 Summary'!D44)+SUMIFS('C. Physician Group'!X:X,'C. Physician Group'!B:B,'D.1 Summary'!B44,'C. Physician Group'!E:E,'D.1 Summary'!D44)) -> 29740.8741
B45: 2018 | C45: Medicaid & Medicaid Managed Care (MCO) | D45: 2 | E45: =SUMIFS('C. Physician Group'!L:L,'C. Physician Group'!B:B,'D.1 Summary'!B45,'C. Physician Group'!E:E,'D.1 Summary'!D45) -> 4235529.9 | F45: =IFERROR((SUMIFS('C. Physician Group'!L:L,'C. Physician Group'!B:B,'D.1 Summary'!B45,'C. Physician Group'!E:E,'D.1 Summary'!D45)*AVERAGEIFS('C. Physician Group'!M:M,'C. Physician Group'!B:B,'D.1 Summary'!B45,'C. Physician Group'!E:E,'D.1 Summary'!D45)),"0") -> 9731074.08 | G45: 2.29748681 | H45: =(SUMIFS('C. Physician Group'!N:N,'C. Physician Group'!B:B,'D.1 Summary'!B45,'C. Physician Group'!E:E,'D.1 Summary'!D45)+SUMIFS('C. Physician Group'!O:O,'C. Physician Group'!B:B,'D.1 Summary'!B45,'C. Physician Group'!E:E,'D.1 Summary'!D45)+SUMIFS('C. Physician Group'!P:P,'C. Physician Group'!B:B,'D.1 Summary'!B45,'C. Physician Group'!E:E,'D.1 Summary'!D45)+SUMIFS('C. Physician Group'!Q:Q,'C. Physician Group'!B:B,'D.1 Summary'!B45,'C. Physician Group'!E:E,'D.1 Summary'!D45)+SUMIFS('C. Physician Group'!R:R,'C. Physician Group'!B:B,'D.1 Summary'!B45,'C. Physician Group'!E:E,'D.1 Summary'!D45)+SUMIFS('C. Physician Group'!S:S,'C. Physician Group'!B:B,'D.1 Summary'!B45,'C. Physician Group'!E:E,'D.1 Summary'!D45)+SUMIFS('C. Physician Group'!T:T,'C. Physician Group'!B:B,'D.1 Summary'!B45,'C. Physician Group'!E:E,'D.1 Summary'!D45)+SUMIFS('C. Physician Group'!U:U,'C. Physician Group'!B:B,'D.1 Summary'!B45,'C. Physician Group'!E:E,'D.1 Summary'!D45)+SUMIFS('C. Physician Group'!V:V,'C. Physician Group'!B:B,'D.1 Summary'!B45,'C. Physician Group'!E:E,'D.1 Summary'!D45)+SUMIFS('C. Physician Group'!W:W,'C. Physician Group'!B:B,'D.1 Summary'!B45,'C. Physician Group'!E:E,'D.1 Summary'!D45)+SUMIFS('C. Physician Group'!X:X,'C. Physician Group'!B:B,'D.1 Summary'!B45,'C. Physician Group'!E:E,'D.1 Summary'!D45)) -> 2193126956 | I45: 517.7928165 | J45: 225.3735752 | K45: =SUMIFS('C. Physician Group'!N:N,'C. Physician Group'!B:B,'D.1 Summary'!B45,'C. Physician Group'!E:E,'D.1 Summary'!D45) -> 438186884.1 | L45: =SUMIFS('C. Physician Group'!O:O,'C. Physician Group'!B:B,'D.1 Summary'!B45,'C. Physician Group'!E:E,'D.1 Summary'!D45) -> 439942903.5 | M45: =SUMIFS('C. Physician Group'!P:P,'C. Physician Group'!B:B,'D.1 Summary'!B45,'C. Physician Group'!E:E,'D.1 Summary'!D45) -> 262643003.1 | N45: =SUMIFS('C. Physician Group'!Q:Q,'C. Physician Group'!B:B,'D.1 Summary'!B45,'C. Physician Group'!E:E,'D.1 Summary'!D45) -> 76988201.12 | O45: =SUMIFS('C. Physician Group'!R:R,'C. Physician Group'!B:B,'D.1 Summary'!B45,'C. Physician Group'!E:E,'D.1 Summary'!D45) -> 554885033.7 | P45: =SUMIFS('C. Physician Group'!S:S,'C. Physician Group'!B:B,'D.1 Summary'!B45,'C. Physician Group'!E:E,'D.1 Summary'!D45) -> 170426968.6 | Q45: =(SUMIFS('C. Physician Group'!T:T,'C. Physician Group'!B:B,'D.1 Summary'!B45,'C. Physician Group'!E:E,'D.1 Summary'!D45)+SUMIFS('C. Physician Group'!U:U,'C. Physician Group'!B:B,'D.1 Summary'!B45,'C. Physician Group'!E:E,'D.1 Summary'!D45)+SUMIFS('C. Physician Group'!V:V,'C. Physician Group'!B:B,'D.1 Summary'!B45,'C. Physician Group'!E:E,'D.1 Summary'!D45)+SUMIFS('C. Physician Group'!W:W,'C. Physician Group'!B:B,'D.1 Summary'!B45,'C. Physician Group'!E:E,'D.1 Summary'!D45)+SUMIFS('C. Physician Group'!X:X,'C. Physician Group'!B:B,'D.1 Summary'!B45,'C. Physician Group'!E:E,'D.1 Summary'!D45)) -> 250053962
B46: 2018 | C46: Commercial - Full Claims | D46: 3 | E46: =SUMIFS('C. Physician Group'!L:L,'C. Physician Group'!B:B,'D.1 Summary'!B46,'C. Physician Group'!E:E,'D.1 Summary'!D46) -> 8483027.7 | F46: =IFERROR((SUMIFS('C. Physician Group'!L:L,'C. Physician Group'!B:B,'D.1 Summary'!B46,'C. Physician Group'!E:E,'D.1 Summary'!D46)*AVERAGEIFS('C. Physician Group'!M:M,'C. Physician Group'!B:B,'D.1 Summary'!B46,'C. Physician Group'!E:E,'D.1 Summary'!D46)),"0") -> 5166855.328 | G46: 0.6090815108 | H46: =(SUMIFS('C. Physician Group'!N:N,'C. Physician Group'!B:B,'D.1 Summary'!B46,'C. Physician Group'!E:E,'D.1 Summary'!D46)+SUMIFS('C. Physician Group'!O:O,'C. Physician Group'!B:B,'D.1 Summary'!B46,'C. Physician Group'!E:E,'D.1 Summary'!D46)+SUMIFS('C. Physician Group'!P:P,'C. Physician Group'!B:B,'D.1 Summary'!B46,'C. Physician Group'!E:E,'D.1 Summary'!D46)+SUMIFS('C. Physician Group'!Q:Q,'C. Physician Group'!B:B,'D.1 Summary'!B46,'C. Physician Group'!E:E,'D.1 Summary'!D46)+SUMIFS('C. Physician Group'!R:R,'C. Physician Group'!B:B,'D.1 Summary'!B46,'C. Physician Group'!E:E,'D.1 Summary'!D46)+SUMIFS('C. Physician Group'!S:S,'C. Physician Group'!B:B,'D.1 Summary'!B46,'C. Physician Group'!E:E,'D.1 Summary'!D46)+SUMIFS('C. Physician Group'!T:T,'C. Physician Group'!B:B,'D.1 Summary'!B46,'C. Physician Group'!E:E,'D.1 Summary'!D46)+SUMIFS('C. Physician Group'!U:U,'C. Physician Group'!B:B,'D.1 Summary'!B46,'C. Physician Group'!E:E,'D.1 Summary'!D46)+SUMIFS('C. Physician Group'!V:V,'C. Physician Group'!B:B,'D.1 Summary'!B46,'C. Physician Group'!E:E,'D.1 Summary'!D46)+SUMIFS('C. Physician Group'!W:W,'C. Physician Group'!B:B,'D.1 Summary'!B46,'C. Physician Group'!E:E,'D.1 Summary'!D46)+SUMIFS('C. Physician Group'!X:X,'C. Physician Group'!B:B,'D.1 Summary'!B46,'C. Physician Group'!E:E,'D.1 Summary'!D46)) -> 4182850321 | I46: 493.0846 | J46: 809.5543721 | K46: =SUMIFS('C. Physician Group'!N:N,'C. Physician Group'!B:B,'D.1 Summary'!B46,'C. Physician Group'!E:E,'D.1 Summary'!D46) -> 705885560.1 | L46: =SUMIFS('C. Physician Group'!O:O,'C. Physician Group'!B:B,'D.1 Summary'!B46,'C. Physician Group'!E:E,'D.1 Summary'!D46) -> 976922600.7 | M46: =SUMIFS('C. Physician Group'!P:P,'C. Physician Group'!B:B,'D.1 Summary'!B46,'C. Physician Group'!E:E,'D.1 Summary'!D46) -> 1175960893 | N46: =SUMIFS('C. Physician Group'!Q:Q,'C. Physician Group'!B:B,'D.1 Summary'!B46,'C. Physician Group'!E:E,'D.1 Summary'!D46) -> 209862228.1 | O46: =SUMIFS('C. Physician Group'!R:R,'C. Physician Group'!B:B,'D.1 Summary'!B46,'C. Physician Group'!E:E,'D.1 Summary'!D46) -> 746474236.2 | P46: =SUMIFS('C. Physician Group'!S:S,'C. Physician Group'!B:B,'D.1 Summary'!B46,'C. Physician Group'!E:E,'D.1 Summary'!D46) -> 227895981.5 | Q46: =(SUMIFS('C. Physician Group'!T:T,'C. Physician Group'!B:B,'D.1 Summary'!B46,'C. Physician Group'!E:E,'D.1 Summary'!D46)+SUMIFS('C. Physician Group'!U:U,'C. Physician Group'!B:B,'D.1 Summary'!B46,'C. Physician Group'!E:E,'D.1 Summary'!D46)+SUMIFS('C. Physician Group'!V:V,'C. Physician Group'!B:B,'D.1 Summary'!B46,'C. Physician Group'!E:E,'D.1 Summary'!D46)+SUMIFS('C. Physician Group'!W:W,'C. Physician Group'!B:B,'D.1 Summary'!B46,'C. Physician Group'!E:E,'D.1 Summary'!D46)+SUMIFS('C. Physician Group'!X:X,'C. Physician Group'!B:B,'D.1 Summary'!B46,'C. Physician Group'!E:E,'D.1 Summary'!D46)) -> 139848820.7
B47: 2018 | C47: Commercial - Partial Claims | D47: 4 | E47: =SUMIFS('C. Physician Group'!L:L,'C. Physician Group'!B:B,'D.1 Summary'!B47,'C. Physician Group'!E:E,'D.1 Summary'!D47) -> 1878193.2 | F47: =(SUMIFS('C. Physician Group'!L:L,'C. Physician Group'!B:B,'D.1 Summary'!B47,'C. Physician Group'!E:E,'D.1 Summary'!D47)*SUMIFS('C. Physician Group'!M:M,'C. Physician Group'!B:B,'D.1 Summary'!B47,'C. Physician Group'!E:E,'D.1 Summary'!D47)) -> 3859436.6 | G47: 2.054866667 | H47: =(SUMIFS('C. Physician Group'!N:N,'C. Physician Group'!B:B,'D.1 Summary'!B47,'C. Physician Group'!E:E,'D.1 Summary'!D47)+SUMIFS('C. Physician Group'!O:O,'C. Physician Group'!B:B,'D.1 Summary'!B47,'C. Physician Group'!E:E,'D.1 Summary'!D47)+SUMIFS('C. Physician Group'!P:P,'C. Physician Group'!B:B,'D.1 Summary'!B47,'C. Physician Group'!E:E,'D.1 Summary'!D47)+SUMIFS('C. Physician Group'!Q:Q,'C. Physician Group'!B:B,'D.1 Summary'!B47,'C. Physician Group'!E:E,'D.1 Summary'!D47)+SUMIFS('C. Physician Group'!R:R,'C. Physician Group'!B:B,'D.1 Summary'!B47,'C. Physician Group'!E:E,'D.1 Summary'!D47)+SUMIFS('C. Physician Group'!S:S,'C. Physician Group'!B:B,'D.1 Summary'!B47,'C. Physician Group'!E:E,'D.1 Summary'!D47)+SUMIFS('C. Physician Group'!T:T,'C. Physician Group'!B:B,'D.1 Summary'!B47,'C. Physician Group'!E:E,'D.1 Summary'!D47)+SUMIFS('C. Physician Group'!U:U,'C. Physician Group'!B:B,'D.1 Summary'!B47,'C. Physician Group'!E:E,'D.1 Summary'!D47)+SUMIFS('C. Physician Group'!V:V,'C. Physician Group'!B:B,'D.1 Summary'!B47,'C. Physician Group'!E:E,'D.1 Summary'!D47)+SUMIFS('C. Physician Group'!W:W,'C. Physician Group'!B:B,'D.1 Summary'!B47,'C. Physician Group'!E:E,'D.1 Summary'!D47)+SUMIFS('C. Physician Group'!X:X,'C. Physician Group'!B:B,'D.1 Summary'!B47,'C. Physician Group'!E:E,'D.1 Summary'!D47)) -> 703690604 | I47: 374.6635884 | J47: 182.3298779 | K47: =SUMIFS('C. Physician Group'!N:N,'C. Physician Group'!B:B,'D.1 Summary'!B47,'C. Physician Group'!E:E,'D.1 Summary'!D47) -> 132275923.5 | L47: =SUMIFS('C. Physician Group'!O:O,'C. Physician Group'!B:B,'D.1 Summary'!B47,'C. Physician Group'!E:E,'D.1 Summary'!D47) -> 154664873.3 | M47: =SUMIFS('C. Physician Group'!P:P,'C. Physician Group'!B:B,'D.1 Summary'!B47,'C. Physician Group'!E:E,'D.1 Summary'!D47) -> 210327385.8 | N47: =SUMIFS('C. Physician Group'!Q:Q,'C. Physician Group'!B:B,'D.1 Summary'!B47,'C. Physician Group'!E:E,'D.1 Summary'!D47) -> 32234118.31 | O47: =SUMIFS('C. Physician Group'!R:R,'C. Physician Group'!B:B,'D.1 Summary'!B47,'C. Physician Group'!E:E,'D.1 Summary'!D47) -> 83168281.79 | P47: =SUMIFS('C. Physician Group'!S:S,'C. Physician Group'!B:B,'D.1 Summary'!B47,'C. Physician Group'!E:E,'D.1 Summary'!D47) -> 90472768.95 | Q47: =(SUMIFS('C. Physician Group'!T:T,'C. Physician Group'!B:B,'D.1 Summary'!B47,'C. Physician Group'!E:E,'D.1 Summary'!D47)+SUMIFS('C. Physician Group'!U:U,'C. Physician Group'!B:B,'D.1 Summary'!B47,'C. Physician Group'!E:E,'D.1 Summary'!D47)+SUMIFS('C. Physician Group'!V:V,'C. Physician Group'!B:B,'D.1 Summary'!B47,'C. Physician Group'!E:E,'D.1 Summary'!D47)+SUMIFS('C. Physician Group'!W:W,'C. Physician Group'!B:B,'D.1 Summary'!B47,'C. Physician Group'!E:E,'D.1 Summary'!D47)+SUMIFS('C. Physician Group'!X:X,'C. Physician Group'!B:B,'D.1 Summary'!B47,'C. Physician Group'!E:E,'D.1 Summary'!D47)) -> 547252.3368
B48: 2018 | C48: Medicare and Medicaid Dual Eligibles ages 65 and over | D48: 5 | E48: =SUMIFS('C. Physician Group'!L:L,'C. Physician Group'!B:B,'D.1 Summary'!B48,'C. Physician Group'!E:E,'D.1 Summary'!D48) -> 212295.6 | F48: =IFERROR((SUMIFS('C. Physician Group'!L:L,'C. Physician Group'!B:B,'D.1 Summary'!B48,'C. Physician Group'!E:E,'D.1 Summary'!D48)*AVERAGEIFS('C. Physician Group'!M:M,'C. Physician Group'!B:B,'D.1 Summary'!B48,'C. Physician Group'!E:E,'D.1 Summary'!D48)),"0") -> 869987.3688 | G48: 4.098 | H48: =(SUMIFS('C. Physician Group'!N:N,'C. Physician Group'!B:B,'D.1 Summary'!B48,'C. Physician Group'!E:E,'D.1 Summary'!D48)+SUMIFS('C. Physician Group'!O:O,'C. Physician Group'!B:B,'D.1 Summary'!B48,'C. Physician Group'!E:E,'D.1 Summary'!D48)+SUMIFS('C. Physician Group'!P:P,'C. Physician Group'!B:B,'D.1 Summary'!B48,'C. Physician Group'!E:E,'D.1 Summary'!D48)+SUMIFS('C. Physician Group'!Q:Q,'C. Physician Group'!B:B,'D.1 Summary'!B48,'C. Physician Group'!E:E,'D.1 Summary'!D48)+SUMIFS('C. Physician Group'!R:R,'C. Physician Group'!B:B,'D.1 Summary'!B48,'C. Physician Group'!E:E,'D.1 Summary'!D48)+SUMIFS('C. Physician Group'!S:S,'C. Physician Group'!B:B,'D.1 Summary'!B48,'C. Physician Group'!E:E,'D.1 Summary'!D48)+SUMIFS('C. Physician Group'!T:T,'C. Physician Group'!B:B,'D.1 Summary'!B48,'C. Physician Group'!E:E,'D.1 Summary'!D48)+SUMIFS('C. Physician Group'!U:U,'C. Physician Group'!B:B,'D.1 Summary'!B48,'C. Physician Group'!E:E,'D.1 Summary'!D48)+SUMIFS('C. Physician Group'!V:V,'C. Physician Group'!B:B,'D.1 Summary'!B48,'C. Physician Group'!E:E,'D.1 Summary'!D48)+SUMIFS('C. Physician Group'!W:W,'C. Physician Group'!B:B,'D.1 Summary'!B48,'C. Physician Group'!E:E,'D.1 Summary'!D48)+SUMIFS('C. Physician Group'!X:X,'C. Physician Group'!B:B,'D.1 Summary'!B48,'C. Physician Group'!E:E,'D.1 Summary'!D48)) -> 595948103.1 | I48: 2807.161821 | J48: 685.007765 | K48: =SUMIFS('C. Physician Group'!N:N,'C. Physician Group'!B:B,'D.1 Summary'!B48,'C. Physician Group'!E:E,'D.1 Summary'!D48) -> 68177113.2 | L48: =SUMIFS('C. Physician Group'!O:O,'C. Physician Group'!B:B,'D.1 Summary'!B48,'C. Physician Group'!E:E,'D.1 Summary'!D48) -> 49892898.67 | M48: =SUMIFS('C. Physician Group'!P:P,'C. Physician Group'!B:B,'D.1 Summary'!B48,'C. Physician Group'!E:E,'D.1 Summary'!D48) -> 6961398.924 | N48: =SUMIFS('C. Physician Group'!Q:Q,'C. Physician Group'!B:B,'D.1 Summary'!B48,'C. Physician Group'!E:E,'D.1 Summary'!D48) -> 2720311.044 | O48: =SUMIFS('C. Physician Group'!R:R,'C. Physician Group'!B:B,'D.1 Summary'!B48,'C. Physician Group'!E:E,'D.1 Summary'!D48) -> 90788272.78 | P48: =SUMIFS('C. Physician Group'!S:S,'C. Physician Group'!B:B,'D.1 Summary'!B48,'C. Physician Group'!E:E,'D.1 Summary'!D48) -> 304154895.9 | Q48: =(SUMIFS('C. Physician Group'!T:T,'C. Physician Group'!B:B,'D.1 Summary'!B48,'C. Physician Group'!E:E,'D.1 Summary'!D48)+SUMIFS('C. Physician Group'!U:U,'C. Physician Group'!B:B,'D.1 Summary'!B48,'C. Physician Group'!E:E,'D.1 Summary'!D48)+SUMIFS('C. Physician Group'!V:V,'C. Physician Group'!B:B,'D.1 Summary'!B48,'C. Physician Group'!E:E,'D.1 Summary'!D48)+SUMIFS('C. Physician Group'!W:W,'C. Physician Group'!B:B,'D.1 Summary'!B48,'C. Physician Group'!E:E,'D.1 Summary'!D48)+SUMIFS('C. Physician Group'!X:X,'C. Physician Group'!B:B,'D.1 Summary'!B48,'C. Physician Group'!E:E,'D.1 Summary'!D48)) -> 73253212.54
B49: 2018 | C49: Medicare and Medicaid Dual Eligibles afes 21-64 | D49: 6 | E49: =SUMIFS('C. Physician Group'!L:L,'C. Physician Group'!B:B,'D.1 Summary'!B49,'C. Physician Group'!E:E,'D.1 Summary'!D49) -> 46369.2 | F49: =(SUMIFS('C. Physician Group'!L:L,'C. Physician Group'!B:B,'D.1 Summary'!B49,'C. Physician Group'!E:E,'D.1 Summary'!D49)*SUMIFS('C. Physician Group'!M:M,'C. Physician Group'!B:B,'D.1 Summary'!B49,'C. Physician Group'!E:E,'D.1 Summary'!D49)) -> 95324.77093 | G49: 2.055777778 | H49: =(SUMIFS('C. Physician Group'!N:N,'C. Physician Group'!B:B,'D.1 Summary'!B49,'C. Physician Group'!E:E,'D.1 Summary'!D49)+SUMIFS('C. Physician Group'!O:O,'C. Physician Group'!B:B,'D.1 Summary'!B49,'C. Physician Group'!E:E,'D.1 Summary'!D49)+SUMIFS('C. Physician Group'!P:P,'C. Physician Group'!B:B,'D.1 Summary'!B49,'C. Physician Group'!E:E,'D.1 Summary'!D49)+SUMIFS('C. Physician Group'!Q:Q,'C. Physician Group'!B:B,'D.1 Summary'!B49,'C. Physician Group'!E:E,'D.1 Summary'!D49)+SUMIFS('C. Physician Group'!R:R,'C. Physician Group'!B:B,'D.1 Summary'!B49,'C. Physician Group'!E:E,'D.1 Summary'!D49)+SUMIFS('C. Physician Group'!S:S,'C. Physician Group'!B:B,'D.1 Summary'!B49,'C. Physician Group'!E:E,'D.1 Summary'!D49)+SUMIFS('C. Physician Group'!T:T,'C. Physician Group'!B:B,'D.1 Summary'!B49,'C. Physician Group'!E:E,'D.1 Summary'!D49)+SUMIFS('C. Physician Group'!U:U,'C. Physician Group'!B:B,'D.1 Summary'!B49,'C. Physician Group'!E:E,'D.1 Summary'!D49)+SUMIFS('C. Physician Group'!V:V,'C. Physician Group'!B:B,'D.1 Summary'!B49,'C. Physician Group'!E:E,'D.1 Summary'!D49)+SUMIFS('C. Physician Group'!W:W,'C. Physician Group'!B:B,'D.1 Summary'!B49,'C. Physician Group'!E:E,'D.1 Summary'!D49)+SUMIFS('C. Physician Group'!X:X,'C. Physician Group'!B:B,'D.1 Summary'!B49,'C. Physician Group'!E:E,'D.1 Summary'!D49)) -> 99750865.68 | I49: 2151.231112 | J49: 1046.431738 | K49: =SUMIFS('C. Physician Group'!N:N,'C. Physician Group'!B:B,'D.1 Summary'!B49,'C. Physician Group'!E:E,'D.1 Summary'!D49) -> 23895073.2 | L49: =SUMIFS('C. Physician Group'!O:O,'C. Physician Group'!B:B,'D.1 Summary'!B49,'C. Physician Group'!E:E,'D.1 Summary'!D49) -> 15855599.8 | M49: =SUMIFS('C. Physician Group'!P:P,'C. Physician Group'!B:B,'D.1 Summary'!B49,'C. Physician Group'!E:E,'D.1 Summary'!D49) -> 7710631.036 | N49: =SUMIFS('C. Physician Group'!Q:Q,'C. Physician Group'!B:B,'D.1 Summary'!B49,'C. Physician Group'!E:E,'D.1 Summary'!D49) -> 4726105.526 | O49: =SUMIFS('C. Physician Group'!R:R,'C. Physician Group'!B:B,'D.1 Summary'!B49,'C. Physician Group'!E:E,'D.1 Summary'!D49) -> 28381558.18 | P49: =SUMIFS('C. Physician Group'!S:S,'C. Physician Group'!B:B,'D.1 Summary'!B49,'C. Physician Group'!E:E,'D.1 Summary'!D49) -> 19181897.95 | Q49: =(SUMIFS('C. Physician Group'!T:T,'C. Physician Group'!B:B,'D.1 Summary'!B49,'C. Physician Group'!E:E,'D.1 Summary'!D49)+SUMIFS('C. Physician Group'!U:U,'C. Physician Group'!B:B,'D.1 Summary'!B49,'C. Physician Group'!E:E,'D.1 Summary'!D49)+SUMIFS('C. Physician Group'!V:V,'C. Physician Group'!B:B,'D.1 Summary'!B49,'C. Physician Group'!E:E,'D.1 Summary'!D49)+SUMIFS('C. Physician Group'!W:W,'C. Physician Group'!B:B,'D.1 Summary'!B49,'C. Physician Group'!E:E,'D.1 Summary'!D49)+SUMIFS('C. Physician Group'!X:X,'C. Physician Group'!B:B,'D.1 Summary'!B49,'C. Physician Group'!E:E,'D.1 Summary'!D49)) -> 0
B50: 2018 | C50: Other | D50: 7 | E50: =SUMIFS('C. Physician Group'!L:L,'C. Physician Group'!B:B,'D.1 Summary'!B50,'C. Physician Group'!E:E,'D.1 Summary'!D50) -> 0 | F50: =IFERROR((SUMIFS('C. Physician Group'!L:L,'C. Physician Group'!B:B,'D.1 Summary'!B50,'C. Physician Group'!E:E,'D.1 Summary'!D50)*AVERAGEIFS('C. Physician Group'!M:M,'C. Physician Group'!B:B,'D.1 Summary'!B50,'C. Physician Group'!E:E,'D.1 Summary'!D50)),"0") -> 0 | G50: 0 | H50: =(SUMIFS('C. Physician Group'!N:N,'C. Physician Group'!B:B,'D.1 Summary'!B50,'C. Physician Group'!E:E,'D.1 Summary'!D50)+SUMIFS('C. Physician Group'!O:O,'C. Physician Group'!B:B,'D.1 Summary'!B50,'C. Physician Group'!E:E,'D.1 Summary'!D50)+SUMIFS('C. Physician Group'!P:P,'C. Physician Group'!B:B,'D.1 Summary'!B50,'C. Physician Group'!E:E,'D.1 Summary'!D50)+SUMIFS('C. Physician Group'!Q:Q,'C. Physician Group'!B:B,'D.1 Summary'!B50,'C. Physician Group'!E:E,'D.1 Summary'!D50)+SUMIFS('C. Physician Group'!R:R,'C. Physician Group'!B:B,'D.1 Summary'!B50,'C. Physician Group'!E:E,'D.1 Summary'!D50)+SUMIFS('C. Physician Group'!S:S,'C. Physician Group'!B:B,'D.1 Summary'!B50,'C. Physician Group'!E:E,'D.1 Summary'!D50)+SUMIFS('C. Physician Group'!T:T,'C. Physician Group'!B:B,'D.1 Summary'!B50,'C. Physician Group'!E:E,'D.1 Summary'!D50)+SUMIFS('C. Physician Group'!U:U,'C. Physician Group'!B:B,'D.1 Summary'!B50,'C. Physician Group'!E:E,'D.1 Summary'!D50)+SUMIFS('C. Physician Group'!V:V,'C. Physician Group'!B:B,'D.1 Summary'!B50,'C. Physician Group'!E:E,'D.1 Summary'!D50)+SUMIFS('C. Physician Group'!W:W,'C. Physician Group'!B:B,'D.1 Summary'!B50,'C. Physician Group'!E:E,'D.1 Summary'!D50)+SUMIFS('C. Physician Group'!X:X,'C. Physician Group'!B:B,'D.1 Summary'!B50,'C. Physician Group'!E:E,'D.1 Summary'!D50)) -> 0 | I50: 0 | J50: 0 | K50: =SUMIFS('C. Physician Group'!N:N,'C. Physician Group'!B:B,'D.1 Summary'!B50,'C. Physician Group'!E:E,'D.1 Summary'!D50) -> 0 | L50: =SUMIFS('C. Physician Group'!O:O,'C. Physician Group'!B:B,'D.1 Summary'!B50,'C. Physician Group'!E:E,'D.1 Summary'!D50) -> 0 | M50: =SUMIFS('C. Physician Group'!P:P,'C. Physician Group'!B:B,'D.1 Summary'!B50,'C. Physician Group'!E:E,'D.1 Summary'!D50) -> 0 | N50: =SUMIFS('C. Physician Group'!Q:Q,'C. Physician Group'!B:B,'D.1 Summary'!B50,'C. Physician Group'!E:E,'D.1 Summary'!D50) -> 0 | O50: =SUMIFS('C. Physician Group'!R:R,'C. Physician Group'!B:B,'D.1 Summary'!B50,'C. Physician Group'!E:E,'D.1 Summary'!D50) -> 0 | P50: =SUMIFS('C. Physician Group'!S:S,'C. Physician Group'!B:B,'D.1 Summary'!B50,'C. Physician Group'!E:E,'D.1 Summary'!D50) -> 0 | Q50: =(SUMIFS('C. Physician Group'!T:T,'C. Physician Group'!B:B,'D.1 Summary'!B50,'C. Physician Group'!E:E,'D.1 Summary'!D50)+SUMIFS('C. Physician Group'!U:U,'C. Physician Group'!B:B,'D.1 Summary'!B50,'C. Physician Group'!E:E,'D.1 Summary'!D50)+SUMIFS('C. Physician Group'!V:V,'C. Physician Group'!B:B,'D.1 Summary'!B50,'C. Physician Group'!E:E,'D.1 Summary'!D50)+SUMIFS('C. Physician Group'!W:W,'C. Physician Group'!B:B,'D.1 Summary'!B50,'C. Physician Group'!E:E,'D.1 Summary'!D50)+SUMIFS('C. Physician Group'!X:X,'C. Physician Group'!B:B,'D.1 Summary'!B50,'C. Physician Group'!E:E,'D.1 Summary'!D50)) -> 0

Sheet D.2 Summary Trends
A2: Table C: Zip Code and Physician Group TME&APM Comparison
B3: Percent Difference in Zip Code and Physician Group TME-APM
B4: Year | C4: Insurance Category | D4: Code | E4: Member Months | F4: Wtd Member Months | G4: Average HSA | H4: Total Expenses | I4: TME PMPM | J4: HSA TME PMPM | K4: Inpatient | L4: Outpatient | M4: Prof. Physician | N4: Prof. Other | O4: Rx | P4: Other | Q4: Non-Claims
B5: 2016 | C5: Medicare & Medicare Advantage | D5: 1 | E5: ='D.1 Summary'!E30-'D.1 Summary'!E5 -> 0 | F5: ='D.1 Summary'!F30-'D.1 Summary'!F5 -> 0 | G5: =IFERROR((('D.1 Summary'!G30-'D.1 Summary'!G5)/'D.1 Summary'!G5),"---") -> 0 | H5: ='D.1 Summary'!H30-'D.1 Summary'!H5 -> 16 | I5: ='D.1 Summary'!I30-'D.1 Summary'!I5 -> 0.0007714561234 | J5: ='D.1 Summary'!J30-'D.1 Summary'!J5 -> 0.001535236067 | K5: ='D.1 Summary'!K30-'D.1 Summary'!K5 -> 0 | L5: ='D.1 Summary'!L30-'D.1 Summary'!L5 -> 0 | M5: ='D.1 Summary'!M30-'D.1 Summary'!M5 -> 0 | N5: ='D.1 Summary'!N30-'D.1 Summary'!N5 -> 0 | O5: ='D.1 Summary'!O30-'D.1 Summary'!O5 -> 0 | P5: ='D.1 Summary'!P30-'D.1 Summary'!P5 -> 16 | Q5: ='D.1 Summary'!Q30-'D.1 Summary'!Q5 -> 0
B6: 2016 | C6: Medicaid & Medicaid Managed Care (MCO) | D6: 2 | E6: ='D.1 Summary'!E31-'D.1 Summary'!E6 -> 110 | F6: ='D.1 Summary'!F31-'D.1 Summary'!F6 -> 232.2891731 | G6: =IFERROR((('D.1 Summary'!G31-'D.1 Summary'!G6)/'D.1 Summary'!G6),"---") -> 0 | H6: ='D.1 Summary'!H31-'D.1 Summary'!H6 -> 225225370 | I6: ='D.1 Summary'!I31-'D.1 Summary'!I6 -> 49.86846282 | J6: ='D.1 Summary'!J31-'D.1 Summary'!J6 -> 23.61509509 | K6: ='D.1 Summary'!K31-'D.1 Summary'!K6 -> 0 | L6: ='D.1 Summary'!L31-'D.1 Summary'!L6 -> 0 | M6: ='D.1 Summary'!M31-'D.1 Summary'!M6 -> 0 | N6: ='D.1 Summary'!N31-'D.1 Summary'!N6 -> 0 | O6: ='D.1 Summary'!O31-'D.1 Summary'!O6 -> 0 | P6: ='D.1 Summary'!P31-'D.1 Summary'!P6 -> 0 | Q6: ='D.1 Summary'!Q31-'D.1 Summary'!Q6 -> 0
B7: 2016 | C7: Commercial - Full Claims | D7: 3 | E7: ='D.1 Summary'!E32-'D.1 Summary'!E7 -> 0 | F7: ='D.1 Summary'!F32-'D.1 Summary'!F7 -> 0 | G7: =IFERROR((('D.1 Summary'!G32-'D.1 Summary'!G7)/'D.1 Summary'!G7),"---") -> 0 | H7: ='D.1 Summary'!H32-'D.1 Summary'!H7 -> 92553265.25 | I7: ='D.1 Summary'!I32-'D.1 Summary'!I7 -> 10.7934265 | J7: ='D.1 Summary'!J32-'D.1 Summary'!J7 -> 19.67680513 | K7: ='D.1 Summary'!K32-'D.1 Summary'!K7 -> 0 | L7: ='D.1 Summary'!L32-'D.1 Summary'!L7 -> 0 | M7: ='D.1 Summary'!M32-'D.1 Summary'!M7 -> 0 | N7: ='D.1 Summary'!N32-'D.1 Summary'!N7 -> -1 | O7: ='D.1 Summary'!O32-'D.1 Summary'!O7 -> 0 | P7: ='D.1 Summary'!P32-'D.1 Summary'!P7 -> 0 | Q7: ='D.1 Summary'!Q32-'D.1 Summary'!Q7 -> -9
B8: 2016 | C8: Commercial - Partial Claims | D8: 4 | E8: ='D.1 Summary'!E33-'D.1 Summary'!E8 -> -4 | F8: ='D.1 Summary'!F33-'D.1 Summary'!F8 -> -3.55 | G8: =IFERROR((('D.1 Summary'!G33-'D.1 Summary'!G8)/'D.1 Summary'!G8),"---") -> -1.250955521e-16 | H8: ='D.1 Summary'!H33-'D.1 Summary'!H8 -> 437063.56 | I8: ='D.1 Summary'!I33-'D.1 Summary'!I8 -> 0.254382229 | J8: ='D.1 Summary'!J33-'D.1 Summary'!J8 -> 0.2866278636 | K8: ='D.1 Summary'!K33-'D.1 Summary'!K8 -> 0 | L8: ='D.1 Summary'!L33-'D.1 Summary'!L8 -> 75 | M8: ='D.1 Summary'!M33-'D.1 Summary'!M8 -> 0 | N8: ='D.1 Summary'!N33-'D.1 Summary'!N8 -> 0 | O8: ='D.1 Summary'!O33-'D.1 Summary'!O8 -> 0 | P8: ='D.1 Summary'!P33-'D.1 Summary'!P8 -> 0 | Q8: ='D.1 Summary'!Q33-'D.1 Summary'!Q8 -> 0
B9: 2016 | C9: Medicare and Medicaid Dual Eligibles ages 65 and over | D9: 5 | E9: ='D.1 Summary'!E34-'D.1 Summary'!E9 -> 0 | F9: ='D.1 Summary'!F34-'D.1 Summary'!F9 -> 0 | G9: =IFERROR((('D.1 Summary'!G34-'D.1 Summary'!G9)/'D.1 Summary'!G9),"---") -> 0 | H9: ='D.1 Summary'!H34-'D.1 Summary'!H9 -> 61044343.78 | I9: ='D.1 Summary'!I34-'D.1 Summary'!I9 -> 345.0529005 | J9: ='D.1 Summary'!J34-'D.1 Summary'!J9 -> 101.0403808 | K9: ='D.1 Summary'!K34-'D.1 Summary'!K9 -> 0 | L9: ='D.1 Summary'!L34-'D.1 Summary'!L9 -> 0 | M9: ='D.1 Summary'!M34-'D.1 Summary'!M9 -> 0 | N9: ='D.1 Summary'!N34-'D.1 Summary'!N9 -> 0 | O9: ='D.1 Summary'!O34-'D.1 Summary'!O9 -> 0 | P9: ='D.1 Summary'!P34-'D.1 Summary'!P9 -> 0 | Q9: ='D.1 Summary'!Q34-'D.1 Summary'!Q9 -> 0
B10: 2016 | C10: Medicare and Medicaid Dual Eligibles afes 21-64 | D10: 6 | E10: ='D.1 Summary'!E35-'D.1 Summary'!E10 -> 0 | F10: ='D.1 Summary'!F35-'D.1 Summary'!F10 -> 0 | G10: =IFERROR((('D.1 Summary'!G35-'D.1 Summary'!G10)/'D.1 Summary'!G10),"---") -> 0 | H10: ='D.1 Summary'!H35-'D.1 Summary'!H10 -> 0 | I10: ='D.1 Summary'!I35-'D.1 Summary'!I10 -> 0 | J10: ='D.1 Summary'!J35-'D.1 Summary'!J10 -> 0 | K10: ='D.1 Summary'!K35-'D.1 Summary'!K10 -> 0 | L10: ='D.1 Summary'!L35-'D.1 Summary'!L10 -> 0 | M10: ='D.1 Summary'!M35-'D.1 Summary'!M10 -> 0 | N10: ='D.1 Summary'!N35-'D.1 Summary'!N10 -> 0 | O10: ='D.1 Summary'!O35-'D.1 Summary'!O10 -> 0 | P10: ='D.1 Summary'!P35-'D.1 Summary'!P10 -> 0 | Q10: ='D.1 Summary'!Q35-'D.1 Summary'!Q10 -> 0
B11: 2016 | C11: Other | D11: 7 | E11: ='D.1 Summary'!E36-'D.1 Summary'!E11 -> 0 | F11: ='D.1 Summary'!F36-'D.1 Summary'!F11 -> 0 | G11: =IFERROR((('D.1 Summary'!G36-'D.1 Summary'!G11)/'D.1 Summary'!G11),"---") -> --- | H11: ='D.1 Summary'!H36-'D.1 Summary'!H11 -> 0 | I11: ='D.1 Summary'!I36-'D.1 Summary'!I11 -> 0 | J11: ='D.1 Summary'!J36-'D.1 Summary'!J11 -> 0 | K11: ='D.1 Summary'!K36-'D.1 Summary'!K11 -> 0 | L11: ='D.1 Summary'!L36-'D.1 Summary'!L11 -> 0 | M11: ='D.1 Summary'!M36-'D.1 Summary'!M11 -> 0 | N11: ='D.1 Summary'!N36-'D.1 Summary'!N11 -> 0 | O11: ='D.1 Summary'!O36-'D.1 Summary'!O11 -> 0 | P11: ='D.1 Summary'!P36-'D.1 Summary'!P11 -> 0 | Q11: ='D.1 Summary'!Q36-'D.1 Summary'!Q11 -> 0
B12: 2017 | C12: Medicare & Medicare Advantage | D12: 1 | E12: ='D.1 Summary'!E37-'D.1 Summary'!E12 -> 0 | F12: ='D.1 Summary'!F37-'D.1 Summary'!F12 -> 0 | G12: =IFERROR((('D.1 Summary'!G37-'D.1 Summary'!G12)/'D.1 Summary'!G12),"---") -> 0 | H12: ='D.1 Summary'!H37-'D.1 Summary'!H12 -> 29446.41 | I12: ='D.1 Summary'!I37-'D.1 Summary'!I12 -> 1.356789845 | J12: ='D.1 Summary'!J37-'D.1 Summary'!J12 -> 2.871512899 | K12: ='D.1 Summary'!K37-'D.1 Summary'!K12 -> 0 | L12: ='D.1 Summary'!L37-'D.1 Summary'!L12 -> 0 | M12: ='D.1 Summary'!M37-'D.1 Summary'!M12 -> 0 | N12: ='D.1 Summary'!N37-'D.1 Summary'!N12 -> 0 | O12: ='D.1 Summary'!O37-'D.1 Summary'!O12 -> 0 | P12: ='D.1 Summary'!P37-'D.1 Summary'!P12 -> 0 | Q12: ='D.1 Summary'!Q37-'D.1 Summary'!Q12 -> 0
B13: 2017 | C13: Medicaid & Medicaid Managed Care (MCO) | D13: 2 | E13: ='D.1 Summary'!E38-'D.1 Summary'!E13 -> 0 | F13: ='D.1 Summary'!F38-'D.1 Summary'!F13 -> 0 | G13: =IFERROR((('D.1 Summary'!G38-'D.1 Summary'!G13)/'D.1 Summary'!G13),"---") -> 0 | H13: ='D.1 Summary'!H38-'D.1 Summary'!H13 -> 238146630.5 | I13: ='D.1 Summary'!I38-'D.1 Summary'!I13 -> 59.03723216 | J13: ='D.1 Summary'!J38-'D.1 Summary'!J13 -> 26.98126209 | K13: ='D.1 Summary'!K38-'D.1 Summary'!K13 -> 0 | L13: ='D.1 Summary'!L38-'D.1 Summary'!L13 -> 0 | M13: ='D.1 Summary'!M38-'D.1 Summary'!M13 -> 0 | N13: ='D.1 Summary'!N38-'D.1 Summary'!N13 -> 0 | O13: ='D.1 Summary'!O38-'D.1 Summary'!O13 -> 0 | P13: ='D.1 Summary'!P38-'D.1 Summary'!P13 -> 0 | Q13: ='D.1 Summary'!Q38-'D.1 Summary'!Q13 -> 0
B14: 2017 | C14: Commercial - Full Claims | D14: 3 | E14: ='D.1 Summary'!E39-'D.1 Summary'!E14 -> 0 | F14: ='D.1 Summary'!F39-'D.1 Summary'!F14 -> 0 | G14: =IFERROR((('D.1 Summary'!G39-'D.1 Summary'!G14)/'D.1 Summary'!G14),"---") -> 0 | H14: ='D.1 Summary'!H39-'D.1 Summary'!H14 -> 133189354 | I14: ='D.1 Summary'!I39-'D.1 Summary'!I14 -> 16.48572027 | J14: ='D.1 Summary'!J39-'D.1 Summary'!J14 -> 28.41985182 | K14: ='D.1 Summary'!K39-'D.1 Summary'!K14 -> 0 | L14: ='D.1 Summary'!L39-'D.1 Summary'!L14 -> 0 | M14: ='D.1 Summary'!M39-'D.1 Summary'!M14 -> 0 | N14: ='D.1 Summary'!N39-'D.1 Summary'!N14 -> 0 | O14: ='D.1 Summary'!O39-'D.1 Summary'!O14 -> -10 | P14: ='D.1 Summary'!P39-'D.1 Summary'!P14 -> 11 | Q14: ='D.1 Summary'!Q39-'D.1 Summary'!Q14 -> 0
B15: 2017 | C15: Commercial - Partial Claims | D15: 4 | E15: ='D.1 Summary'!E40-'D.1 Summary'!E15 -> 0 | F15: ='D.1 Summary'!F40-'D.1 Summary'!F15 -> 0 | G15: =IFERROR((('D.1 Summary'!G40-'D.1 Summary'!G15)/'D.1 Summary'!G15),"---") -> 0 | H15: ='D.1 Summary'!H40-'D.1 Summary'!H15 -> 525023.17 | I15: ='D.1 Summary'!I40-'D.1 Summary'!I15 -> 0.2907177477 | J15: ='D.1 Summary'!J40-'D.1 Summary'!J15 -> 0.4414103297 | K15: ='D.1 Summary'!K40-'D.1 Summary'!K15 -> -1000 | L15: ='D.1 Summary'!L40-'D.1 Summary'!L15 -> -181 | M15: ='D.1 Summary'!M40-'D.1 Summary'!M15 -> 0 | N15: ='D.1 Summary'!N40-'D.1 Summary'!N15 -> 0 | O15: ='D.1 Summary'!O40-'D.1 Summary'!O15 -> 0 | P15: ='D.1 Summary'!P40-'D.1 Summary'!P15 -> 0 | Q15: ='D.1 Summary'!Q40-'D.1 Summary'!Q15 -> 0
B16: 2017 | C16: Medicare and Medicaid Dual Eligibles ages 65 and over | D16: 5 | E16: ='D.1 Summary'!E41-'D.1 Summary'!E16 -> 0 | F16: ='D.1 Summary'!F41-'D.1 Summary'!F16 -> 0 | G16: =IFERROR((('D.1 Summary'!G41-'D.1 Summary'!G16)/'D.1 Summary'!G16),"---") -> 0 | H16: ='D.1 Summary'!H41-'D.1 Summary'!H16 -> 58880661.58 | I16: ='D.1 Summary'!I41-'D.1 Summary'!I16 -> 298.8577832 | J16: ='D.1 Summary'!J41-'D.1 Summary'!J16 -> 86.12616229 | K16: ='D.1 Summary'!K41-'D.1 Summary'!K16 -> 0 | L16: ='D.1 Summary'!L41-'D.1 Summary'!L16 -> 0 | M16: ='D.1 Summary'!M41-'D.1 Summary'!M16 -> -10 | N16: ='D.1 Summary'!N41-'D.1 Summary'!N16 -> 0 | O16: ='D.1 Summary'!O41-'D.1 Summary'!O16 -> 0 | P16: ='D.1 Summary'!P41-'D.1 Summary'!P16 -> 1 | Q16: ='D.1 Summary'!Q41-'D.1 Summary'!Q16 -> 0
B17: 2017 | C17: Medicare and Medicaid Dual Eligibles ages 21-64 | D17: 6 | E17: ='D.1 Summary'!E42-'D.1 Summary'!E17 -> 0 | F17: ='D.1 Summary'!F42-'D.1 Summary'!F17 -> 0 | G17: =IFERROR((('D.1 Summary'!G42-'D.1 Summary'!G17)/'D.1 Summary'!G17),"---") -> 0 | H17: ='D.1 Summary'!H42-'D.1 Summary'!H17 -> -49 | I17: ='D.1 Summary'!I42-'D.1 Summary'!I17 -> -0.001268083124 | J17: ='D.1 Summary'!J42-'D.1 Summary'!J17 -> -0.000740206342 | K17: ='D.1 Summary'!K42-'D.1 Summary'!K17 -> -39 | L17: ='D.1 Summary'!L42-'D.1 Summary'!L17 -> -10 | M17: ='D.1 Summary'!M42-'D.1 Summary'!M17 -> 0 | N17: ='D.1 Summary'!N42-'D.1 Summary'!N17 -> 0 | O17: ='D.1 Summary'!O42-'D.1 Summary'!O17 -> 0 | P17: ='D.1 Summary'!P42-'D.1 Summary'!P17 -> 0 | Q17: ='D.1 Summary'!Q42-'D.1 Summary'!Q17 -> 0
B18: 2017 | C18: Other | D18: 7 | E18: ='D.1 Summary'!E43-'D.1 Summary'!E18 -> 0 | F18: ='D.1 Summary'!F43-'D.1 Summary'!F18 -> 0 | G18: =IFERROR((('D.1 Summary'!G43-'D.1 Summary'!G18)/'D.1 Summary'!G18),"---") -> --- | H18: ='D.1 Summary'!H43-'D.1 Summary'!H18 -> 0 | I18: ='D.1 Summary'!I43-'D.1 Summary'!I18 -> 0 | J18: ='D.1 Summary'!J43-'D.1 Summary'!J18 -> 0 | K18: ='D.1 Summary'!K43-'D.1 Summary'!K18 -> 0 | L18: ='D.1 Summary'!L43-'D.1 Summary'!L18 -> 0 | M18: ='D.1 Summary'!M43-'D.1 Summary'!M18 -> 0 | N18: ='D.1 Summary'!N43-'D.1 Summary'!N18 -> 0 | O18: ='D.1 Summary'!O43-'D.1 Summary'!O18 -> 0 | P18: ='D.1 Summary'!P43-'D.1 Summary'!P18 -> 0 | Q18: ='D.1 Summary'!Q43-'D.1 Summary'!Q18 -> 0
B19: 2018 | C19: Medicare & Medicare Advantage | D19: 1 | E19: ='D.1 Summary'!E44-'D.1 Summary'!E19 -> 0 | F19: ='D.1 Summary'!F44-'D.1 Summary'!F19 -> 0 | G19: =IFERROR((('D.1 Summary'!G44-'D.1 Summary'!G19)/'D.1 Summary'!G19),"---") -> 0 | H19: ='D.1 Summary'!H44-'D.1 Summary'!H19 -> 29740.8741 | I19: ='D.1 Summary'!I44-'D.1 Summary'!I19 -> 1.356789845 | J19: ='D.1 Summary'!J44-'D.1 Summary'!J19 -> 2.843082078 | K19: ='D.1 Summary'!K44-'D.1 Summary'!K19 -> 0 | L19: ='D.1 Summary'!L44-'D.1 Summary'!L19 -> 0 | M19: ='D.1 Summary'!M44-'D.1 Summary'!M19 -> 0 | N19: ='D.1 Summary'!N44-'D.1 Summary'!N19 -> 0 | O19: ='D.1 Summary'!O44-'D.1 Summary'!O19 -> 0 | P19: ='D.1 Summary'!P44-'D.1 Summary'!P19 -> 0 | Q19: ='D.1 Summary'!Q44-'D.1 Summary'!Q19 -> 0
B20: 2018 | C20: Medicaid & Medicaid Managed Care (MCO) | D20: 2 | E20: ='D.1 Summary'!E45-'D.1 Summary'!E20 -> 0 | F20: ='D.1 Summary'!F45-'D.1 Summary'!F20 -> 0 | G20: =IFERROR((('D.1 Summary'!G45-'D.1 Summary'!G20)/'D.1 Summary'!G20),"---") -> 0 | H20: ='D.1 Summary'!H45-'D.1 Summary'!H20 -> 250053962 | I20: ='D.1 Summary'!I45-'D.1 Summary'!I20 -> 59.03723216 | J20: ='D.1 Summary'!J45-'D.1 Summary'!J20 -> 25.69644008 | K20: ='D.1 Summary'!K45-'D.1 Summary'!K20 -> 0 | L20: ='D.1 Summary'!L45-'D.1 Summary'!L20 -> 0 | M20: ='D.1 Summary'!M45-'D.1 Summary'!M20 -> 0 | N20: ='D.1 Summary'!N45-'D.1 Summary'!N20 -> 0 | O20: ='D.1 Summary'!O45-'D.1 Summary'!O20 -> 0 | P20: ='D.1 Summary'!P45-'D.1 Summary'!P20 -> 0 | Q20: ='D.1 Summary'!Q45-'D.1 Summary'!Q20 -> 0
B21: 2018 | C21: Commercial - Full Claims | D21: 3 | E21: ='D.1 Summary'!E46-'D.1 Summary'!E21 -> 0 | F21: ='D.1 Summary'!F46-'D.1 Summary'!F21 -> 0 | G21: =IFERROR((('D.1 Summary'!G46-'D.1 Summary'!G21)/'D.1 Summary'!G21),"---") -> 0 | H21: ='D.1 Summary'!H46-'D.1 Summary'!H21 -> 139848820.7 | I21: ='D.1 Summary'!I46-'D.1 Summary'!I21 -> 16.48572015 | J21: ='D.1 Summary'!J46-'D.1 Summary'!J21 -> 27.06652534 | K21: ='D.1 Summary'!K46-'D.1 Summary'!K21 -> 0 | L21: ='D.1 Summary'!L46-'D.1 Summary'!L21 -> 0 | M21: ='D.1 Summary'!M46-'D.1 Summary'!M21 -> 0 | N21: ='D.1 Summary'!N46-'D.1 Summary'!N21 -> 0 | O21: ='D.1 Summary'!O46-'D.1 Summary'!O21 -> 0 | P21: ='D.1 Summary'!P46-'D.1 Summary'!P21 -> 0 | Q21: ='D.1 Summary'!Q46-'D.1 Summary'!Q21 -> 0
B22: 2018 | C22: Commercial - Partial Claims | D22: 4 | E22: ='D.1 Summary'!E47-'D.1 Summary'!E22 -> 0 | F22: ='D.1 Summary'!F47-'D.1 Summary'!F22 -> 2572957.733 | G22: =IFERROR((('D.1 Summary'!G47-'D.1 Summary'!G22)/'D.1 Summary'!G22),"---") -> 2 | H22: ='D.1 Summary'!H47-'D.1 Summary'!H22 -> 547252.3368 | I22: ='D.1 Summary'!I47-'D.1 Summary'!I22 -> 0.2913716953 | J22: ='D.1 Summary'!J47-'D.1 Summary'!J22 -> -364.234368 | K22: ='D.1 Summary'!K47-'D.1 Summary'!K22 -> 0 | L22: ='D.1 Summary'!L47-'D.1 Summary'!L22 -> 0 | M22: ='D.1 Summary'!M47-'D.1 Summary'!M22 -> 0 | N22: ='D.1 Summary'!N47-'D.1 Summary'!N22 -> 0 | O22: ='D.1 Summary'!O47-'D.1 Summary'!O22 -> 0 | P22: ='D.1 Summary'!P47-'D.1 Summary'!P22 -> 0 | Q22: ='D.1 Summary'!Q47-'D.1 Summary'!Q22 -> 0
B23: 2018 | C23: Medicare and Medicaid Dual Eligibles ages 65 and over | D23: 5 | E23: ='D.1 Summary'!E48-'D.1 Summary'!E23 -> 0 | F23: ='D.1 Summary'!F48-'D.1 Summary'!F23 -> 0 | G23: =IFERROR((('D.1 Summary'!G48-'D.1 Summary'!G23)/'D.1 Summary'!G23),"---") -> 0 | H23: ='D.1 Summary'!H48-'D.1 Summary'!H23 -> 73253212.54 | I23: ='D.1 Summary'!I48-'D.1 Summary'!I23 -> 345.0529005 | J23: ='D.1 Summary'!J48-'D.1 Summary'!J23 -> 84.20031734 | K23: ='D.1 Summary'!K48-'D.1 Summary'!K23 -> 0 | L23: ='D.1 Summary'!L48-'D.1 Summary'!L23 -> 0 | M23: ='D.1 Summary'!M48-'D.1 Summary'!M23 -> 0 | N23: ='D.1 Summary'!N48-'D.1 Summary'!N23 -> 0 | O23: ='D.1 Summary'!O48-'D.1 Summary'!O23 -> 0 | P23: ='D.1 Summary'!P48-'D.1 Summary'!P23 -> 0 | Q23: ='D.1 Summary'!Q48-'D.1 Summary'!Q23 -> 0
B24: 2018 | C24: Medicare and Medicaid Dual Eligibles afes 21-64 | D24: 6 | E24: ='D.1 Summary'!E49-'D.1 Summary'!E24 -> -3 | F24: ='D.1 Summary'!F49-'D.1 Summary'!F24 -> -6.167333333 | G24: =IFERROR((('D.1 Summary'!G49-'D.1 Summary'!G24)/'D.1 Summary'!G24),"---") -> 0 | H24: ='D.1 Summary'!H49-'D.1 Summary'!H24 -> 0 | I24: ='D.1 Summary'!I49-'D.1 Summary'!I24 -> 0.1391716014 | J24: ='D.1 Summary'!J49-'D.1 Summary'!J24 -> 0.06769778472 | K24: ='D.1 Summary'!K49-'D.1 Summary'!K24 -> 0 | L24: ='D.1 Summary'!L49-'D.1 Summary'!L24 -> 0 | M24: ='D.1 Summary'!M49-'D.1 Summary'!M24 -> 0 | N24: ='D.1 Summary'!N49-'D.1 Summary'!N24 -> 0 | O24: ='D.1 Summary'!O49-'D.1 Summary'!O24 -> 0 | P24: ='D.1 Summary'!P49-'D.1 Summary'!P24 -> 0 | Q24: ='D.1 Summary'!Q49-'D.1 Summary'!Q24 -> 0
B25: 2018 | C25: Other | D25: 7 | E25: ='D.1 Summary'!E50-'D.1 Summary'!E25 -> 0 | F25: ='D.1 Summary'!F50-'D.1 Summary'!F25 -> 0 | G25: =IFERROR((('D.1 Summary'!G50-'D.1 Summary'!G25)/'D.1 Summary'!G25),"---") -> --- | H25: ='D.1 Summary'!H50-'D.1 Summary'!H25 -> 0 | I25: ='D.1 Summary'!I50-'D.1 Summary'!I25 -> 0 | J25: ='D.1 Summary'!J50-'D.1 Summary'!J25 -> 0 | K25: ='D.1 Summary'!K50-'D.1 Summary'!K25 -> 0 | L25: ='D.1 Summary'!L50-'D.1 Summary'!L25 -> 0 | M25: ='D.1 Summary'!M50-'D.1 Summary'!M25 -> 0 | N25: ='D.1 Summary'!N50-'D.1 Summary'!N25 -> 0 | O25: ='D.1 Summary'!O50-'D.1 Summary'!O25 -> 0 | P25: ='D.1 Summary'!P50-'D.1 Summary'!P25 -> 0 | Q25: ='D.1 Summary'!Q50-'D.1 Summary'!Q25 -> 0
A27: Table D: Zip Code TME&APM Year-to-Year Comparison
B28: Percent Change in Zip Code TME-APM by Calendar Year
B29: Year | C29: Insurance Category | E29: Member Months | F29: Wtd Member Months | G29: Total Expenses | H29: TME PMPM | I29: HSA TME PMPM
B30: 2016-2017 | C30: Medicare & Medicare Advantage | E30: =IFERROR((('D.1 Summary'!E12-'D.1 Summary'!E5)/'D.1 Summary'!E5),"---") -> 0.04643201543 | F30: =IFERROR((('D.1 Summary'!F12-'D.1 Summary'!F5)/'D.1 Summary'!F5),"---") -> -0.01604153773 | G30: =IFERROR((('D.1 Summary'!G12-'D.1 Summary'!G5)/'D.1 Summary'!G5),"---") -> -0.05970149254 | H30: =IFERROR((('D.1 Summary'!H12-'D.1 Summary'!H5)/'D.1 Summary'!H5),"---") -> 0.09164612292 | I30: =IFERROR((('D.1 Summary'!I12-'D.1 Summary'!I5)/'D.1 Summary'!I5),"---") -> 0.04320787861
B31: 2016-2017 | C31: Medicaid & Medicaid Managed Care (MCO) | E31: =IFERROR((('D.1 Summary'!E13-'D.1 Summary'!E6)/'D.1 Summary'!E6),"---") -> -0.106636931 | F31: =IFERROR((('D.1 Summary'!F13-'D.1 Summary'!F6)/'D.1 Summary'!F6),"---") -> -0.07433159616 | G31: =IFERROR((('D.1 Summary'!G13-'D.1 Summary'!G6)/'D.1 Summary'!G6),"---") -> 0.03616148456 | H31: =IFERROR((('D.1 Summary'!H13-'D.1 Summary'!H6)/'D.1 Summary'!H6),"---") -> -0.03429630691 | I31: =IFERROR((('D.1 Summary'!I13-'D.1 Summary'!I6)/'D.1 Summary'!I6),"---") -> 0.08097561517
B32: 2016-2017 | C32: Commercial - Full Claims | E32: =IFERROR((('D.1 Summary'!E14-'D.1 Summary'!E7)/'D.1 Summary'!E7),"---") -> -0.05783020014 | F32: =IFERROR((('D.1 Summary'!F14-'D.1 Summary'!F7)/'D.1 Summary'!F7),"---") -> -0.003653171167 | G32: =IFERROR((('D.1 Summary'!G14-'D.1 Summary'!G7)/'D.1 Summary'!G7),"---") -> 0.05750240454 | H32: =IFERROR((('D.1 Summary'!H14-'D.1 Summary'!H7)/'D.1 Summary'!H7),"---") -> -0.05748698144 | I32: =IFERROR((('D.1 Summary'!I14-'D.1 Summary'!I7)/'D.1 Summary'!I7),"---") -> 0.0003642853977
B33: 2016-2017 | C33: Commercial - Partial Claims | E33: =IFERROR((('D.1 Summary'!E15-'D.1 Summary'!E8)/'D.1 Summary'!E8),"---") -> 0.04768233666 | F33: =IFERROR((('D.1 Summary'!F15-'D.1 Summary'!F8)/'D.1 Summary'!F8),"---") -> -0.2225180531 | G33: =IFERROR((('D.1 Summary'!G15-'D.1 Summary'!G8)/'D.1 Summary'!G8),"---") -> -0.2579029734 | H33: =IFERROR((('D.1 Summary'!H15-'D.1 Summary'!H8)/'D.1 Summary'!H8),"---") -> 0.09725066004 | I33: =IFERROR((('D.1 Summary'!I15-'D.1 Summary'!I8)/'D.1 Summary'!I8),"---") -> 0.04731235953
B34: 2016-2017 | C34: Medicare and Medicaid Dual Eligibles ages 65 and over | E34: =IFERROR((('D.1 Summary'!E16-'D.1 Summary'!E9)/'D.1 Summary'!E9),"---") -> 0.1136490818 | F34: =IFERROR((('D.1 Summary'!F16-'D.1 Summary'!F9)/'D.1 Summary'!F9),"---") -> 0.1315848649 | G34: =IFERROR((('D.1 Summary'!G16-'D.1 Summary'!G9)/'D.1 Summary'!G9),"---") -> 0.01610541728 | H34: =IFERROR((('D.1 Summary'!H16-'D.1 Summary'!H9)/'D.1 Summary'!H9),"---") -> 0.1149000482 | I34: =IFERROR((('D.1 Summary'!I16-'D.1 Summary'!I9)/'D.1 Summary'!I9),"---") -> 0.001123303976
B35: 2016-2017 | C35: Medicare and Medicaid Dual Eligibles afes 21-64 | E35: =IFERROR((('D.1 Summary'!E17-'D.1 Summary'!E10)/'D.1 Summary'!E10),"---") -> 0.1918142002 | F35: =IFERROR((('D.1 Summary'!F17-'D.1 Summary'!F10)/'D.1 Summary'!F10),"---") -> 0.2264834714 | G35: =IFERROR((('D.1 Summary'!G17-'D.1 Summary'!G10)/'D.1 Summary'!G10),"---") -> 0.0290894933 | H35: =IFERROR((('D.1 Summary'!H17-'D.1 Summary'!H10)/'D.1 Summary'!H10),"---") -> 0.1393534359 | I35: =IFERROR((('D.1 Summary'!I17-'D.1 Summary'!I10)/'D.1 Summary'!I10),"---") -> -0.04401756948
B36: 2016-2017 | C36: Other | E36: =IFERROR((('D.1 Summary'!E18-'D.1 Summary'!E11)/'D.1 Summary'!E11),"---") -> --- | F36: =IFERROR((('D.1 Summary'!F18-'D.1 Summary'!F11)/'D.1 Summary'!F11),"---") -> --- | G36: =IFERROR((('D.1 Summary'!G18-'D.1 Summary'!G11)/'D.1 Summary'!G11),"---") -> --- | H36: =IFERROR((('D.1 Summary'!H18-'D.1 Summary'!H11)/'D.1 Summary'!H11),"---") -> --- | I36: =IFERROR((('D.1 Summary'!I18-'D.1 Summary'!I11)/'D.1 Summary'!I11),"---") -> ---
B37: 2017-2018 | C37: Medicare & Medicare Advantage | E37: =IFERROR((('D.1 Summary'!E19-'D.1 Summary'!E12)/'D.1 Summary'!E12),"---") -> 0.01 | F37: =IFERROR((('D.1 Summary'!F19-'D.1 Summary'!F12)/'D.1 Summary'!F12),"---") -> 0.0201 | G37: =IFERROR((('D.1 Summary'!G19-'D.1 Summary'!G12)/'D.1 Summary'!G12),"---") -> 0.01 | H37: =IFERROR((('D.1 Summary'!H19-'D.1 Summary'!H12)/'D.1 Summary'!H12),"---") -> 0.01 | I37: =IFERROR((('D.1 Summary'!I19-'D.1 Summary'!I12)/'D.1 Summary'!I12),"---") -> 2.046984436e-16
B38: 2017-2018 | C38: Medicaid & Medicaid Managed Care (MCO) | E38: =IFERROR((('D.1 Summary'!E20-'D.1 Summary'!E13)/'D.1 Summary'!E13),"---") -> 0.05 | F38: =IFERROR((('D.1 Summary'!F20-'D.1 Summary'!F13)/'D.1 Summary'!F13),"---") -> 0.1025 | G38: =IFERROR((('D.1 Summary'!G20-'D.1 Summary'!G13)/'D.1 Summary'!G13),"---") -> 0.05 | H38: =IFERROR((('D.1 Summary'!H20-'D.1 Summary'!H13)/'D.1 Summary'!H13),"---") -> 0.04693661708 | I38: =IFERROR((('D.1 Summary'!I20-'D.1 Summary'!I13)/'D.1 Summary'!I13),"---") -> -0.002917507542
B39: 2017-2018 | C39: Commercial - Full Claims | E39: =IFERROR((('D.1 Summary'!E21-'D.1 Summary'!E14)/'D.1 Summary'!E14),"---") -> 0.05 | F39: =IFERROR((('D.1 Summary'!F21-'D.1 Summary'!F14)/'D.1 Summary'!F14),"---") -> 0.1025 | G39: =IFERROR((('D.1 Summary'!G21-'D.1 Summary'!G14)/'D.1 Summary'!G14),"---") -> 0.05 | H39: =IFERROR((('D.1 Summary'!H21-'D.1 Summary'!H14)/'D.1 Summary'!H14),"---") -> 0.04999999727 | I39: =IFERROR((('D.1 Summary'!I21-'D.1 Summary'!I14)/'D.1 Summary'!I14),"---") -> -2.597080169e-09
B40: 2017-2018 | C40: Commercial - Partial Claims | E40: =IFERROR((('D.1 Summary'!E22-'D.1 Summary'!E15)/'D.1 Summary'!E15),"---") -> 0.04 | F40: =IFERROR((('D.1 Summary'!F22-'D.1 Summary'!F15)/'D.1 Summary'!F15),"---") -> 0.0816 | G40: =IFERROR((('D.1 Summary'!G22-'D.1 Summary'!G15)/'D.1 Summary'!G15),"---") -> 0.04 | H40: =IFERROR((('D.1 Summary'!H22-'D.1 Summary'!H15)/'D.1 Summary'!H15),"---") -> 0.03999818335 | I40: =IFERROR((('D.1 Summary'!I22-'D.1 Summary'!I15)/'D.1 Summary'!I15),"---") -> -1.74678158e-06
B41: 2017-2018 | C41: Medicare and Medicaid Dual Eligibles ages 65 and over | E41: =IFERROR((('D.1 Summary'!E23-'D.1 Summary'!E16)/'D.1 Summary'!E16),"---") -> 0.07753871454 | F41: =IFERROR((('D.1 Summary'!F23-'D.1 Summary'!F16)/'D.1 Summary'!F16),"---") -> 0.2725514848 | G41: =IFERROR((('D.1 Summary'!G23-'D.1 Summary'!G16)/'D.1 Summary'!G16),"---") -> 0.1809798271 | H41: =IFERROR((('D.1 Summary'!H23-'D.1 Summary'!H16)/'D.1 Summary'!H16),"---") -> 0.07632966914 | I41: =IFERROR((('D.1 Summary'!I23-'D.1 Summary'!I16)/'D.1 Summary'!I16),"---") -> -0.00112204358
B42: 2017-2018 | C42: Medicare and Medicaid Dual Eligibles afes 21-64 | E42: =IFERROR((('D.1 Summary'!E24-'D.1 Summary'!E17)/'D.1 Summary'!E17),"---") -> 0.2000776377 | F42: =IFERROR((('D.1 Summary'!F24-'D.1 Summary'!F17)/'D.1 Summary'!F17),"---") -> 0.4400931653 | G42: =IFERROR((('D.1 Summary'!G24-'D.1 Summary'!G17)/'D.1 Summary'!G17),"---") -> 0.2 | H42: =IFERROR((('D.1 Summary'!H24-'D.1 Summary'!H17)/'D.1 Summary'!H17),"---") -> 0.199999437 | I42: =IFERROR((('D.1 Summary'!I24-'D.1 Summary'!I17)/'D.1 Summary'!I17),"---") -> -6.516307129e-05
B43: 2017-2018 | C43: Other | E43: =IFERROR((('D.1 Summary'!E25-'D.1 Summary'!E18)/'D.1 Summary'!E18),"---") -> --- | F43: =IFERROR((('D.1 Summary'!F25-'D.1 Summary'!F18)/'D.1 Summary'!F18),"---") -> --- | G43: =IFERROR((('D.1 Summary'!G25-'D.1 Summary'!G18)/'D.1 Summary'!G18),"---") -> --- | H43: =IFERROR((('D.1 Summary'!H25-'D.1 Summary'!H18)/'D.1 Summary'!H18),"---") -> --- | I43: =IFERROR((('D.1 Summary'!I25-'D.1 Summary'!I18)/'D.1 Summary'!I18),"---") -> ---
A45: Table E: Physician Group TME&APM Year-to-Year Comparison
B46: Percent Change in Physician Group TME-APM by Calendar Year
B47: Year | C47: Insurance Category | E47: Member Months | F47: Wtd Member Months | G47: Total Expenses | H47: TME PMPM | I47: HSA TME PMPM
B48: 2016-2017 | C48: Medicare & Medicare Advantage | E48: =IFERROR((('D.1 Summary'!E37-'D.1 Summary'!E30)/'D.1 Summary'!E30),"---") -> 0.04643201543 | F48: =IFERROR((('D.1 Summary'!F37-'D.1 Summary'!F30)/'D.1 Summary'!F30),"---") -> -0.01604153773 | G48: =IFERROR((('D.1 Summary'!G37-'D.1 Summary'!G30)/'D.1 Summary'!G30),"---") -> -0.05970149254 | H48: =IFERROR((('D.1 Summary'!H37-'D.1 Summary'!H30)/'D.1 Summary'!H30),"---") -> 0.09297875672 | I48: =IFERROR((('D.1 Summary'!I37-'D.1 Summary'!I30)/'D.1 Summary'!I30),"---") -> 0.04448138112
B49: 2016-2017 | C49: Medicaid & Medicaid Managed Care (MCO) | E49: =IFERROR((('D.1 Summary'!E38-'D.1 Summary'!E31)/'D.1 Summary'!E31),"---") -> -0.106658694 | F49: =IFERROR((('D.1 Summary'!F38-'D.1 Summary'!F31)/'D.1 Summary'!F31),"---") -> -0.07435414619 | G49: =IFERROR((('D.1 Summary'!G38-'D.1 Summary'!G31)/'D.1 Summary'!G31),"---") -> 0.03616148456 | H49: =IFERROR((('D.1 Summary'!H38-'D.1 Summary'!H31)/'D.1 Summary'!H31),"---") -> -0.0246807006 | I49: =IFERROR((('D.1 Summary'!I38-'D.1 Summary'!I31)/'D.1 Summary'!I31),"---") -> 0.0917655916
B50: 2016-2017 | C50: Commercial - Full Claims | E50: =IFERROR((('D.1 Summary'!E39-'D.1 Summary'!E32)/'D.1 Summary'!E32),"---") -> -0.05783020014 | F50: =IFERROR((('D.1 Summary'!F39-'D.1 Summary'!F32)/'D.1 Summary'!F32),"---") -> -0.003653171167 | G50: =IFERROR((('D.1 Summary'!G39-'D.1 Summary'!G32)/'D.1 Summary'!G32),"---") -> 0.05750240454 | H50: =IFERROR((('D.1 Summary'!H39-'D.1 Summary'!H32)/'D.1 Summary'!H32),"---") -> -0.04648698863 | I50: =IFERROR((('D.1 Summary'!I39-'D.1 Summary'!I32)/'D.1 Summary'!I32),"---") -> 0.01203945564
B51: 2016-2017 | C51: Commercial - Partial Claims | E51: =IFERROR((('D.1 Summary'!E40-'D.1 Summary'!E33)/'D.1 Summary'!E33),"---") -> 0.04768476782 | F51: =IFERROR((('D.1 Summary'!F40-'D.1 Summary'!F33)/'D.1 Summary'!F33),"---") -> -0.222516249 | G51: =IFERROR((('D.1 Summary'!G40-'D.1 Summary'!G33)/'D.1 Summary'!G33),"---") -> -0.2579029734 | H51: =IFERROR((('D.1 Summary'!H40-'D.1 Summary'!H33)/'D.1 Summary'!H33),"---") -> 0.09732437697 | I51: =IFERROR((('D.1 Summary'!I40-'D.1 Summary'!I33)/'D.1 Summary'!I33),"---") -> 0.04738029098
B52: 2016-2017 | C52: Medicare and Medicaid Dual Eligibles ages 65 and over | E52: =IFERROR((('D.1 Summary'!E41-'D.1 Summary'!E34)/'D.1 Summary'!E34),"---") -> 0.1136490818 | F52: =IFERROR((('D.1 Summary'!F41-'D.1 Summary'!F34)/'D.1 Summary'!F34),"---") -> 0.1315848649 | G52: =IFERROR((('D.1 Summary'!G41-'D.1 Summary'!G34)/'D.1 Summary'!G34),"---") -> 0.01610541728 | H52: =IFERROR((('D.1 Summary'!H41-'D.1 Summary'!H34)/'D.1 Summary'!H34),"---") -> 0.0964198882 | I52: =IFERROR((('D.1 Summary'!I41-'D.1 Summary'!I34)/'D.1 Summary'!I34),"---") -> -0.01547093589
B53: 2016-2017 | C53: Medicare and Medicaid Dual Eligibles afes 21-64 | E53: =IFERROR((('D.1 Summary'!E42-'D.1 Summary'!E35)/'D.1 Summary'!E35),"---") -> 0.1918142002 | F53: =IFERROR((('D.1 Summary'!F42-'D.1 Summary'!F35)/'D.1 Summary'!F35),"---") -> 0.2264834714 | G53: =IFERROR((('D.1 Summary'!G42-'D.1 Summary'!G35)/'D.1 Summary'!G35),"---") -> 0.0290894933 | H53: =IFERROR((('D.1 Summary'!H42-'D.1 Summary'!H35)/'D.1 Summary'!H35),"---") -> 0.1393527643 | I53: =IFERROR((('D.1 Summary'!I42-'D.1 Summary'!I35)/'D.1 Summary'!I35),"---") -> -0.04401813301
B54: 2016-2017 | C54: Other | E54: =IFERROR((('D.1 Summary'!E43-'D.1 Summary'!E36)/'D.1 Summary'!E36),"---") -> --- | F54: =IFERROR((('D.1 Summary'!F43-'D.1 Summary'!F36)/'D.1 Summary'!F36),"---") -> --- | G54: =IFERROR((('D.1 Summary'!G43-'D.1 Summary'!G36)/'D.1 Summary'!G36),"---") -> --- | H54: =IFERROR((('D.1 Summary'!H43-'D.1 Summary'!H36)/'D.1 Summary'!H36),"---") -> --- | I54: =IFERROR((('D.1 Summary'!I43-'D.1 Summary'!I36)/'D.1 Summary'!I36),"---") -> ---
B55: 2017-2018 | C55: Medicare & Medicare Advantage | E55: =IFERROR((('D.1 Summary'!E44-'D.1 Summary'!E37)/'D.1 Summary'!E37),"---") -> 0.01 | F55: =IFERROR((('D.1 Summary'!F44-'D.1 Summary'!F37)/'D.1 Summary'!F37),"---") -> 0.0201 | G55: =IFERROR((('D.1 Summary'!G44-'D.1 Summary'!G37)/'D.1 Summary'!G37),"---") -> 0.01 | H55: =IFERROR((('D.1 Summary'!H44-'D.1 Summary'!H37)/'D.1 Summary'!H37),"---") -> 0.01 | I55: =IFERROR((('D.1 Summary'!I44-'D.1 Summary'!I37)/'D.1 Summary'!I37),"---") -> 0
B56: 2017-2018 | C56: Medicaid & Medicaid Managed Care (MCO) | E56: =IFERROR((('D.1 Summary'!E45-'D.1 Summary'!E38)/'D.1 Summary'!E38),"---") -> 0.05 | F56: =IFERROR((('D.1 Summary'!F45-'D.1 Summary'!F38)/'D.1 Summary'!F38),"---") -> 0.1025 | G56: =IFERROR((('D.1 Summary'!G45-'D.1 Summary'!G38)/'D.1 Summary'!G38),"---") -> 0.05 | H56: =IFERROR((('D.1 Summary'!H45-'D.1 Summary'!H38)/'D.1 Summary'!H38),"---") -> 0.04728499196 | I56: =IFERROR((('D.1 Summary'!I45-'D.1 Summary'!I38)/'D.1 Summary'!I38),"---") -> -0.00258572194
B57: 2017-2018 | C57: Commercial - Full Claims | E57: =IFERROR((('D.1 Summary'!E46-'D.1 Summary'!E39)/'D.1 Summary'!E39),"---") -> 0.05 | F57: =IFERROR((('D.1 Summary'!F46-'D.1 Summary'!F39)/'D.1 Summary'!F39),"---") -> 0.1025 | G57: =IFERROR((('D.1 Summary'!G46-'D.1 Summary'!G39)/'D.1 Summary'!G39),"---") -> 0.05 | H57: =IFERROR((('D.1 Summary'!H46-'D.1 Summary'!H39)/'D.1 Summary'!H39),"---") -> 0.0499999971 | I57: =IFERROR((('D.1 Summary'!I46-'D.1 Summary'!I39)/'D.1 Summary'!I39),"---") -> -2.76127484e-09
B58: 2017-2018 | C58: Commercial - Partial Claims | E58: =IFERROR((('D.1 Summary'!E47-'D.1 Summary'!E40)/'D.1 Summary'!E40),"---") -> 0.04 | F58: =IFERROR((('D.1 Summary'!F47-'D.1 Summary'!F40)/'D.1 Summary'!F40),"---") -> 2.2448 | G58: =IFERROR((('D.1 Summary'!G47-'D.1 Summary'!G40)/'D.1 Summary'!G40),"---") -> 2.12 | H58: =IFERROR((('D.1 Summary'!H47-'D.1 Summary'!H40)/'D.1 Summary'!H40),"---") -> 0.04 | I58: =IFERROR((('D.1 Summary'!I47-'D.1 Summary'!I40)/'D.1 Summary'!I40),"---") -> -1.517185566e-16
B59: 2017-2018 | C59: Medicare and Medicaid Dual Eligibles ages 65 and over | E59: =IFERROR((('D.1 Summary'!E48-'D.1 Summary'!E41)/'D.1 Summary'!E41),"---") -> 0.07753871454 | F59: =IFERROR((('D.1 Summary'!F48-'D.1 Summary'!F41)/'D.1 Summary'!F41),"---") -> 0.2725514848 | G59: =IFERROR((('D.1 Summary'!G48-'D.1 Summary'!G41)/'D.1 Summary'!G41),"---") -> 0.1809798271 | H59: =IFERROR((('D.1 Summary'!H48-'D.1 Summary'!H41)/'D.1 Summary'!H41),"---") -> 0.09447120844 | I59: =IFERROR((('D.1 Summary'!I48-'D.1 Summary'!I41)/'D.1 Summary'!I41),"---") -> 0.0157140469
B60: 2017-2018 | C60: Medicare and Medicaid Dual Eligibles afes 21-64 | E60: =IFERROR((('D.1 Summary'!E49-'D.1 Summary'!E42)/'D.1 Summary'!E42),"---") -> 0.2 | F60: =IFERROR((('D.1 Summary'!F49-'D.1 Summary'!F42)/'D.1 Summary'!F42),"---") -> 0.44 | G60: =IFERROR((('D.1 Summary'!G49-'D.1 Summary'!G42)/'D.1 Summary'!G42),"---") -> 0.2 | H60: =IFERROR((('D.1 Summary'!H49-'D.1 Summary'!H42)/'D.1 Summary'!H42),"---") -> 0.2000001444 | I60: =IFERROR((('D.1 Summary'!I49-'D.1 Summary'!I42)/'D.1 Summary'!I42),"---") -> 1.202997222e-07
B61: 2017-2018 | C61: Other | E61: =IFERROR((('D.1 Summary'!E50-'D.1 Summary'!E43)/'D.1 Summary'!E43),"---") -> --- | F61: =IFERROR((('D.1 Summary'!F50-'D.1 Summary'!F43)/'D.1 Summary'!F43),"---") -> --- | G61: =IFERROR((('D.1 Summary'!G50-'D.1 Summary'!G43)/'D.1 Summary'!G43),"---") -> --- | H61: =IFERROR((('D.1 Summary'!H50-'D.1 Summary'!H43)/'D.1 Summary'!H43),"---") -> --- | I61: =IFERROR((('D.1 Summary'!I50-'D.1 Summary'!I43)/'D.1 Summary'!I43),"---") -> ---

Sheet Reference Tables
A1: Total Medical Expenses and Alternative Payment Methods
A2: Reference Tables
A4: Insurance Category Code | B4: Definition
A5: 1 | B5: Medicare & Medicare Advantage
A6: 2 | B6: Medicaid & Medicaid Managed Care (MCO)
A7: 3 | B7: Commercial – Full Claims
A8: 4 | B8: Commercial – Partial Claims
A9: 5 | B9: Medicare and Medicaid Dual Eligibles, 65 and over (e.g., SCO)
A10: 6 | B10: Medicare and Medicaid Dual Eligibles, 21 – 64 (e.g., OneCare)
A11: 7 | B11: Other (e.g., PACE)
A14: Product Type Code | B14: Definition
A15: 1 | B15: HMO
A16: 2 | B16: PPO
A17: 3 | B17: Indemnity
A18: 4 | B18: Other
A19: 5 | B19: POS
A22: PCP Indicator | B22: Definition
A23: 1 | B23: Data for members required to select a PCP as part of plan design
A24: 2 | B24: Data for members who are attributed to a PCP during reporting period pursuant to payer-provider risk contract
A25: 3 | B25: Data for members who are attributed to a PCP by payer’s own attribution methodology
A26: 4 | B26: Data for members who are not attributed to a PCP
A29: Payment Method Code | B29: Definition
A30: 1A | B30: Global Budget/Payment (Full Benefits: budget includes comprehensive services)
A31: 1B | B31: Global Budget/Payment (Partial Benefits: certain services carved-out and not part of the budget)
A32: 2 | B32: Limited Budget
A33: 3 | B33: Bundled Payments
A34: 4 | B34: Other, non-FFS based
A35: 5 | B35: Fee for Service
A38: Risk Type Code | B38: Definition
A39: 1 | B39: No Risk
A40: 2 | B40: Shared Savings Only
A41: 3 | B41: Upside and Downside Risk

Sheet Payer Names (hidden)
A1: Id | B1: Name | C1: ShortName
B2: Select Payer:
A3: 290 | B3: Aetna Health Inc. | C3: Aetna
A4: 291 | B4: Blue Cross Blue Shield of Massachusetts | C4: BCBSMA
A5: 11226 | B5: BMC HealthNet Plan | C5: BMCHP
A6: 00001 | B6: CHIA | C6: CHIA
A7: 11726 | B7: CIGNA - EAST | C7: Cigna-East
A8: 11474 | B8: CIGNA - WEST | C8: Cigna-West
A9: 10728 | B9: Commonwealth Care Alliance | C9: CCA
A10: 8026 | B10: Fallon Community Health Plan | C10: Fallon
A11: 300 | B11: Harvard Pilgrim Health Care | C11: HPHC
A12: 302 | B12: Health Plans Inc. | C12: HPI
A13: 301 | B13: Health New England | C13: HNE
A14: 3735 | B14: AllWays Health Partners (fka Neighborhood Health Plan) | C14: AllWays
A15: 11227 | B15: Tufts Public Plans | C15: THPP
A16: 308 | B16: Tufts Health Plan | C16: THP
A17: 12103 | B17: Tufts Medicare Advantage | C17: Tufts Med Adv
A18: 310 | B18: UniCare Life and Health Insurance Company | C18: UniCare
A19: 312 | B19: United Healthcare Insurance Company | C19: United
A20: 10926 | B20: United Medicare Advantage | C20: United Med Adv
A21: 12814 | B21: United Senior Care Options (SCO) | C21: United SCO
A22: 3156 | B22: MassHealth | C22: MassHealth

Sheet System Data (hidden)
A1: TRUE | B1: OnSaveFlag
A2: 5 | B2: iPayer
A3: =INDEX(PayersList,iPayer,1) -> 00001 | B3: vPayerOrgID
A4: =INDEX(PayersList,iPayer,3) -> CHIA | B4: vPayerShortName
A5: ='A. Front Page'!C12 -> 2019 | B5: vFiscalYear
A6: =IF(PayerName="Select Payer:", FALSE,TRUE) -> TRUE | B6: cfPayerNameSelected
A7: =IF(ContactName="", FALSE,TRUE) -> TRUE | B7: cfRequiredContactName
A8: =IF(ContactEmail="", FALSE, TRUE) -> TRUE | B8: cfRequiredContactEmail
A9: =IF(AND(cfPayerNameSelected=TRUE,cfRequiredContactName=TRUE,cfRequiredContactEmail=TRUE), TRUE, FALSE) -> TRUE | B9: cfRequiredFieldsSelected
A10: =INDEX(PayersList,iPayer,1)&"_"&INDEX(PayersList,iPayer,3)&"_"&FiscalYear&".xlsm" -> 00001_CHIA_2019.xlsm | B10: vFileName
A13: Tab B. ZipCode
A14: =IF(AND(A15=TRUE,A16=TRUE,A17=TRUE,A18=TRUE,A19=TRUE,A20=TRUE,A21=TRUE,A22=TRUE,A23=TRUE,A24=TRUE,A25=TRUE,A26=TRUE,A27=TRUE,A28=TRUE), TRUE,FALSE) -> TRUE | B14: cfZipCodeTabRequiredFieldS
A15: =IF(Submission_Type="",FALSE,TRUE) -> TRUE | B15: vSubmissionType
A16: =IF('B. Zip Code'!B5<>"", TRUE, FALSE) -> TRUE | B16: vReportingYear
A17: =IF('B. Zip Code'!C5<>"", TRUE, FALSE) -> TRUE | B17: vZipCode
A18: =IF('B. Zip Code'!D5<>"", TRUE, FALSE) -> TRUE | B18: vInsuranceCategory
A19: =IF('B. Zip Code'!E5<>"", TRUE, FALSE) -> TRUE | B19: VProductTypeCode
A20: =IF('B. Zip Code'!F5<>"", TRUE, FALSE) -> TRUE | B20: vPCPTypeIndicator
A21: =IF('B. Zip Code'!G5<>"", TRUE, FALSE) -> TRUE | B21: vPaymentMethodCode
A22: =IF('B. Zip Code'!H5<> "", TRUE, FALSE) -> TRUE | B22: vMemberMonths
A23: =IF('B. Zip Code'!I5<>"", TRUE, FALSE) -> TRUE | B23: vHSAScore
A24: =IF('B. Zip Code'!J5<>"", TRUE, FALSE) -> TRUE | B24: vClaimsHospitalInpatient
A25: =IF('B. Zip Code'!K5<>"", TRUE, FALSE) -> TRUE | B25: vClaimsHospitalOutpatient
A26: =IF('B. Zip Code'!L5<>"", TRUE, FALSE) -> TRUE | B26: vClaimsProfessional
A27: =IF('B. Zip Code'!M5<>"", TRUE, FALSE) -> TRUE | B27: vClaimsProfessionalOther
A28: =IF('B. Zip Code'!N5<>"", TRUE, FALSE) -> TRUE | B28: vClaimsPharmacy
A29: =IF('B. Zip Code'!O5<>"", TRUE, FALSE) -> TRUE | B29: vClaimsOther
A30: =IF('B. Zip Code'!P5<>"", TRUE, FALSE) -> TRUE | B30: vTotalNon-ClaimsPayment
A32: Tab C. Physician Group
A33: =IF(AND(A34=TRUE,A35=TRUE,A36=TRUE, A37=TRUE,A38=TRUE,A39=TRUE,A40=TRUE,A41=TRUE,A42=TRUE,A43=TRUE,A44=TRUE,A45=TRUE,A46=TRUE,A47=TRUE,A48=TRUE,A49=TRUE,A50=TRUE,A51=TRUE,A52=TRUE,A53=TRUE,A54=TRUE,A55=TRUE,A56=TRUE, A57=TRUE), TRUE, FALSE) -> FALSE | B33: cfPhysicianGroupRequiredFields
A34: =IF('C. Physician Group'!A5<>"", TRUE, FALSE) -> TRUE | B34: vSubmissionType
A35: =IF('C. Physician Group'!B5<>"", TRUE, FALSE) -> TRUE | B35: vReportingYear
A36: =IF('C. Physician Group'!C5<> "", TRUE, FALSE) -> TRUE | B36: vPhysicianGroupOrgID
A37: =IF('C. Physician Group'!D5<> "", TRUE, FALSE) -> TRUE | B37: vLocalPracticeGroupOrgID
A38: =IF('C. Physician Group'!E5<> "", TRUE, FALSE) -> TRUE | B38: vInsuranceCategoryCode
A39: =IF('C. Physician Group'!F5<> "", TRUE, FALSE) -> TRUE | B39: vProductTypeCode
A40: =IF('C. Physician Group'!G5<>"", TRUE, FALSE) -> TRUE | B40: vPCPTypeIndicator
A41: =IF('C. Physician Group'!H5<>"", TRUE, FALSE) -> TRUE | B41: vPaymentMethodCode
A42: =IF('C. Physician Group'!I5<>"", TRUE, FALSE) -> TRUE | B42: vRiskTYpeCode
A43: =IF('C. Physician Group'!J5<>"", TRUE, FALSE) -> TRUE | B43: vPediatricIndicator
A44: =IF('C. Physician Group'!K5<>"", TRUE, FALSE) -> TRUE | B44: vMassHealthACOIndicator
A45: =IF('C. Physician Group'!L5<>"", TRUE, FALSE) -> TRUE | B45: vMemberMonths
A46: =IF('C. Physician Group'!M5<>"", TRUE, FALSE) -> TRUE | B46: vHSAScore
A47: =IF('C. Physician Group'!N5<>"", TRUE, FALSE) -> TRUE | B47: vClaimsHospitalInpatient
A48: =IF('C. Physician Group'!O5<>"", TRUE, FALSE) -> TRUE | B48: vClaimsHospitalOutpatient
A49: =IF('C. Physician Group'!P5<>"", TRUE, FALSE) -> TRUE | B49: vClaimsProfessionalPhysician
A50: =IF('C. Physician Group'!Q5<>"", TRUE, FALSE) -> TRUE | B50: vClaimsProfessionalOther
A51: =IF('C. Physician Group'!R5<>"", TRUE, FALSE) -> TRUE | B51: vClaimsPharmacy
A52: =IF('C. Physician Group'!S5<>"", TRUE, FALSE) -> TRUE | B52: vClaimsOther
A53: =IF('C. Physician Group'!T5<>"", TRUE, FALSE) -> TRUE | B53: vNonClaimsIncentivePrograms
A54: =IF('C. Physician Group'!U5<>"", TRUE, FALSE) -> FALSE | B54: vNonClaimsCapitation
A55: =IF('C. Physician Group'!V5<>"", TRUE, FALSE) -> FALSE | B55: vNon-ClaimsRiskSettlements
A56: =IF('C. Physician Group'!W5<>"", TRUE, FALSE) -> FALSE | B56: vNon-ClaimsCareManagement
A57: =IF('C. Physician Group'!X5<>"", TRUE, FALSE) -> FALSE | B57: vNon-ClaimsOther
A59: A. Front Page
A60: =IF(AND(A61=TRUE,A62=TRUE,A63=TRUE,A64=TRUE,A65=TRUE,A66=TRUE,A67=TRUE,A68=TRUE,A69=TRUE), TRUE, FALSE) -> TRUE | B60: cfFrontPageTableARequiredFields
A61: =IF(PayerName="Select Payer:", FALSE,TRUE) -> TRUE | B61: vPayerName
A62: =IF(FiscalYear<>"", TRUE, FALSE) -> TRUE | B62: vSubmissionYear
A63: =IF('A. Front Page'!C13<>"", TRUE, FALSE) -> TRUE | B63: vPreliminaryData:ReportingYear
A64: =IF('A. Front Page'!C14<>"", TRUE, FALSE) -> TRUE | B64: vPreliminaryData:ClaimsPaidThroughDate
A65: =IF('A. Front Page'!C15<>"", TRUE, FALSE) -> TRUE | B65: vFinalData:ReportingYear
A66: =IF('A. Front Page'!C16<>"", TRUE, FALSE) -> TRUE | B66: vFinalData:ClaimsPaidThroughDate
A67: =IF('A. Front Page'!C17<>"", TRUE, FALSE) -> TRUE | B67: vFinalResubmissionIncluded?
A68: =IF('A. Front Page'!C18<>"", TRUE, FALSE) -> TRUE | B68: vFinalResubmissionData:ReportingYear
A69: =IF('A. Front Page'!C19<>"", TRUE, FALSE) -> TRUE | B69: vFinalResubmissionData:ClaimsPaidThroughDate
A71: =IF(AND(A72=TRUE,A73=TRUE,A74=TRUE,A75=TRUE,A76=TRUE,A77=TRUE,A78=TRUE,A79=TRUE,A80=TRUE,A81=TRUE,A82=TRUE,A83=TRUE), TRUE, FALSE) -> FALSE | B71: cfFrontPageTableBRequiredFields
A72: =IF('A. Front Page'!C22<>"", TRUE, FALSE) -> TRUE | B72: vHealthStatus AdjustmentTool
A73: =IF('A. Front Page'!C23<>"", TRUE, FALSE) -> TRUE | B73: vHealthStatusAdjustmentToolVersion
A74: =IF('A. Front Page'!C24<>"", TRUE, FALSE) -> TRUE | B74: vRiskAdjustmentToolconcurrent
A75: =IF('A. Front Page'!C25<>"", TRUE, FALSE) -> TRUE | B75: vRiskAdjustmentToolusetruncation
A76: =IF('A. Front Page'!C26<>"", TRUE, FALSE) -> TRUE | B76: vAdjustmentToolBasedOnAll-encounterDiagnosis-basedInputs
A77: =IF('A. Front Page'!C27<>"", TRUE, FALSE) -> TRUE | B77: vPharmacyDataanInputInYourRiskAdjustmentTool
A78: =IF('A. Front Page'!C28<>"", TRUE, FALSE) -> TRUE | B78: vIBNRFactorsappliedtoPrelimdata
A79: =IF('A. Front Page'!C29<>"", TRUE, FALSE) -> TRUE | B79: vDataIncludeMassachusettsZipCodesOnly
A80: =IF('A. Front Page'!C30<>"", TRUE, FALSE) -> TRUE | B80: vDataIncludeMassachusettsResidentsOnly?
A81: =IF('A. Front Page'!C31<>"", TRUE, FALSE) -> TRUE | B81: vIsthedatalimitedonlytomembersforwhomthepayeristheprimarypayer
A82: =IF('A. Front Page'!C32<>"", TRUE, FALSE) -> FALSE | B82: vZipCodeFileComments
A83: =IF('A. Front Page'!C33<>"", TRUE, FALSE) -> FALSE | B83: vPhysicianFileComments
